Workbook

Sheet Erläuterung
A1: Erläuterung zum Excel-Werkzeug Kriterium 2.1.1 (Version 1.2_a)
A4: Allgemeiner Hinweis | B4: Das Excel-Werkzeug Kriterium 2.1.1 wurde entwickelt als Berechnungshilfe für die Ermittlung der Lebenszykluskosten (LCC).Maßgebend ist die Umsetzung der im Steckbrief definierten Rahmenbedingungen.
B5: Das Excel-Werkzeug Kriterium 2.1.1 wurde geschrieben unter MS-Excel 2010 und nutzt Makros. Die Ausführung von Makros muss gestattet werden.
A7: Allgemeine Funktionsweise | B7: Automatisch berechnete Felder sind dunkelgrau, Eingabefelder hellgrau hinterlegt. In den Tabellen " Bauteile", "Bauteilreinigung", "Bodenreinigung" und "Energieversorgung" wird jeweils über den Button + xy hinzufügen + eine neue Eingabezeile erzeugt, das Löschen der Zeile ist über den x-Button am Zeilenanfang möglich. In den Tabellen " Bauteile", "Bauteilreinigung" und "Bodenreinigung" sind jeweils in einzelnen Spalten Sortierbutton ergänzt, so dass wahlweise nach unterschiedlichen Kriterien sortiert werden kann. Über die Schalter "+" bzw. "-" oberhalb der Spaltenbezeichnungen der Tabellenbereiche können zur besseren Übersicht einzelne Tabellenbereiche ein- bzw. ausgeblendet werden.
A9: Tabelle „Bewertung 2.1.1“ | B9: Ist die Ergebnistabelle der Barwerte für alle eingegebenen Herstellungs- und Nutzungskosten. Der erreichte BNB-Punktwert wird ebenfalls ausgewiesen. Außerdem werden die einzelnen Herstellungs-/ Nutzungskostenanteile grafisch dargestellt.
A11: Tabelle „Bauteilkostenübersicht“ | B11: Ist die Ergebnistabelle zur Kontrolle und Überprüfung der eingegebenen Bauteilkosten mit den Zwischensummen der einzelnen Kostengruppen.
A13: Tabelle „Bauteile“ | B13: Hier können Sie die Herstellungskosten für die KGR 300, 400 und je nach Erfordernis 500 bauteilbezogen erfassen. Für jedes Bauteil werden zunächst eine Bezeichnung, der Einbauort und optional über das Eingabefeld "OZ" eine beliebige Ornungszahl erfasst. In dem Bereich Grunddaten (Spalte F-I) wird die Kostengruppe (über Auswahlfeld) zugeordnet. Außerdem wird die LCC-Relevanz (Standard Ja) und die Kostenzuordnung zum Bestand (Standard bzw. für Neubau immer Nein) abgefragt. Optional ist ein Kommentar pro Bauteil möglich. Im Bereich Herstellungskosten (Spalte J-O) erfolgt die Eingabe der tatsächlichen Netto-Herstellungskosten. Die Preisindizierung auf das Bezugsjahr des Steckbriefes wird automatisch berechnet. Voraussetzung ist die Eingabe des entsprechenden Preisindex in der Tabelle "Konfiguration". Im Bereich Nutzungsdauer (Spalte P-V) kann über ein Auswahlfeld die entsprechende Nutzungsdauer zugeordnet werden. Standardmäßig ist 1 Jahr als ND voreingestellt. Damit ist die Angabe der Nutzungsdauer unerlässlich. Die hinterlegten Nutzungsdauern der KGR 300 entsprechen den Werten der Tabelle "Nutzungsdauern von Bauteilen" gemäß Veröffentlichung auf dem Internetportal Nachhaltiges Bauen des BMVBS --> siehe auch http://www.nachhaltigesbauen.de/baustoff-und-gebaeudedaten/nutzungsdauern-von-bauteilen.html). Für die KGR 400 sind die Angaben zur mittleren Lebensdauer der VDI 2067: 2000 enthalten. Falls die in den Spalten E + F zuvor definierte Kostengruppe von der im Auswahlfeld der Spalte S benannten KGR (3.Ebene) abweicht, bleibt das Feld gelb markiert. Falls keine eindeutige Zuordnung gefunden werden kann, ist auch eine Handeingabe möglich. Handeingaben bzw. Abweichungen sind zu begründen. Im Bereich regelmäßige Kosten (Spalte Z-AF) werden jedem Bauteil die Inspektions- und Wartungskosten sowie die regelmäßigen Instandsetzungskosten wiederum über ein Auswahlfeld zugewiesen. Gemäß Anlage 3 des Steckbriefes werden für die KGR 300 einheitlich für die Inspektions- und Wartungskosten 0,1% der Herstellungskosten und keine laufenden Instandsetzungskosten angesetzt. Für die KGR 400 sind ebenfalls gemäß Anlage 3 die je nach Kostengruppe unterschiedlichen Inspektions- und Wartungskosten sowie die laufenden Instandsetzungskosten zuzuordnen. Je nach Relevanz ist teilweise sowohl die übergeordnete einheitliche Zuordnung für eine KGR (2.Ebene) gemäß AMEV oder die weitere Differenzierung in Anlehnung an die VDI 2067 möglich. Außerdem besteht zusätzlich die Option der Handeingabe für abweichende laufende Kosten (z.B. gemäß Wartungsvertrag). Alle weiteren Spalten beinhalten Ergebniswerte der Berechnung des Barwertes auf Basis der vorab beschriebenen Eingaben für den vorgegebenen Betrachtungszeitraum. Die Einzelwerte sind jahresweise ablesbar.
A15: Tabelle „Bauteilreinigung“ | B15: In dieser Tabelle werden nachvollziehbar die zu reinigenden Bauteile über die Bauteilbezeichnung, den Einbauort und die entsprechende zu reinigende Fläche erfasst. Zu beachten ist die Anzahl der zu reinigenden Seiten (z.B. Fenster 2x). Wesentlich ist die Zuordnung über das Auswahlfeld der Spalte F gemäß Zugänglichkeit und Bauteiloberfläche für die Ermittlung des Reinigungsaufwandes. Die Berechnung der Reinigungskosten erfolgt automatisch über die hinterlegten Kostenkennwerte entsprechend Steckbrief Anlage 2. Die weiteren Spalten beinhalten die Ergebniswerte der Berechnung des Barwertes für den vorgegebenen Betrachtungszeitraum. Die Einzelwerte sind jahresweise ablesbar.
A17: Tabelle „Bodenreinigung“ | B17: In dieser Tabelle werden nachvollziehbar die zu reinigenden Bodenflächen über die Raumbezeichnung, die Raumnummer und die entsprechende zu reinigende Bodenfläche erfasst. Wesentlich ist die Zuordnung über das Auswahlfeld der Spalte F gemäß Oberflächentyp/ -material und Belastung für die Ermittlung des Reinigungsaufwandes. Die Berechnung der Reinigungskosten erfolgt automatisch über die hinterlegten Kostenkennwerte entsprechend Steckbrief Anlage 2. Die weiteren Spalten beinhalten die Ergebniswerte der Berechnung des Barwertes für den vorgegebenen Betrachtungszeitraum. Die Einzelwerte sind jahresweise ablesbar.
A19: Tabelle „Energieversorgung“ | B19: In dieser Tabelle wird der jährliche Endenergiebedarf pro Energieträger entsprechend EnEV-Nachweis erfasst. Die heizwertbezogene Umrechnung des Endenergiebedarfs ist zu berücksichtigen. Mit der Auswahl des Energieträgers werden die Energiekosten gemäß Anlage 4 des Steckbriefs automatisch zugeordnet. Die weiteren Spalten beinhalten die Ergebniswerte der Berechnung des Barwertes für den vorgegebenen Betrachtungszeitraum. Die Einzelwerte sind jahresweise ablesbar.
A21: Tabelle „Wasser-/ Abwasser“ | B21: In dieser Tabelle werden der Gesamtfrischwasserbedarf, das Abwasseraufkommen aus Brauchwasser und die in die Kanalisation eingeleiteten Niederschlagsmengen über die Größe der versiegelten Flächen erfasst und die entsprechenden jährlichen Kosten über die Kostenkennwerte gemäß Anlage 4 des Steckbriefes automatisch berechnet. Für die Berechnung der Frischwasser- und Abwassermengen steht gesondert das Excel-Werkzeug Kriterium 1.2.3 zur Verfügung. Die weiteren Spalten beinhalten die Ergebniswerte der Berechnung des Barwertes für den vorgegebenen Betrachtungszeitraum. Die Einzelwerte sind jahresweise ablesbar.
A23: Tabelle „Konfiguration“ | B23: Diese Tabelle beinhaltet mit Betrachtungszeitraum, allgemeine Preissteigerung, Preissteigerung Energie und Kalkulationszins die grundlegende Rahmenparameter der Lebenszykluskostenberechnung. Diese Werte sind mit BNB-Modul bzw. Version eindeutig definiert. Außerdem ist hier projektbezogen der entsprechende Baupreisindex einzugeben, da jede BNB-Version sich auf einen definierten Preisstand bezieht. Der jeweils relevante Baupreisindex ist der Tabelle des statistischen Bundesamteszu entnehmen --> https://www.destatis.de/DE/ZahlenFakten/Indikatoren/Konjunkturindikatoren/Preise/bpr110.html Als objektbezogener Wert sind die Kategorie der Lebenszykluskosten und die Bruttogeschossfläche BGF a,b,c einzugeben, damit die flächenbezogene Berechnung des Barwertes möglich ist. Abweichende Werte für die Rahmenparameter erhöhen die flexible Anwendung des Excel-Werkzeugs für alternative Wirtschaftlichkeitsbetrachtungen, unabhängig vom BNB-System.

Sheet Bewertung-2.1.1.1
A1: Berechnung LCC nach BNB BN 2.1.1 v2011 Zusammenfassung | D1: BBR-LCC Ver. 15-1 BBR A1
A2: Projekt:
A3: Projektnummer:
A4: Bearbeiter:
A5: LCC-Stand:
B7: Indikator | C7: Wert | F7: Punkte | G7: Maßstab Kategorie I | H7: Maßstab Kategorie II | I7: LCC | J7: Punktzahl
A8: 1 | B8: Herstellungskosten KG 300 DIN 276 | C8: =ERG_Herstell300 -> 0 | F8: 100 | G8: =2000-0.01 -> 1999.99 | H8: =2400-0.01 -> 2399.99 | I8: =IF(AND(ISNUMBER(C27),C27>0),C27,LCC) -> Daten fehlen | J8: =IF(Konfiguration!B18=1, O19, T19) ->  | K8: =IF($I$8<=G8,1,0) -> 0 | L8: =IF($I$8>0,1,0) -> 1 | M8: =F8*K8*L8 -> 0 | N8: =IF($I$8<=G8,1,0) -> 0 | O8: =M8*N8 -> 0 | P8: =IF($I$8<=H8,1,0) -> 0 | Q8: =IF($I$8>0,1,0) -> 1 | R8: =F8*P8*Q8 -> 0 | S8: =IF($I$8<=H8,1,0) -> 0 | T8: =R8*S8 -> 0 | AA8: =A8 -> 1 | AB8: Herst. KG 300 | AC8: =C8/BGFabc -> 
A9: 2 | B9: Herstellungskosten KG 400 + KG 500 DIN 276 | C9: =ERG_Herstell400+ERG_Herstell500 -> 0 | F9: 90 | G9: =2180-0.01 -> 2179.99 | H9: =2660-0.01 -> 2659.99 | K9: 0 | L9: =IF($I$8>G8,1,0) -> 1 | M9: 0 | N9: 0 | O9: =M9+L9*N9*(F8-F9)*(G9-$I$8)/(G9-G8) ->  | P9: 0 | Q9: =IF($I$8>H8,1,0) -> 1 | R9: 0 | S9: 0 | T9: =R9+Q9*S9*(F8-F9)*(H9-$I$8)/(H9-H8) ->  | AA9: 2 | AB9: Herst. KG 400 + KG 500 | AC9: =C9/BGFabc -> 
A10: 3 | B10: Herstellungskosten KG 300 + KG 400 + KG 500 DIN 276 | C10: =C8+C9 -> 0 | F10: 80 | G10: =2360-0.01 -> 2359.99 | H10: =2920-0.01 -> 2919.99 | K10: 0 | L10: 1 | M10: 0 | N10: 0 | P10: 0 | Q10: 1 | R10: 0 | S10: 0 | AA10: =A11 -> 4 | AB10: Ersatzinvestitionen KG 300 | AC10: =C11/BGFabc -> 
A11: 4 | B11: Barwert unregelmäßige Zahlungen KG 300 DIN 276 (Ersatzinvestitionen) | C11: =ERG_BARERSATZ300 -> 0 | F11: 70 | G11: =2540-0.01 -> 2539.99 | H11: =3180-0.01 -> 3179.99 | K11: 0 | L11: 1 | M11: 0 | N11: 0 | P11: 0 | Q11: 1 | R11: 0 | S11: 0 | AA11: =A12 -> 5 | AB11: Ersatzinvestitionen KG 400+500 | AC11: =C12/BGFabc -> 
A12: 5 | B12: Barwert unregelmäßige Zahlungen KG 400 + KG 500 DIN 276 (Ersatzinvestitionen) | C12: =ERG_BARERSATZ400+ERG_BARERSATZ500 -> 0 | F12: 60 | G12: =2720-0.01 -> 2719.99 | H12: =3440-0.01 -> 3439.99 | K12: 0 | L12: 1 | M12: 0 | N12: 0 | P12: 0 | Q12: 1 | R12: 0 | S12: 0 | AA12: =A14 -> 7 | AB12: Inspektion und Wartung KG 300 | AC12: =C14/BGFabc -> 
A13: 6 | B13: Barwert unregelmäßige Zahlungen (Ersatzinvestitionen) KG 300 + KG 400 + KG 500 DIN 276 | C13: =C11+C12 -> 0 | F13: 50 | G13: =2900-0.01 -> 2899.99 | H13: =3700-0.01 -> 3699.99 | K13: 0 | L13: 1 | M13: 0 | N13: 0 | P13: 0 | Q13: 1 | R13: 0 | S13: 0 | AA13: =A15 -> 8 | AB13: Inspektion und Wartung KG 400+500 | AC13: =C15/BGFabc -> 
A14: 7 | B14: Barwert regelmäßige Inspektion und Wartung KG 300 DIN 276 | C14: =ERG_BARWART300 -> 0 | F14: 40 | G14: =3080-0.01 -> 3079.99 | H14: =3960-0.01 -> 3959.99 | K14: 0 | L14: 1 | M14: 0 | N14: 0 | P14: 0 | Q14: 1 | R14: 0 | S14: 0 | AA14: =A17 -> 10 | AB14: Instandhaltung KG 300 | AC14: =C17/BGFabc -> 
A15: 8 | B15: Barwert regelmäßige Inspektion und Wartung KG 400 + KG 500 DIN 276 | C15: =ERG_BARWART400+ERG_BARWART500 -> 0 | F15: 30 | G15: =3260-0.01 -> 3259.99 | H15: =4220-0.01 -> 4219.99 | K15: 0 | L15: 1 | M15: 0 | N15: 0 | P15: 0 | Q15: 1 | R15: 0 | S15: 0 | AA15: =A18 -> 11 | AB15: Instandhaltung KG 400+500 | AC15: =C18/BGFabc -> 
A16: 9 | B16: Barwert regelmäßige Inspektion und Wartung KG 300 + KG 400 + KG 500 DIN 276 | C16: =C14+C15 -> 0 | F16: 20 | G16: =3440-0.01 -> 3439.99 | H16: =4480-0.01 -> 4479.99 | K16: 0 | L16: 1 | M16: 0 | N16: 0 | P16: 0 | Q16: 1 | R16: 0 | S16: 0 | AA16: =A22 -> 15 | AB16: Reinigung | AC16: =C22/BGFabc -> 
A17: 10 | B17: Barwert regelmäßige Instandsetzungskosten KG 300 DIN 276 | C17: =ERG_BARINST300 -> 0 | F17: 10 | G17: =3620 -> 3620 | H17: =4740 -> 4740 | K17: =IF($I$8>G16,1,0) -> 1 | L17: 1 | M17: 10 | N17: =IF($I$8<G17,1,0) -> 0 | P17: =IF($I$8>H16,1,0) -> 1 | Q17: 1 | R17: 10 | S17: =IF($I$8<H17,1,0) -> 0 | AA17: =A23 -> 16 | AB17: Energie | AC17: =C23/BGFabc -> 
A18: 11 | B18: Barwert regelmäßige Instandsetzungskosten KG 400 + KG 500 DIN 276 | C18: =ERG_BARINST400+ERG_BARINST500 -> 0 | F18: 0 | G18: Kein Nachweis | H18: Kein Nachweis | O18: 0 | T18: 0 | AA18: =A24 -> 17 | AB18: Wasserver- und Entsorgung | AC18: =C24/BGFabc -> 
A19: 12 | B19: Barwert regelmäßige Instandsetzungskosten KG 300 + KG 400 + KG 500 DIN 276 | C19: =C17+C18 -> 0 | O19: =SUM(O8:O18) ->  | T19: =SUM(T8:T18) -> 
A20: 13 | B20: Barwert regelmäßige Kosten Bauteilreinigung | C20: =ERG_Reinigung -> 0
A21: 14 | B21: Barwert regelmäßige Kosten Bodenreinigung | C21: =ERG_Bodenreinigung -> 0
A22: 15 | B22: Barwert regelmäßige Kosten Reinigung | C22: =C20+C21 -> 0
A23: 16 | B23: Barwert regelmäßige Kosten Energie | C23: =ERG_Energie -> 0
A24: 17 | B24: Barwert der regelmäßigen Kosten für Wasserver- und Entsorgung | C24: =ERG_Wasser -> 0
B25: Barwert Gesamt | C25: =C10+C13+C16+C19+C22+C23+C24 -> 0
B26: Lebenszykluskosten je m² BGFabc | C26: =IF(ISNUMBER(C25/Konfiguration!B19),C25/Konfiguration!B19,"Daten fehlen") -> Daten fehlen
A27: 18 | B27: Alternativ: Handeingabe Lebenszykluskosten je m² BGFabc
B28: Punktzahl 2.1.1 Modul BNB_BN v2011_1 | C28: =IF(ISNUMBER(J8),J8,"Daten fehlen") -> Daten fehlen

Sheet Bauteilkostenübersicht
B2: Projekt: | C2: =IF(ISTEXT(Projekt),Projekt,"") -> 
B3: Stand: | C3: =IF(ISNUMBER(LCC_Stand),LCC_Stand,"") -> 
B4: Bauwerkskosten (Summe KG 300 und 400) | D4: =D7+D76 -> 0 | E4: =E7+E76 -> 0
B6: Kostengruppen (KG) nach DIN 276 | D6: in EURO netto | E6: in EURO brutto
B7: 300 | C7: Bauwerk - Baukonstruktionen | D7: =D8+D9+D15+D25+D36+D45+D51+D58+D63 -> 0 | E7: =E8+E9+E15+E25+E36+E45+E51+E58+E63 -> 0
B8: 300 | C8: Bauwerk - Baukonstruktionen - Eingaben 1. Ebene | D8: =SUMIF(Bauteile!$E$11:$J$13,$B8,Bauteile!$J$11:$J$13) -> 0 | E8: =ROUND(D8*1.19,2) -> 0
B9: 310 | C9: Baugrube | D9: =SUM(D10:D14) -> 0 | E9: =SUM(E10:E14) -> 0
B10: 310 | C10: Baugrube - Eingaben 2. Ebene | D10: =SUMIF(Bauteile!$E$11:$J$13,$B10,Bauteile!$J$11:$J$13) -> 0 | E10: =ROUND(D10*1.19,2) -> 0
B11: 311 | C11: Baugrubenherstellung | D11: =SUMIF(Bauteile!$E$11:$J$13,$B11,Bauteile!$J$11:$J$13) -> 0 | E11: =ROUND(D11*1.19,2) -> 0
B12: 312 | C12: Baugrubenumschließung | D12: =SUMIF(Bauteile!$E$11:$J$13,$B12,Bauteile!$J$11:$J$13) -> 0 | E12: =ROUND(D12*1.19,2) -> 0
B13: 313 | C13: Wasserhaltung | D13: =SUMIF(Bauteile!$E$11:$J$13,$B13,Bauteile!$J$11:$J$13) -> 0 | E13: 0
B14: 319 | C14: Baugrube, Sonstiges | D14: =SUMIF(Bauteile!$E$11:$J$13,$B14,Bauteile!$J$11:$J$13) -> 0 | E14: 0
B15: 320 | C15: Gründung | D15: =SUM(D16:D24) -> 0 | E15: =SUM(E16:E24) -> 0
B16: 320 | C16: Gründung - Eingaben 2. Ebene | D16: =SUMIF(Bauteile!$E$11:$J$13,$B16,Bauteile!$J$11:$J$13) -> 0 | E16: =ROUND(D16*1.19,2) -> 0
B17: 321 | C17: Baugrundverbesserung | D17: =SUMIF(Bauteile!$E$11:$J$13,$B17,Bauteile!$J$11:$J$13) -> 0 | E17: =ROUND(D17*1.19,2) -> 0
B18: 322 | C18: Flachgründungen | D18: =SUMIF(Bauteile!$E$11:$J$13,$B18,Bauteile!$J$11:$J$13) -> 0 | E18: =ROUND(D18*1.19,2) -> 0
B19: 323 | C19: Tiefgründungen | D19: =SUMIF(Bauteile!$E$11:$J$13,$B19,Bauteile!$J$11:$J$13) -> 0 | E19: 0
B20: 324 | C20: Unterböden und Bodenplatten | D20: =SUMIF(Bauteile!$E$11:$J$13,$B20,Bauteile!$J$11:$J$13) -> 0 | E20: 0
B21: 325 | C21: Bodenbeläge | D21: =SUMIF(Bauteile!$E$11:$J$13,$B21,Bauteile!$J$11:$J$13) -> 0 | E21: 0
B22: 326 | C22: Bauwerksabdichtungen | D22: =SUMIF(Bauteile!$E$11:$J$13,$B22,Bauteile!$J$11:$J$13) -> 0 | E22: 0
B23: 327 | C23: Drainagen | D23: =SUMIF(Bauteile!$E$11:$J$13,$B23,Bauteile!$J$11:$J$13) -> 0 | E23: 0
B24: 329 | C24: Gründungen, Sonstiges | D24: =SUMIF(Bauteile!$E$11:$J$13,$B24,Bauteile!$J$11:$J$13) -> 0 | E24: 0
B25: 330 | C25: Außenwände | D25: =SUM(D26:D35) -> 0 | E25: =SUM(E26:E35) -> 0
B26: 330 | C26: Außenwände - Eingaben 2. Ebene | D26: =SUMIF(Bauteile!$E$11:$J$13,$B26,Bauteile!$J$11:$J$13) -> 0 | E26: =ROUND(D26*1.19,2) -> 0
B27: 331 | C27: Tragende Außenwände | D27: =SUMIF(Bauteile!$E$11:$J$13,$B27,Bauteile!$J$11:$J$13) -> 0 | E27: =ROUND(D27*1.19,2) -> 0
B28: 332 | C28: Nichttragende Außenwände | D28: =SUMIF(Bauteile!$E$11:$J$13,$B28,Bauteile!$J$11:$J$13) -> 0 | E28: =ROUND(D28*1.19,2) -> 0
B29: 333 | C29: Außenstützen | D29: =SUMIF(Bauteile!$E$11:$J$13,$B29,Bauteile!$J$11:$J$13) -> 0 | E29: 0
B30: 334 | C30: Außentüren und -fenster | D30: =SUMIF(Bauteile!$E$11:$J$13,$B30,Bauteile!$J$11:$J$13) -> 0 | E30: 0
B31: 335 | C31: Außenwandbekleidungen außen | D31: =SUMIF(Bauteile!$E$11:$J$13,$B31,Bauteile!$J$11:$J$13) -> 0 | E31: 0
B32: 336 | C32: Außenwandbekleidungen innen | D32: =SUMIF(Bauteile!$E$11:$J$13,$B32,Bauteile!$J$11:$J$13) -> 0 | E32: 0
B33: 337 | C33: Elementierte Außenwände | D33: =SUMIF(Bauteile!$E$11:$J$13,$B33,Bauteile!$J$11:$J$13) -> 0 | E33: 0
B34: 338 | C34: Sonnenschutz | D34: =SUMIF(Bauteile!$E$11:$J$13,$B34,Bauteile!$J$11:$J$13) -> 0 | E34: 0
B35: 339 | C35: Außenwände, Sonstiges | D35: =SUMIF(Bauteile!$E$11:$J$13,$B35,Bauteile!$J$11:$J$13) -> 0 | E35: 0
B36: 340 | C36: Innenwände | D36: =SUM(D37:D44) -> 0 | E36: =SUM(E37:E44) -> 0
B37: 340 | C37: Innenwände - Eingaben 2. Ebene | D37: =SUMIF(Bauteile!$E$11:$J$13,$B37,Bauteile!$J$11:$J$13) -> 0 | E37: =ROUND(D37*1.19,2) -> 0
B38: 341 | C38: Tragende Innenwände | D38: =SUMIF(Bauteile!$E$11:$J$13,$B38,Bauteile!$J$11:$J$13) -> 0 | E38: =ROUND(D38*1.19,2) -> 0
B39: 342 | C39: Nichttragende Innenwände | D39: =SUMIF(Bauteile!$E$11:$J$13,$B39,Bauteile!$J$11:$J$13) -> 0 | E39: =ROUND(D39*1.19,2) -> 0
B40: 343 | C40: Innenstützen | D40: =SUMIF(Bauteile!$E$11:$J$13,$B40,Bauteile!$J$11:$J$13) -> 0 | E40: 0
B41: 344 | C41: Innentüren und -fenster | D41: =SUMIF(Bauteile!$E$11:$J$13,$B41,Bauteile!$J$11:$J$13) -> 0 | E41: 0
B42: 345 | C42: Innenwandbekleidungen | D42: =SUMIF(Bauteile!$E$11:$J$13,$B42,Bauteile!$J$11:$J$13) -> 0 | E42: 0
B43: 346 | C43: Elementierte Innenwände | D43: =SUMIF(Bauteile!$E$11:$J$13,$B43,Bauteile!$J$11:$J$13) -> 0 | E43: 0
B44: 349 | C44: Innenwände, Sonstiges | D44: =SUMIF(Bauteile!$E$11:$J$13,$B44,Bauteile!$J$11:$J$13) -> 0 | E44: 0
B45: 350 | C45: Decken | D45: =SUM(D46:D50) -> 0 | E45: =SUM(E46:E50) -> 0
B46: 350 | C46: Decken - Eingaben 2. Ebene | D46: =SUMIF(Bauteile!$E$11:$J$13,$B46,Bauteile!$J$11:$J$13) -> 0 | E46: =ROUND(D46*1.19,2) -> 0
B47: 351 | C47: Deckenkonstruktion | D47: =SUMIF(Bauteile!$E$11:$J$13,$B47,Bauteile!$J$11:$J$13) -> 0 | E47: =ROUND(D47*1.19,2) -> 0
B48: 352 | C48: Deckenbeläge | D48: =SUMIF(Bauteile!$E$11:$J$13,$B48,Bauteile!$J$11:$J$13) -> 0 | E48: =ROUND(D48*1.19,2) -> 0
B49: 353 | C49: Deckenbekleidungen | D49: =SUMIF(Bauteile!$E$11:$J$13,$B49,Bauteile!$J$11:$J$13) -> 0 | E49: 0
B50: 359 | C50: Decken, Sonstiges | D50: =SUMIF(Bauteile!$E$11:$J$13,$B50,Bauteile!$J$11:$J$13) -> 0 | E50: 0
B51: 360 | C51: Dächer | D51: =SUM(D52:D57) -> 0 | E51: =SUM(E52:E57) -> 0
B52: 360 | C52: Dächer - Eingaben 2. Ebene | D52: =SUMIF(Bauteile!$E$11:$J$13,$B52,Bauteile!$J$11:$J$13) -> 0 | E52: =ROUND(D52*1.19,2) -> 0
B53: 361 | C53: Dachkonstruktionen | D53: =SUMIF(Bauteile!$E$11:$J$13,$B53,Bauteile!$J$11:$J$13) -> 0 | E53: =ROUND(D53*1.19,2) -> 0
B54: 362 | C54: Dachfenster, Dachöffnungen | D54: =SUMIF(Bauteile!$E$11:$J$13,$B54,Bauteile!$J$11:$J$13) -> 0 | E54: =ROUND(D54*1.19,2) -> 0
B55: 363 | C55: Dachbeläge | D55: =SUMIF(Bauteile!$E$11:$J$13,$B55,Bauteile!$J$11:$J$13) -> 0 | E55: 0
B56: 364 | C56: Dachbekleidungen - Putz und Bekleidungen | D56: =SUMIF(Bauteile!$E$11:$J$13,$B56,Bauteile!$J$11:$J$13) -> 0 | E56: 0
B57: 369 | C57: Dächer, Sonstiges | D57: =SUMIF(Bauteile!$E$11:$J$13,$B57,Bauteile!$J$11:$J$13) -> 0 | E57: 0
B58: 370 | C58: Baukonstruktive Einbauten | D58: =SUM(D59:D62) -> 0 | E58: =SUM(E59:E62) -> 0
B59: 370 | C59: Baukonstruktive Einbauten - Eingaben 2. Ebene | D59: =SUMIF(Bauteile!$E$11:$J$13,$B59,Bauteile!$J$11:$J$13) -> 0 | E59: =ROUND(D59*1.19,2) -> 0
B60: 371 | C60: Allgemeine Einbauten | D60: =SUMIF(Bauteile!$E$11:$J$13,$B60,Bauteile!$J$11:$J$13) -> 0 | E60: =ROUND(D60*1.19,2) -> 0
B61: 372 | C61: Besondere Einbauten | D61: =SUMIF(Bauteile!$E$11:$J$13,$B61,Bauteile!$J$11:$J$13) -> 0 | E61: =ROUND(D61*1.19,2) -> 0
B62: 379 | C62: Baukonstruktive Einbauten, Sonstiges | D62: =SUMIF(Bauteile!$E$11:$J$13,$B62,Bauteile!$J$11:$J$13) -> 0 | E62: 0
B63: 390 | C63: Sonstige Maßnahmen für Baukonstruktionen | D63: =SUM(D64:D73) -> 0 | E63: =SUM(E64:E73) -> 0
B64: 390 | C64: Sonstige Maßnahmen für Baukonstruktionen - Eingaben 2. Ebene | D64: =SUMIF(Bauteile!$E$11:$J$13,$B64,Bauteile!$J$11:$J$13) -> 0 | E64: =ROUND(D64*1.19,2) -> 0
B65: 391 | C65: Baustelleneinrichtung | D65: =SUMIF(Bauteile!$E$11:$J$13,$B65,Bauteile!$J$11:$J$13) -> 0 | E65: =ROUND(D65*1.19,2) -> 0
B66: 392 | C66: Gerüste | D66: =SUMIF(Bauteile!$E$11:$J$13,$B66,Bauteile!$J$11:$J$13) -> 0 | E66: =ROUND(D66*1.19,2) -> 0
B67: 393 | C67: Sicherungsmaßnahmen | D67: =SUMIF(Bauteile!$E$11:$J$13,$B67,Bauteile!$J$11:$J$13) -> 0 | E67: 0
B68: 394 | C68: Abbruchmaßnahmen | D68: =SUMIF(Bauteile!$E$11:$J$13,$B68,Bauteile!$J$11:$J$13) -> 0 | E68: 0
B69: 395 | C69: Instandsetzungen | D69: =SUMIF(Bauteile!$E$11:$J$13,$B69,Bauteile!$J$11:$J$13) -> 0 | E69: 0
B70: 396 | C70: Materialentsorgung | D70: =SUMIF(Bauteile!$E$11:$J$13,$B70,Bauteile!$J$11:$J$13) -> 0 | E70: 0
B71: 397 | C71: Zusätzliche Maßnahmen | D71: =SUMIF(Bauteile!$E$11:$J$13,$B71,Bauteile!$J$11:$J$13) -> 0 | E71: 0
B72: 398 | C72: Provisorische Baukonstruktionen | D72: =SUMIF(Bauteile!$E$11:$J$13,$B72,Bauteile!$J$11:$J$13) -> 0 | E72: 0
B73: 399 | C73: Sonstige Maßnahmen für Baukonstruktionen, Sonstiges | D73: =SUMIF(Bauteile!$E$11:$J$13,$B73,Bauteile!$J$11:$J$13) -> 0 | E73: 0
B75: Kostengruppen (KG) nach DIN 276 | D75: in EURO netto | E75: in EURO brutto
B76: 400 | C76: Bauwerk - Technische Anlagen | D76: =D77+D78+D84+D90+D97+D106+D116+D124+D135+D143 -> 0 | E76: =E77+E78+E84+E90+E97+E106+E116+E124+E135+E143 -> 0
B77: 400 | C77: Bauwerk - Technische Anlagen - Eingaben 1. Ebene | D77: =SUMIF(Bauteile!$E$11:$J$13,$B77,Bauteile!$J$11:$J$13) -> 0 | E77: =ROUND(D77*1.19,2) -> 0
B78: 410 | C78: Abwasser-, Wasser-, Gasanlagen | D78: =SUM(D79:D83) -> 0 | E78: =SUM(E79:E83) -> 0
B79: 410 | C79: Abwasser-, Wasser-, Gasanlagen - Eingaben 2. Ebene | D79: =SUMIF(Bauteile!$E$11:$J$13,$B79,Bauteile!$J$11:$J$13) -> 0 | E79: =ROUND(D79*1.19,2) -> 0
B80: 411 | C80: Abwasseranlagen | D80: =SUMIF(Bauteile!$E$11:$J$13,$B80,Bauteile!$J$11:$J$13) -> 0 | E80: =ROUND(D80*1.19,2) -> 0
B81: 412 | C81: Wasseranlagen | D81: =SUMIF(Bauteile!$E$11:$J$13,$B81,Bauteile!$J$11:$J$13) -> 0 | E81: =ROUND(D81*1.19,2) -> 0
B82: 413 | C82: Gasanlagen | D82: =SUMIF(Bauteile!$E$11:$J$13,$B82,Bauteile!$J$11:$J$13) -> 0 | E82: 0
B83: 419 | C83: Abwasser-, Wasser-, Gasanlagen, Sonstiges | D83: =SUMIF(Bauteile!$E$11:$J$13,$B83,Bauteile!$J$11:$J$13) -> 0 | E83: 0
B84: 420 | C84: Wärmeversorgungsanlagen | D84: =SUM(D85:D89) -> 0 | E84: =SUM(E85:E89) -> 0
B85: 420 | C85: Wärmeversorgungsanlagen - Eingaben 2. Ebene | D85: =SUMIF(Bauteile!$E$11:$J$13,$B85,Bauteile!$J$11:$J$13) -> 0 | E85: =ROUND(D85*1.19,2) -> 0
B86: 421 | C86: Wärmeerzeugungsanlagen | D86: =SUMIF(Bauteile!$E$11:$J$13,$B86,Bauteile!$J$11:$J$13) -> 0 | E86: =ROUND(D86*1.19,2) -> 0
B87: 422 | C87: Wärmeverteilnetze | D87: =SUMIF(Bauteile!$E$11:$J$13,$B87,Bauteile!$J$11:$J$13) -> 0 | E87: =ROUND(D87*1.19,2) -> 0
B88: 423 | C88: Raumheizflächen | D88: =SUMIF(Bauteile!$E$11:$J$13,$B88,Bauteile!$J$11:$J$13) -> 0 | E88: 0
B89: 429 | C89: Wärmeversorgungsanlagen, Sonstiges | D89: =SUMIF(Bauteile!$E$11:$J$13,$B89,Bauteile!$J$11:$J$13) -> 0 | E89: 0
B90: 430 | C90: Lufttechnische Anlagen | D90: =SUM(D91:D96) -> 0 | E90: =SUM(E91:E96) -> 0
B91: 430 | C91: Lufttechnische Anlagen - Eingaben 2. Ebene | D91: =SUMIF(Bauteile!$E$11:$J$13,$B91,Bauteile!$J$11:$J$13) -> 0 | E91: =ROUND(D91*1.19,2) -> 0
B92: 431 | C92: Lüftungsanlagen | D92: =SUMIF(Bauteile!$E$11:$J$13,$B92,Bauteile!$J$11:$J$13) -> 0 | E92: =ROUND(D92*1.19,2) -> 0
B93: 432 | C93: Teilklimaanlagen | D93: =SUMIF(Bauteile!$E$11:$J$13,$B93,Bauteile!$J$11:$J$13) -> 0 | E93: =ROUND(D93*1.19,2) -> 0
B94: 433 | C94: Klimaanlagen | D94: =SUMIF(Bauteile!$E$11:$J$13,$B94,Bauteile!$J$11:$J$13) -> 0 | E94: 0
B95: 434 | C95: Kälteanlagen | D95: =SUMIF(Bauteile!$E$11:$J$13,$B95,Bauteile!$J$11:$J$13) -> 0 | E95: 0
B96: 439 | C96: Lufttechnische Anlagen, Sonstiges | D96: =SUMIF(Bauteile!$E$11:$J$13,$B96,Bauteile!$J$11:$J$13) -> 0 | E96: 0
B97: 440 | C97: Starkstromanlagen | D97: =SUM(D98:D105) -> 0 | E97: =SUM(E98:E105) -> 0
B98: 440 | C98: Starkstromanlagen - Eingaben 2. Ebene | D98: =SUMIF(Bauteile!$E$11:$J$13,$B98,Bauteile!$J$11:$J$13) -> 0 | E98: =ROUND(D98*1.19,2) -> 0
B99: 441 | C99: Hoch- und Mittelspannungsanlagen | D99: =SUMIF(Bauteile!$E$11:$J$13,$B99,Bauteile!$J$11:$J$13) -> 0 | E99: =ROUND(D99*1.19,2) -> 0
B100: 442 | C100: Eigenstromversorgungsanlagen | D100: =SUMIF(Bauteile!$E$11:$J$13,$B100,Bauteile!$J$11:$J$13) -> 0 | E100: =ROUND(D100*1.19,2) -> 0
B101: 443 | C101: Niederspannungsschaltanlagen | D101: =SUMIF(Bauteile!$E$11:$J$13,$B101,Bauteile!$J$11:$J$13) -> 0 | E101: 0
B102: 444 | C102: Niederspannungsinstallationsanlagen | D102: =SUMIF(Bauteile!$E$11:$J$13,$B102,Bauteile!$J$11:$J$13) -> 0 | E102: 0
B103: 445 | C103: Beleuchtungsanlagen | D103: =SUMIF(Bauteile!$E$11:$J$13,$B103,Bauteile!$J$11:$J$13) -> 0 | E103: 0
B104: 446 | C104: Blitzschutz- und Erdungsanlagen | D104: =SUMIF(Bauteile!$E$11:$J$13,$B104,Bauteile!$J$11:$J$13) -> 0 | E104: 0
B105: 449 | C105: Starkstromanlagen, Sonstiges | D105: =SUMIF(Bauteile!$E$11:$J$13,$B105,Bauteile!$J$11:$J$13) -> 0 | E105: 0
B106: 450 | C106: Fernmelde- und informationstechnische Anlagen | D106: =SUM(D107:D115) -> 0 | E106: =SUM(E107:E115) -> 0
B107: 450 | C107: Telekommunikationsanlagen - Eingaben 2. Ebene | D107: =SUMIF(Bauteile!$E$11:$J$13,$B107,Bauteile!$J$11:$J$13) -> 0 | E107: =ROUND(D107*1.19,2) -> 0
B108: 451 | C108: Telekommunikationsanlagen | D108: =SUMIF(Bauteile!$E$11:$J$13,$B108,Bauteile!$J$11:$J$13) -> 0 | E108: =ROUND(D108*1.19,2) -> 0
B109: 452 | C109: Such- und Signalanlagen | D109: =SUMIF(Bauteile!$E$11:$J$13,$B109,Bauteile!$J$11:$J$13) -> 0 | E109: =ROUND(D109*1.19,2) -> 0
B110: 453 | C110: Zeitdienstanlagen | D110: =SUMIF(Bauteile!$E$11:$J$13,$B110,Bauteile!$J$11:$J$13) -> 0 | E110: 0
B111: 454 | C111: Elektroakustische Anlagen | D111: =SUMIF(Bauteile!$E$11:$J$13,$B111,Bauteile!$J$11:$J$13) -> 0 | E111: 0
B112: 455 | C112: Fernseh- und Antennenanlagen | D112: =SUMIF(Bauteile!$E$11:$J$13,$B112,Bauteile!$J$11:$J$13) -> 0 | E112: 0
B113: 456 | C113: Gefahrenmelde- und Alarmanlagen | D113: =SUMIF(Bauteile!$E$11:$J$13,$B113,Bauteile!$J$11:$J$13) -> 0 | E113: 0
B114: 457 | C114: Übertragungsnetze | D114: =SUMIF(Bauteile!$E$11:$J$13,$B114,Bauteile!$J$11:$J$13) -> 0 | E114: 0
B115: 459 | C115: Fernmelde- und informationstechnische Anlagen, Sonst. | D115: =SUMIF(Bauteile!$E$11:$J$13,$B115,Bauteile!$J$11:$J$13) -> 0 | E115: 0
B116: 460 | C116: Förderanlagen | D116: =SUM(D117:D123) -> 0 | E116: =SUM(E117:E123) -> 0
B117: 460 | C117: Förderanlagen - Eingaben 2. Ebene | D117: =SUMIF(Bauteile!$E$11:$J$13,$B117,Bauteile!$J$11:$J$13) -> 0 | E117: =ROUND(D117*1.19,2) -> 0
B118: 461 | C118: Aufzugsanlagen | D118: =SUMIF(Bauteile!$E$11:$J$13,$B118,Bauteile!$J$11:$J$13) -> 0 | E118: =ROUND(D118*1.19,2) -> 0
B119: 462 | C119: Fahrtreppen, Fahrsteige | D119: =SUMIF(Bauteile!$E$11:$J$13,$B119,Bauteile!$J$11:$J$13) -> 0 | E119: =ROUND(D119*1.19,2) -> 0
B120: 463 | C120: Befahranlagen | D120: =SUMIF(Bauteile!$E$11:$J$13,$B120,Bauteile!$J$11:$J$13) -> 0 | E120: 0
B121: 464 | C121: Transportanlagen | D121: =SUMIF(Bauteile!$E$11:$J$13,$B121,Bauteile!$J$11:$J$13) -> 0 | E121: 0
B122: 465 | C122: Krananlagen | D122: =SUMIF(Bauteile!$E$11:$J$13,$B122,Bauteile!$J$11:$J$13) -> 0 | E122: 0
B123: 469 | C123: Förderanlagen, Sonstiges | D123: =SUMIF(Bauteile!$E$11:$J$13,$B123,Bauteile!$J$11:$J$13) -> 0 | E123: 0
B124: 470 | C124: Nutzungsspezifische Anlagen | D124: =SUM(D125:D134) -> 0 | E124: =SUM(E125:E134) -> 0
B125: 470 | C125: Nutzungsspezifische Anlagen - Eingaben 2. Ebene | D125: =SUMIF(Bauteile!$E$11:$J$13,$B125,Bauteile!$J$11:$J$13) -> 0 | E125: =ROUND(D125*1.19,2) -> 0
B126: 471 | C126: Küchentechnische Anlagen | D126: =SUMIF(Bauteile!$E$11:$J$13,$B126,Bauteile!$J$11:$J$13) -> 0 | E126: =ROUND(D126*1.19,2) -> 0
B127: 472 | C127: Wäscherei- und Reinigungsanlagen | D127: =SUMIF(Bauteile!$E$11:$J$13,$B127,Bauteile!$J$11:$J$13) -> 0 | E127: =ROUND(D127*1.19,2) -> 0
B128: 473 | C128: Medienversorgungsanlagen | D128: =SUMIF(Bauteile!$E$11:$J$13,$B128,Bauteile!$J$11:$J$13) -> 0 | E128: 0
B129: 474 | C129: Medizin- und labortechnische Anlagen | D129: =SUMIF(Bauteile!$E$11:$J$13,$B129,Bauteile!$J$11:$J$13) -> 0 | E129: 0
B130: 475 | C130: Feuerlöschanlagen | D130: =SUMIF(Bauteile!$E$11:$J$13,$B130,Bauteile!$J$11:$J$13) -> 0 | E130: 0
B131: 476 | C131: Badetechnische Anlagen | D131: =SUMIF(Bauteile!$E$11:$J$13,$B131,Bauteile!$J$11:$J$13) -> 0 | E131: 0
B132: 477 | C132: Prozesswärme-, kälte-, und luftanlagen | D132: =SUMIF(Bauteile!$E$11:$J$13,$B132,Bauteile!$J$11:$J$13) -> 0 | E132: 0
B133: 478 | C133: Entsorgungsanlagen | D133: =SUMIF(Bauteile!$E$11:$J$13,$B133,Bauteile!$J$11:$J$13) -> 0 | E133: 0
B134: 479 | C134: Nutzungsspezifische Anlagen, Sonstiges | D134: =SUMIF(Bauteile!$E$11:$J$13,$B134,Bauteile!$J$11:$J$13) -> 0 | E134: 0
B135: 480 | C135: Gebäudeautomation | D135: =SUM(D136:D142) -> 0 | E135: =SUM(E136:E142) -> 0
B136: 480 | C136: Gebäudeautomation - Eingaben 2. Ebene | D136: =SUMIF(Bauteile!$E$11:$J$13,$B136,Bauteile!$J$11:$J$13) -> 0 | E136: =ROUND(D136*1.19,2) -> 0
B137: 481 | C137: Automationssysteme | D137: =SUMIF(Bauteile!$E$11:$J$13,$B137,Bauteile!$J$11:$J$13) -> 0 | E137: =ROUND(D137*1.19,2) -> 0
B138: 482 | C138: Schaltschränke | D138: =SUMIF(Bauteile!$E$11:$J$13,$B138,Bauteile!$J$11:$J$13) -> 0 | E138: =ROUND(D138*1.19,2) -> 0
B139: 483 | C139: Management- und Bedieneinrichtungen | D139: =SUMIF(Bauteile!$E$11:$J$13,$B139,Bauteile!$J$11:$J$13) -> 0 | E139: 0
B140: 484 | C140: Raumautomationssysteme | D140: =SUMIF(Bauteile!$E$11:$J$13,$B140,Bauteile!$J$11:$J$13) -> 0 | E140: 0
B141: 485 | C141: Übertragungsnetze | D141: =SUMIF(Bauteile!$E$11:$J$13,$B141,Bauteile!$J$11:$J$13) -> 0 | E141: 0
B142: 489 | C142: Gebäudeautomation, Sonstiges | D142: =SUMIF(Bauteile!$E$11:$J$13,$B142,Bauteile!$J$11:$J$13) -> 0 | E142: 0
B143: 490 | C143: Sonstige Maßnahmen für technische Anlagen | D143: =SUM(D144:D153) -> 0 | E143: =SUM(E144:E153) -> 0
B144: 490 | C144: Sonstige Maßnahmen für technische Anlagen - Eingaben 2. Ebene | D144: =SUMIF(Bauteile!$E$11:$J$13,$B144,Bauteile!$J$11:$J$13) -> 0 | E144: =ROUND(D144*1.19,2) -> 0
B145: 491 | C145: Baustelleneinrichtung | D145: =SUMIF(Bauteile!$E$11:$J$13,$B145,Bauteile!$J$11:$J$13) -> 0 | E145: =ROUND(D145*1.19,2) -> 0
B146: 492 | C146: Gerüste | D146: =SUMIF(Bauteile!$E$11:$J$13,$B146,Bauteile!$J$11:$J$13) -> 0 | E146: =ROUND(D146*1.19,2) -> 0
B147: 493 | C147: Sicherungsmaßnahmen | D147: =SUMIF(Bauteile!$E$11:$J$13,$B147,Bauteile!$J$11:$J$13) -> 0 | E147: 0
B148: 494 | C148: Abbruchmaßnahmen | D148: =SUMIF(Bauteile!$E$11:$J$13,$B148,Bauteile!$J$11:$J$13) -> 0 | E148: 0
B149: 495 | C149: Instandsetzungen | D149: =SUMIF(Bauteile!$E$11:$J$13,$B149,Bauteile!$J$11:$J$13) -> 0 | E149: 0
B150: 496 | C150: Materialentsorgung | D150: =SUMIF(Bauteile!$E$11:$J$13,$B150,Bauteile!$J$11:$J$13) -> 0 | E150: 0
B151: 497 | C151: Zusätzliche Maßnahmen | D151: =SUMIF(Bauteile!$E$11:$J$13,$B151,Bauteile!$J$11:$J$13) -> 0 | E151: 0
B152: 498 | C152: Provisorische technische Anlagen | D152: =SUMIF(Bauteile!$E$11:$J$13,$B152,Bauteile!$J$11:$J$13) -> 0 | E152: 0
B153: 499 | C153: Sonstige Maßnahmen für technische Anlagen, Sonst. | D153: =SUMIF(Bauteile!$E$11:$J$13,$B153,Bauteile!$J$11:$J$13) -> 0 | E153: 0
B155: Kostengruppen (KG) nach DIN 276 | D155: in EURO netto | E155: in EURO brutto
B156: 500 | C156: Außenanlagen | D156: =D157+D158+D163+D173+D184+D195+D200+D205+D214 -> 0 | E156: =E157+E158+E163+E173+E184+E195+E200+E205+E214 -> 0
B157: 500 | C157: Außenanlagen - Eingaben 1. Ebene | D157: =SUMIF(Bauteile!$E$11:$J$13,$B157,Bauteile!$J$11:$J$13) -> 0 | E157: =ROUND(D157*1.19,2) -> 0
B158: 510 | C158: Geländeflächen | D158: =SUM(D159:D162) -> 0 | E158: =SUM(E159:E162) -> 0
B159: 510 | C159: Geländeflächen - Eingaben 2. Ebene | D159: =SUMIF(Bauteile!$E$11:$J$13,$B159,Bauteile!$J$11:$J$13) -> 0 | E159: =ROUND(D159*1.19,2) -> 0
B160: 511 | C160: Oberbodenarbeiten | D160: =SUMIF(Bauteile!$E$11:$J$13,#REF!,Bauteile!$J$11:$J$13) -> 0 | E160: =ROUND(D160*1.19,2) -> 0
B161: 512 | C161: Bodenarbeiten | D161: =SUMIF(Bauteile!$E$11:$J$13,#REF!,Bauteile!$J$11:$J$13) -> 0 | E161: 0
B162: 519 | C162: Geländeflächen, sonstiges | D162: =SUMIF(Bauteile!$E$11:$J$13,#REF!,Bauteile!$J$11:$J$13) -> 0 | E162: 0
B163: 520 | C163: Befestigte Flächen | D163: =SUM(D164:D172) -> 0 | E163: =SUM(E164:E172) -> 0
B164: 520 | C164: Befestigte Flächen - Eingaben 2. Ebene | D164: =SUMIF(Bauteile!$E$11:$J$13,$B164,Bauteile!$J$11:$J$13) -> 0 | E164: =ROUND(D164*1.19,2) -> 0
B165: 521 | C165: Wege | D165: =SUMIF(Bauteile!$E$11:$J$13,$B165,Bauteile!$J$11:$J$13) -> 0 | E165: =ROUND(D165*1.19,2) -> 0
B166: 522 | C166: Straßen | D166: =SUMIF(Bauteile!$E$11:$J$13,$B166,Bauteile!$J$11:$J$13) -> 0 | E166: 0
B167: 523 | C167: Plätze, Höfe | D167: =SUMIF(Bauteile!$E$11:$J$13,$B167,Bauteile!$J$11:$J$13) -> 0 | E167: 0
B168: 524 | C168: Stellplätze | D168: =SUMIF(Bauteile!$E$11:$J$13,$B168,Bauteile!$J$11:$J$13) -> 0 | E168: 0
B169: 525 | C169: Sportplatzflächen | D169: =SUMIF(Bauteile!$E$11:$J$13,$B169,Bauteile!$J$11:$J$13) -> 0 | E169: 0
B170: 526 | C170: Spielplatzflächen | D170: =SUMIF(Bauteile!$E$11:$J$13,$B170,Bauteile!$J$11:$J$13) -> 0 | E170: 0
B171: 527 | C171: Gleisanlagen | D171: =SUMIF(Bauteile!$E$11:$J$13,$B171,Bauteile!$J$11:$J$13) -> 0 | E171: 0
B172: 529 | C172: Befestigte Flächen, sonstiges | D172: =SUMIF(Bauteile!$E$11:$J$13,$B172,Bauteile!$J$11:$J$13) -> 0 | E172: 0
B173: 530 | C173: Baukonstruktionen in Außenanlagen | D173: =SUM(D174:D183) -> 0 | E173: =SUM(E174:E183) -> 0
B174: 530 | C174: Baukonstruktionen in Außenanlagen - Eingaben 2. Ebene | D174: =SUMIF(Bauteile!$E$11:$J$13,$B174,Bauteile!$J$11:$J$13) -> 0 | E174: =ROUND(D174*1.19,2) -> 0
B175: 531 | C175: Einfriedungen | D175: =SUMIF(Bauteile!$E$11:$J$13,$B175,Bauteile!$J$11:$J$13) -> 0 | E175: =ROUND(D175*1.19,2) -> 0
B176: 532 | C176: Schutzkonstruktionen | D176: =SUMIF(Bauteile!$E$11:$J$13,$B176,Bauteile!$J$11:$J$13) -> 0 | E176: 0
B177: 533 | C177: Mauern, Wände | D177: =SUMIF(Bauteile!$E$11:$J$13,$B177,Bauteile!$J$11:$J$13) -> 0 | E177: 0
B178: 534 | C178: Rampen, Treppen, Tribünen | D178: =SUMIF(Bauteile!$E$11:$J$13,$B178,Bauteile!$J$11:$J$13) -> 0 | E178: 0
B179: 535 | C179: Überdachungen | D179: =SUMIF(Bauteile!$E$11:$J$13,$B179,Bauteile!$J$11:$J$13) -> 0 | E179: 0
B180: 536 | C180: Brücken, Stege | D180: =SUMIF(Bauteile!$E$11:$J$13,$B180,Bauteile!$J$11:$J$13) -> 0 | E180: 0
B181: 537 | C181: Kanal- und Schachtbauanlagen | D181: =SUMIF(Bauteile!$E$11:$J$13,$B181,Bauteile!$J$11:$J$13) -> 0 | E181: 0
B182: 538 | C182: Wasserbauliche Anlagen | D182: =SUMIF(Bauteile!$E$11:$J$13,$B182,Bauteile!$J$11:$J$13) -> 0 | E182: 0
B183: 539 | C183: Baukonstruktionen in Außenanlagen, sonstiges | D183: =SUMIF(Bauteile!$E$11:$J$13,$B183,Bauteile!$J$11:$J$13) -> 0 | E183: 0
B184: 540 | C184: Technische Anlagen in Außenanlagen | D184: =SUM(D185:D194) -> 0 | E184: =SUM(E185:E194) -> 0
B185: 540 | C185: Technische Anlagen in Außenanlagen - Eingaben 2. Ebene | D185: =SUMIF(Bauteile!$E$11:$J$13,$B185,Bauteile!$J$11:$J$13) -> 0 | E185: =ROUND(D185*1.19,2) -> 0
B186: 541 | C186: Abwasseranlagen | D186: =SUMIF(Bauteile!$E$11:$J$13,$B186,Bauteile!$J$11:$J$13) -> 0 | E186: =ROUND(D186*1.19,2) -> 0
B187: 542 | C187: Wasseranlagen | D187: =SUMIF(Bauteile!$E$11:$J$13,$B187,Bauteile!$J$11:$J$13) -> 0 | E187: 0
B188: 543 | C188: Gasanlagen | D188: =SUMIF(Bauteile!$E$11:$J$13,$B188,Bauteile!$J$11:$J$13) -> 0 | E188: 0
B189: 544 | C189: Wärmeversorgungsanlagen | D189: =SUMIF(Bauteile!$E$11:$J$13,$B189,Bauteile!$J$11:$J$13) -> 0 | E189: 0
B190: 545 | C190: Lufttechnische Anlagen | D190: =SUMIF(Bauteile!$E$11:$J$13,$B190,Bauteile!$J$11:$J$13) -> 0 | E190: 0
B191: 546 | C191: Starkstromanlagen | D191: =SUMIF(Bauteile!$E$11:$J$13,$B191,Bauteile!$J$11:$J$13) -> 0 | E191: 0
B192: 547 | C192: Fernmelde- und informationstechnische Anlagen | D192: =SUMIF(Bauteile!$E$11:$J$13,$B192,Bauteile!$J$11:$J$13) -> 0 | E192: 0
B193: 548 | C193: Nutzungsspezifische Anlagen | D193: =SUMIF(Bauteile!$E$11:$J$13,$B193,Bauteile!$J$11:$J$13) -> 0 | E193: 0
B194: 549 | C194: Technische Anlagen in Außenanlagen, sonstiges | D194: =SUMIF(Bauteile!$E$11:$J$13,$B194,Bauteile!$J$11:$J$13) -> 0 | E194: 0
B195: 550 | C195: Einbauten in Außenanlagen | D195: =SUM(D196:D199) -> 0 | E195: =SUM(E196:E199) -> 0
B196: 550 | C196: Einbauten in Außenanlagen - Eingaben 2. Ebene | D196: =SUMIF(Bauteile!$E$11:$J$13,$B196,Bauteile!$J$11:$J$13) -> 0 | E196: =ROUND(D196*1.19,2) -> 0
B197: 551 | C197: Allgemeine Einbauten | D197: =SUMIF(Bauteile!$E$11:$J$13,$B197,Bauteile!$J$11:$J$13) -> 0 | E197: =ROUND(D197*1.19,2) -> 0
B198: 552 | C198: Besondere Einbauten | D198: =SUMIF(Bauteile!$E$11:$J$13,$B198,Bauteile!$J$11:$J$13) -> 0 | E198: 0
B199: 559 | C199: Einbauten in Außenanlagen, sonstiges | D199: =SUMIF(Bauteile!$E$11:$J$13,$B199,Bauteile!$J$11:$J$13) -> 0 | E199: 0
B200: 560 | C200: Wasserflächen | D200: =SUM(D201:D204) -> 0 | E200: =SUM(E201:E204) -> 0
B201: 560 | C201: Wasserflächen - Eingaben 2. Ebene | D201: =SUMIF(Bauteile!$E$11:$J$13,$B201,Bauteile!$J$11:$J$13) -> 0 | E201: =ROUND(D201*1.19,2) -> 0
B202: 561 | C202: Abdichtungen | D202: =SUMIF(Bauteile!$E$11:$J$13,$B202,Bauteile!$J$11:$J$13) -> 0 | E202: =ROUND(D202*1.19,2) -> 0
B203: 562 | C203: Bepflanzungen | D203: =SUMIF(Bauteile!$E$11:$J$13,$B203,Bauteile!$J$11:$J$13) -> 0 | E203: 0
B204: 569 | C204: Wasserflächen, sonstiges | D204: =SUMIF(Bauteile!$E$11:$J$13,$B204,Bauteile!$J$11:$J$13) -> 0 | E204: 0
... 20 more rows

Sheet Bauteile
A1: Berechnung LCC nach BNB BN 2.1.1 v2011 Eingabe Bauteile | E1: BBR-LCC Ver. 15-1 BBR A1
A2: Projekt: | C2: =IF(ISTEXT(Projekt),Projekt,"") -> 
A3: Stand: | C3: =IF(ISNUMBER(LCC_Stand),LCC_Stand,"") -> 
A5: Bauteil | E5: Grunddaten | J5: Herstellkosten | P5: Nutzungsdauer | W5: regelmäßige Kosten (Kontrolle) | Z5: regelmäßige Kosten | AG5: Berechnung | AS5: Barwert | AT5: Barwert | AW5: Barwert | AX5: Barwert | AY5: Barwert | AZ5: Barwert | BA5: Barwert | BB5: Barwert | BC5: Barwert | BD5: Barwert | BE5: Barwert | BF5: Barwert | BG5: Barwert | BH5: Barwert | BI5: Barwert | BJ5: Barwert | BK5: Barwert | BL5: Barwert | BM5: Barwert | BN5: Barwert | BO5: Barwert | BP5: Barwert | BQ5: Barwert | BR5: Barwert | BS5: Barwert | BT5: Barwert | BU5: Barwert | BV5: Barwert | BW5: Barwert | BX5: Barwert | BY5: Barwert | BZ5: Barwert | CA5: Barwert | CB5: Barwert | CC5: Barwert | CD5: Barwert | CE5: Barwert | CF5: Barwert | CG5: Barwert | CH5: Barwert | CI5: Barwert | CJ5: Barwert | CK5: Barwert | CL5: Barwert | CM5: Barwert | CN5: Barwert | CO5: Barwert | CP5: Barwert | CQ5: Barwert | CR5: Barwert | CS5: Barwert | CT5: Barwert | CU5: Barwert | CV5: Barwert | CW5: Barwert | CX5: Barwert | CY5: Barwert | CZ5: Barwert | DA5: Barwert | DB5: Barwert | DC5: Barwert | DD5: Barwert | DE5: Barwert | DF5: Barwert | DG5: Barwert | DH5: Barwert | DI5: Barwert | DJ5: Barwert | DK5: Barwert | DL5: Barwert | DM5: Barwert | DN5: Barwert | DO5: Barwert | DP5: Barwert | DQ5: Barwert | DR5: Barwert | DS5: Barwert | DT5: Barwert | DU5: Barwert | DV5: Barwert | DW5: Barwert | DX5: Barwert | DY5: Barwert | DZ5: Barwert | EA5: Barwert | EB5: Barwert | EC5: Barwert | ED5: Barwert | EE5: Barwert | EF5: Barwert | EG5: Barwert | EH5: Barwert | EI5: Barwert | EJ5: Barwert | EK5: Barwert | EL5: Barwert | EM5: Barwert | EN5: Barwert | EO5: Barwert | EP5: Barwert | EQ5: Barwert | ER5: Barwert | ES5: Barwert | ET5: Barwert | EU5: Barwert | EV5: Barwert | EW5: Barwert | EX5: Barwert | EY5: Barwert | EZ5: Barwert | FA5: Barwert | FB5: Barwert | FC5: Barwert | FD5: Barwert | FE5: Barwert | FF5: Barwert | FG5: Barwert | FH5: Barwert | FI5: Barwert | FJ5: Barwert | FK5: Barwert | FL5: Barwert | FM5: Barwert | FN5: Barwert | FO5: Barwert | FP5: Barwert | FQ5: Barwert | FR5: Barwert | FS5: Barwert | FT5: Barwert | FU5: Barwert | FV5: Barwert | FW5: Barwert | FX5: Barwert | FY5: Barwert | FZ5: Barwert | GA5: Barwert | GB5: Barwert | GC5: Barwert | GD5: Barwert | GE5: Barwert | GF5: Barwert | GG5: Barwert | GH5: Barwert | GI5: Barwert | GJ5: Barwert | GK5: Barwert | GL5: Barwert | GM5: Barwert | GN5: Barwert | GO5: Barwert | GP5: Barwert | GQ5: Barwert | GR5: Barwert | GS5: Barwert | GT5: Barwert | GU5: Barwert | GV5: Barwert | GW5: Barwert | GX5: Barwert | GY5: Barwert | GZ5: Barwert | HA5: Barwert | HB5: Barwert | HC5: Barwert | HD5: Barwert | HE5: Barwert | HF5: Barwert | HG5: Barwert | HH5: Barwert | HI5: Barwert | HJ5: Barwert | HK5: Barwert | HL5: Barwert | HM5: Barwert | HN5: Barwert | HO5: Barwert | HP5: Barwert | HQ5: Barwert | HR5: Barwert | HS5: Barwert | HT5: Barwert | HU5: Barwert | HV5: Barwert | HW5: Barwert | HX5: Barwert | HY5: Barwert | HZ5: Barwert | IA5: Barwert | IB5: Barwert | IC5: Barwert | ID5: Barwert | IE5: Barwert | IF5: Barwert | IG5: Barwert | IH5: Barwert | II5: Barwert | IJ5: Barwert | IK5: Barwert | IL5: Barwert | IM5: Barwert | IN5: Barwert | IO5: Barwert | IP5: Barwert | IQ5: Barwert | IR5: Barwert | IS5: Barwert | IT5: Barwert | IU5: Barwert | IV5: Barwert | IW5: Barwert | IX5: Barwert | IY5: Barwert | IZ5: Barwert | JA5: Barwert | JB5: Barwert | JC5: Barwert | JD5: Barwert | JE5: Barwert | JF5: Barwert | JG5: Barwert | JH5: Barwert | JI5: Barwert | JJ5: Barwert | JK5: Barwert | JL5: Barwert | JM5: Barwert | JN5: Barwert | JO5: Barwert | JP5: Barwert | JQ5: Barwert | JR5: Barwert | JS5: Barwert | JT5: Barwert | JU5: Barwert | JV5: Barwert | JW5: Barwert | JX5: Barwert | JY5: Barwert | JZ5: Barwert | KA5: Barwert | KB5: Barwert | KC5: Barwert | KD5: Barwert | KE5: Barwert | KG5: Barwert | KH5: Barwert | KI5: Barwert | KJ5: Barwert | KK5: Barwert | KL5: Barwert | KM5: Barwert | KN5: Barwert | KO5: Barwert | KP5: Barwert | KQ5: Barwert | KR5: Barwert | KS5: Barwert | KT5: Barwert | KU5: Barwert | KV5: Barwert | KW5: Barwert | KX5: Barwert | KY5: Barwert | KZ5: Barwert | LA5: Barwert | LB5: Barwert | LC5: Barwert | LD5: Barwert | LE5: Barwert | LF5: Barwert | LG5: Barwert | LH5: Barwert | LI5: Barwert | LJ5: Barwert | LK5: Barwert | LL5: Barwert | LM5: Barwert | LN5: Barwert | LO5: Barwert | LP5: Barwert | LQ5: Barwert | LR5: Barwert | LS5: Barwert | LT5: Barwert | LU5: Barwert | LV5: Barwert | LW5: Barwert | LX5: Barwert | LY5: Barwert | LZ5: Barwert | MA5: Barwert | MB5: Barwert | MC5: Barwert | MD5: Barwert | ME5: Barwert | MF5: Barwert | MG5: Barwert | MH5: Barwert | MI5: Barwert | MJ5: Barwert | MK5: Barwert | ML5: Barwert | MM5: Barwert | MN5: Barwert | MO5: Barwert | MP5: Barwert | MQ5: Barwert | MR5: Barwert | MS5: Barwert | MT5: Barwert | MU5: Barwert | MV5: Barwert | MW5: Barwert | MX5: Barwert | MY5: Barwert | MZ5: Barwert | NA5: Barwert | NB5: Barwert | NC5: Barwert | ND5: Barwert | NE5: Barwert | NF5: Barwert | NG5: Barwert | NH5: Barwert | NI5: Barwert | NJ5: Barwert | NK5: Barwert | NL5: Barwert | NM5: Barwert | NN5: Barwert | NO5: Barwert | NP5: Barwert | NQ5: Barwert | NR5: Barwert | NS5: Barwert | NT5: Barwert | NU5: Barwert | NV5: Barwert | NW5: Barwert | NX5: Barwert | NY5: Barwert | NZ5: Barwert | OA5: Barwert | OB5: Barwert | OC5: Barwert | OD5: Barwert | OE5: Barwert | OF5: Barwert | OG5: Barwert | OH5: Barwert | OI5: Barwert | OJ5: Barwert | OK5: Barwert | OL5: Barwert | OM5: Barwert | ON5: Barwert | OO5: Barwert | OP5: Barwert | OQ5: Barwert | OR5: Barwert | OS5: Barwert | OT5: Barwert | OU5: Barwert | OV5: Barwert | OW5: Barwert | OX5: Barwert | OY5: Barwert | OZ5: Barwert | PA5: Barwert | PB5: Barwert | PC5: Barwert | PD5: Barwert | PE5: Barwert | PF5: Barwert | PG5: Barwert | PH5: Barwert | PI5: Barwert | PJ5: Barwert | PK5: Barwert | PL5: Barwert | PM5: Barwert | PN5: Barwert | PO5: Barwert | PP5: Barwert | PQ5: Barwert | PR5: Barwert | PS5: Barwert | PT5: Barwert | PU5: Barwert | PV5: Barwert | PW5: Barwert | PX5: Barwert | PY5: Barwert | PZ5: Barwert | QA5: Barwert | QB5: Barwert | QC5: Barwert | QD5: Barwert | QE5: Barwert | QF5: Barwert | QG5: Barwert | QH5: Barwert | QI5: Barwert | QJ5: Barwert | QK5: Barwert | QL5: Barwert | QM5: Barwert | QN5: Barwert | QO5: Barwert | QP5: Barwert | QQ5: Barwert | QR5: Barwert | QS5: Barwert | QT5: Barwert | QU5: Barwert | QV5: Barwert | QW5: Barwert | QX5: Barwert | QY5: Barwert | QZ5: Barwert | RA5: Barwert | RB5: Barwert | RC5: Barwert | RD5: Barwert | RE5: Barwert | RF5: Barwert | RG5: Barwert | RH5: Barwert | RI5: Barwert | RJ5: Barwert | RK5: Barwert | RL5: Barwert | RM5: Barwert | RN5: Barwert | RO5: Barwert | RP5: Barwert | RQ5: Barwert | RR5: Barwert | RS5: Barwert | RT5: Barwert | RU5: Barwert | RV5: Barwert | RW5: Barwert | RX5: Barwert | RY5: Barwert | RZ5: Barwert | SA5: Barwert | SB5: Barwert | SC5: Barwert | SD5: Barwert | SE5: Barwert | SF5: Barwert | SG5: Barwert | SH5: Barwert | SI5: Barwert | SJ5: Barwert | SK5: Barwert | SL5: Barwert | SM5: Barwert | SN5: Barwert | SO5: Barwert | SP5: Barwert | SQ5: Barwert | SR5: Barwert | SS5: Barwert | ST5: Barwert | SU5: Barwert | SV5: Barwert | SW5: Barwert | SX5: Barwert | SY5: Barwert | SZ5: Barwert | TA5: Barwert | TB5: Barwert | TC5: Barwert | TD5: Barwert | TE5: Barwert | TF5: Barwert | TG5: Barwert | TH5: Barwert | TI5: Barwert | TJ5: Barwert | TK5: Barwert | TL5: Barwert | TM5: Barwert | TN5: Barwert | TO5: Barwert | TQ5: Barwert | TR5: Barwert | TS5: Barwert | TT5: Barwert | TU5: Barwert | TV5: Barwert | TW5: Barwert | TX5: Barwert | TY5: Barwert | TZ5: Barwert | UA5: Barwert | UB5: Barwert | UC5: Barwert | UD5: Barwert | UE5: Barwert | UF5: Barwert | UG5: Barwert | UH5: Barwert | UI5: Barwert | UJ5: Barwert | UK5: Barwert | UL5: Barwert | UM5: Barwert | UN5: Barwert | UO5: Barwert | UP5: Barwert | UQ5: Barwert | UR5: Barwert | US5: Barwert | UT5: Barwert | UU5: Barwert | UV5: Barwert | UW5: Barwert | UX5: Barwert | UY5: Barwert | UZ5: Barwert | VA5: Barwert | VB5: Barwert | VC5: Barwert | VD5: Barwert | VE5: Barwert | VF5: Barwert | VG5: Barwert | VH5: Barwert | VI5: Barwert | VJ5: Barwert | VK5: Barwert | VL5: Barwert | VM5: Barwert | VN5: Barwert | VO5: Barwert | VP5: Barwert | VQ5: Barwert | VR5: Barwert | VS5: Barwert | VT5: Barwert | VU5: Barwert | VV5: Barwert | VW5: Barwert | VX5: Barwert | VY5: Barwert | VZ5: Barwert | WA5: Barwert | WB5: Barwert | WC5: Barwert | WD5: Barwert | WE5: Barwert | WF5: Barwert | WG5: Barwert | WH5: Barwert | WI5: Barwert | WJ5: Barwert | WK5: Barwert | WL5: Barwert | WM5: Barwert | WN5: Barwert | WO5: Barwert | WP5: Barwert | WQ5: Barwert | WR5: Barwert | WS5: Barwert | WT5: Barwert | WU5: Barwert | WV5: Barwert | WW5: Barwert | WX5: Barwert | WY5: Barwert | WZ5: Barwert | XA5: Barwert | XB5: Barwert | XC5: Barwert | XD5: Barwert | XE5: Barwert | XF5: Barwert | XG5: Barwert | XH5: Barwert | XI5: Barwert | XJ5: Barwert | XK5: Barwert | XL5: Barwert | XM5: Barwert | XN5: Barwert | XO5: Barwert | XP5: Barwert | XQ5: Barwert | XR5: Barwert | XS5: Barwert | XT5: Barwert | XU5: Barwert | XV5: Barwert | XW5: Barwert | XX5: Barwert | XY5: Barwert | XZ5: Barwert | YA5: Barwert | YB5: Barwert | YC5: Barwert | YD5: Barwert | YE5: Barwert | YF5: Barwert | YG5: Barwert | YH5: Barwert | YI5: Barwert | YJ5: Barwert | YK5: Barwert | YL5: Barwert | YM5: Barwert | YN5: Barwert | YO5: Barwert | YP5: Barwert | YQ5: Barwert | YR5: Barwert | YS5: Barwert | YT5: Barwert | YU5: Barwert | YV5: Barwert | YW5: Barwert | YX5: Barwert | YY5: Barwert | YZ5: Barwert | ZA5: Barwert | ZB5: Barwert | ZC5: Barwert | ZD5: Barwert | ZE5: Barwert | ZF5: Barwert | ZG5: Barwert | ZH5: Barwert | ZI5: Barwert | ZJ5: Barwert | ZK5: Barwert | ZL5: Barwert | ZM5: Barwert | ZN5: Barwert | ZO5: Barwert | ZP5: Barwert | ZQ5: Barwert | ZR5: Barwert | ZS5: Barwert | ZT5: Barwert | ZU5: Barwert | ZV5: Barwert | ZW5: Barwert | ZX5: Barwert | ZY5: Barwert | ZZ5: Barwert | AAA5: Barwert | AAB5: Barwert | AAC5: Barwert | AAD5: Barwert | AAE5: Barwert | AAF5: Barwert | AAG5: Barwert | AAH5: Barwert | AAI5: Barwert | AAJ5: Barwert | AAK5: Barwert | AAL5: Barwert | AAM5: Barwert | AAN5: Barwert | AAO5: Barwert | AAP5: Barwert | AAQ5: Barwert | AAR5: Barwert | AAS5: Barwert | AAT5: Barwert | AAU5: Barwert | AAV5: Barwert | AAW5: Barwert | AAX5: Barwert | AAY5: Barwert | AAZ5: Barwert | ABA5: Barwert | ABB5: Barwert | ABC5: Barwert | ABD5: Barwert | ABE5: Barwert | ABF5: Barwert | ABG5: Barwert | ABH5: Barwert | ABI5: Barwert | ABJ5: Barwert | ABK5: Barwert | ABL5: Barwert | ABM5: Barwert | ABN5: Barwert | ABO5: Barwert | ABP5: Barwert | ABQ5: Barwert | ABR5: Barwert | ABS5: Barwert | ABT5: Barwert | ABU5: Barwert | ABV5: Barwert | ABW5: Barwert | ABX5: Barwert | ABY5: Barwert | ABZ5: Barwert | ACA5: Barwert | ACB5: Barwert | ACC5: Barwert | ACD5: Barwert | ACE5: Barwert | ACF5: Barwert | ACG5: Barwert | ACH5: Barwert | ACI5: Barwert | ACJ5: Barwert | ACK5: Barwert | ACL5: Barwert | ACM5: Barwert | ACN5: Barwert | ACO5: Barwert | ACP5: Barwert | ACQ5: Barwert | ACR5: Barwert | ACS5: Barwert | ACT5: Barwert | ACU5: Barwert | ACV5: Barwert | ACW5: Barwert | ACX5: Barwert | ACY5: Barwert
A6: Nr. | B6: OZ | C6: Bezeichnung | D6: Einbauort | E6: Kostengruppe | G6: Relevanz | I6: Kommentar | J6: GP netto | K6: GP netto indiziert für LCC | M6: Menge | N6: Einheit | O6: EP | S6: Auswahl Datensatz | U6: Handeingabe | X6: Absolut | Z6: Summe | AA6: Auswahl Datensatz | AD6: Handeingabe | AG6: Erstherstellung | AJ6: Herstellkosten für Folgekosten | AM6: Inspektion und Wartung | AP6: regelmäßige Instandsetzung | AS6: Gesamt | AT6: Gesamt | AW6: Ersatzinvestitionen | AX6: Ersatzinvestitionen | AY6: Ersatzinvestitionen | AZ6: Ersatzinvestitionen | BA6: Ersatzinvestitionen | BB6: Ersatzinvestitionen | BC6: Ersatzinvestitionen | BD6: Ersatzinvestitionen | BE6: Ersatzinvestitionen | BF6: Ersatzinvestitionen | BG6: Ersatzinvestitionen | BH6: Ersatzinvestitionen | BI6: Ersatzinvestitionen | BJ6: Ersatzinvestitionen | BK6: Ersatzinvestitionen | BL6: Ersatzinvestitionen | BM6: Ersatzinvestitionen | BN6: Ersatzinvestitionen | BO6: Ersatzinvestitionen | BP6: Ersatzinvestitionen | BQ6: Ersatzinvestitionen | BR6: Ersatzinvestitionen | BS6: Ersatzinvestitionen | BT6: Ersatzinvestitionen | BU6: Ersatzinvestitionen | BV6: Ersatzinvestitionen | BW6: Ersatzinvestitionen | BX6: Ersatzinvestitionen | BY6: Ersatzinvestitionen | BZ6: Ersatzinvestitionen | CA6: Ersatzinvestitionen | CB6: Ersatzinvestitionen | CC6: Ersatzinvestitionen | CD6: Ersatzinvestitionen | CE6: Ersatzinvestitionen | CF6: Ersatzinvestitionen | CG6: Ersatzinvestitionen | CH6: Ersatzinvestitionen | CI6: Ersatzinvestitionen | CJ6: Ersatzinvestitionen | CK6: Ersatzinvestitionen | CL6: Ersatzinvestitionen | CM6: Ersatzinvestitionen | CN6: Ersatzinvestitionen | CO6: Ersatzinvestitionen | CP6: Ersatzinvestitionen | CQ6: Ersatzinvestitionen | CR6: Ersatzinvestitionen | CS6: Ersatzinvestitionen | CT6: Ersatzinvestitionen | CU6: Ersatzinvestitionen | CV6: Ersatzinvestitionen | CW6: Ersatzinvestitionen | CX6: Ersatzinvestitionen | CY6: Ersatzinvestitionen | CZ6: Ersatzinvestitionen | DA6: Ersatzinvestitionen | DB6: Ersatzinvestitionen | DC6: Ersatzinvestitionen | DD6: Ersatzinvestitionen | DE6: Ersatzinvestitionen | DF6: Ersatzinvestitionen | DG6: Ersatzinvestitionen | DH6: Ersatzinvestitionen | DI6: Ersatzinvestitionen | DJ6: Ersatzinvestitionen | DK6: Ersatzinvestitionen | DL6: Ersatzinvestitionen | DM6: Ersatzinvestitionen | DN6: Ersatzinvestitionen | DO6: Ersatzinvestitionen | DP6: Ersatzinvestitionen | DQ6: Ersatzinvestitionen | DR6: Ersatzinvestitionen | DS6: Ersatzinvestitionen | DT6: Ersatzinvestitionen | DU6: Ersatzinvestitionen | DV6: Ersatzinvestitionen | DW6: Ersatzinvestitionen | DX6: Ersatzinvestitionen | DY6: Ersatzinvestitionen | DZ6: Ersatzinvestitionen | EA6: Ersatzinvestitionen | EB6: Ersatzinvestitionen | EC6: Ersatzinvestitionen | ED6: Ersatzinvestitionen | EE6: Ersatzinvestitionen | EF6: Ersatzinvestitionen | EG6: Ersatzinvestitionen | EH6: Ersatzinvestitionen | EI6: Ersatzinvestitionen | EJ6: Ersatzinvestitionen | EK6: Ersatzinvestitionen | EL6: Ersatzinvestitionen | EM6: Ersatzinvestitionen | EN6: Ersatzinvestitionen | EO6: Ersatzinvestitionen | EP6: Ersatzinvestitionen | EQ6: Ersatzinvestitionen | ER6: Ersatzinvestitionen | ES6: Ersatzinvestitionen | ET6: Ersatzinvestitionen | EU6: Ersatzinvestitionen | EV6: Ersatzinvestitionen | EW6: Ersatzinvestitionen | EX6: Ersatzinvestitionen | EY6: Ersatzinvestitionen | EZ6: Ersatzinvestitionen | FA6: Ersatzinvestitionen | FB6: Ersatzinvestitionen | FC6: Ersatzinvestitionen | FD6: Ersatzinvestitionen | FE6: Ersatzinvestitionen | FF6: Ersatzinvestitionen | FG6: Ersatzinvestitionen | FH6: Ersatzinvestitionen | FI6: Ersatzinvestitionen | FJ6: Ersatzinvestitionen | FK6: Ersatzinvestitionen | FL6: Ersatzinvestitionen | FM6: Ersatzinvestitionen | FN6: Ersatzinvestitionen | FO6: Ersatzinvestitionen | FP6: Ersatzinvestitionen | FQ6: Ersatzinvestitionen | FR6: Ersatzinvestitionen | FS6: Ersatzinvestitionen | FT6: Ersatzinvestitionen | FU6: Ersatzinvestitionen | FV6: Ersatzinvestitionen | FW6: Ersatzinvestitionen | FX6: Ersatzinvestitionen | FY6: Ersatzinvestitionen | FZ6: Ersatzinvestitionen | GA6: Ersatzinvestitionen | GB6: Ersatzinvestitionen | GC6: Ersatzinvestitionen | GD6: Ersatzinvestitionen | GE6: Ersatzinvestitionen | GF6: Ersatzinvestitionen | GG6: Ersatzinvestitionen | GH6: Ersatzinvestitionen | GI6: Ersatzinvestitionen | GJ6: Ersatzinvestitionen | GK6: Ersatzinvestitionen | GL6: Ersatzinvestitionen | GM6: Ersatzinvestitionen | GN6: Ersatzinvestitionen | GO6: Ersatzinvestitionen | GP6: Ersatzinvestitionen | GQ6: Ersatzinvestitionen | GR6: Ersatzinvestitionen | GS6: Ersatzinvestitionen | GT6: Ersatzinvestitionen | GU6: Ersatzinvestitionen | GV6: Ersatzinvestitionen | GW6: Ersatzinvestitionen | GX6: Ersatzinvestitionen | GY6: Ersatzinvestitionen | GZ6: Ersatzinvestitionen | HA6: Ersatzinvestitionen | HB6: Ersatzinvestitionen | HC6: Ersatzinvestitionen | HD6: Ersatzinvestitionen | HE6: Ersatzinvestitionen | HF6: Ersatzinvestitionen | HG6: Ersatzinvestitionen | HH6: Ersatzinvestitionen | HI6: Ersatzinvestitionen | HJ6: Ersatzinvestitionen | HK6: Ersatzinvestitionen | HL6: Ersatzinvestitionen | HM6: Ersatzinvestitionen | HN6: Ersatzinvestitionen | HO6: Ersatzinvestitionen | HP6: Ersatzinvestitionen | HQ6: Ersatzinvestitionen | HR6: Ersatzinvestitionen | HS6: Ersatzinvestitionen | HT6: Ersatzinvestitionen | HU6: Ersatzinvestitionen | HV6: Ersatzinvestitionen | HW6: Ersatzinvestitionen | HX6: Ersatzinvestitionen | HY6: Ersatzinvestitionen | HZ6: Ersatzinvestitionen | IA6: Ersatzinvestitionen | IB6: Ersatzinvestitionen | IC6: Ersatzinvestitionen | ID6: Ersatzinvestitionen | IE6: Ersatzinvestitionen | IF6: Ersatzinvestitionen | IG6: Ersatzinvestitionen | IH6: Ersatzinvestitionen | II6: Ersatzinvestitionen | IJ6: Ersatzinvestitionen | IK6: Ersatzinvestitionen | IL6: Ersatzinvestitionen | IM6: Ersatzinvestitionen | IN6: Ersatzinvestitionen | IO6: Ersatzinvestitionen | IP6: Ersatzinvestitionen | IQ6: Ersatzinvestitionen | IR6: Ersatzinvestitionen | IS6: Ersatzinvestitionen | IT6: Ersatzinvestitionen | IU6: Ersatzinvestitionen | IV6: Ersatzinvestitionen | IW6: Ersatzinvestitionen | IX6: Ersatzinvestitionen | IY6: Ersatzinvestitionen | IZ6: Ersatzinvestitionen | JA6: Ersatzinvestitionen | JB6: Ersatzinvestitionen | JC6: Ersatzinvestitionen | JD6: Ersatzinvestitionen | JE6: Ersatzinvestitionen | JF6: Ersatzinvestitionen | JG6: Ersatzinvestitionen | JH6: Ersatzinvestitionen | JI6: Ersatzinvestitionen | JJ6: Ersatzinvestitionen | JK6: Ersatzinvestitionen | JL6: Ersatzinvestitionen | JM6: Ersatzinvestitionen | JN6: Ersatzinvestitionen | JO6: Ersatzinvestitionen | JP6: Ersatzinvestitionen | JQ6: Ersatzinvestitionen | JR6: Ersatzinvestitionen | JS6: Ersatzinvestitionen | JT6: Ersatzinvestitionen | JU6: Ersatzinvestitionen | JV6: Ersatzinvestitionen | JW6: Ersatzinvestitionen | JX6: Ersatzinvestitionen | JY6: Ersatzinvestitionen | JZ6: Ersatzinvestitionen | KA6: Ersatzinvestitionen | KB6: Ersatzinvestitionen | KC6: Ersatzinvestitionen | KD6: Ersatzinvestitionen | KE6: Ersatzinvestitionen | KG6: Inspektion und Wartung | KH6: Inspektion und Wartung | KI6: Inspektion und Wartung | KJ6: Inspektion und Wartung | KK6: Inspektion und Wartung | KL6: Inspektion und Wartung | KM6: Inspektion und Wartung | KN6: Inspektion und Wartung | KO6: Inspektion und Wartung | KP6: Inspektion und Wartung | KQ6: Inspektion und Wartung | KR6: Inspektion und Wartung | KS6: Inspektion und Wartung | KT6: Inspektion und Wartung | KU6: Inspektion und Wartung | KV6: Inspektion und Wartung | KW6: Inspektion und Wartung | KX6: Inspektion und Wartung | KY6: Inspektion und Wartung | KZ6: Inspektion und Wartung | LA6: Inspektion und Wartung | LB6: Inspektion und Wartung | LC6: Inspektion und Wartung | LD6: Inspektion und Wartung | LE6: Inspektion und Wartung | LF6: Inspektion und Wartung | LG6: Inspektion und Wartung | LH6: Inspektion und Wartung | LI6: Inspektion und Wartung | LJ6: Inspektion und Wartung | LK6: Inspektion und Wartung | LL6: Inspektion und Wartung | LM6: Inspektion und Wartung | LN6: Inspektion und Wartung | LO6: Inspektion und Wartung | LP6: Inspektion und Wartung | LQ6: Inspektion und Wartung | LR6: Inspektion und Wartung | LS6: Inspektion und Wartung | LT6: Inspektion und Wartung | LU6: Inspektion und Wartung | LV6: Inspektion und Wartung | LW6: Inspektion und Wartung | LX6: Inspektion und Wartung | LY6: Inspektion und Wartung | LZ6: Inspektion und Wartung | MA6: Inspektion und Wartung | MB6: Inspektion und Wartung | MC6: Inspektion und Wartung | MD6: Inspektion und Wartung | ME6: Inspektion und Wartung | MF6: Inspektion und Wartung | MG6: Inspektion und Wartung | MH6: Inspektion und Wartung | MI6: Inspektion und Wartung | MJ6: Inspektion und Wartung | MK6: Inspektion und Wartung | ML6: Inspektion und Wartung | MM6: Inspektion und Wartung | MN6: Inspektion und Wartung | MO6: Inspektion und Wartung | MP6: Inspektion und Wartung | MQ6: Inspektion und Wartung | MR6: Inspektion und Wartung | MS6: Inspektion und Wartung | MT6: Inspektion und Wartung | MU6: Inspektion und Wartung | MV6: Inspektion und Wartung | MW6: Inspektion und Wartung | MX6: Inspektion und Wartung | MY6: Inspektion und Wartung | MZ6: Inspektion und Wartung | NA6: Inspektion und Wartung | NB6: Inspektion und Wartung | NC6: Inspektion und Wartung | ND6: Inspektion und Wartung | NE6: Inspektion und Wartung | NF6: Inspektion und Wartung | NG6: Inspektion und Wartung | NH6: Inspektion und Wartung | NI6: Inspektion und Wartung | NJ6: Inspektion und Wartung | NK6: Inspektion und Wartung | NL6: Inspektion und Wartung | NM6: Inspektion und Wartung | NN6: Inspektion und Wartung | NO6: Inspektion und Wartung | NP6: Inspektion und Wartung | NQ6: Inspektion und Wartung | NR6: Inspektion und Wartung | NS6: Inspektion und Wartung | NT6: Inspektion und Wartung | NU6: Inspektion und Wartung | NV6: Inspektion und Wartung | NW6: Inspektion und Wartung | NX6: Inspektion und Wartung | NY6: Inspektion und Wartung | NZ6: Inspektion und Wartung | OA6: Inspektion und Wartung | OB6: Inspektion und Wartung | OC6: Inspektion und Wartung | OD6: Inspektion und Wartung | OE6: Inspektion und Wartung | OF6: Inspektion und Wartung | OG6: Inspektion und Wartung | OH6: Inspektion und Wartung | OI6: Inspektion und Wartung | OJ6: Inspektion und Wartung | OK6: Inspektion und Wartung | OL6: Inspektion und Wartung | OM6: Inspektion und Wartung | ON6: Inspektion und Wartung | OO6: Inspektion und Wartung | OP6: Inspektion und Wartung | OQ6: Inspektion und Wartung | OR6: Inspektion und Wartung | OS6: Inspektion und Wartung | OT6: Inspektion und Wartung | OU6: Inspektion und Wartung | OV6: Inspektion und Wartung | OW6: Inspektion und Wartung | OX6: Inspektion und Wartung | OY6: Inspektion und Wartung | OZ6: Inspektion und Wartung | PA6: Inspektion und Wartung | PB6: Inspektion und Wartung | PC6: Inspektion und Wartung | PD6: Inspektion und Wartung | PE6: Inspektion und Wartung | PF6: Inspektion und Wartung | PG6: Inspektion und Wartung | PH6: Inspektion und Wartung | PI6: Inspektion und Wartung | PJ6: Inspektion und Wartung | PK6: Inspektion und Wartung | PL6: Inspektion und Wartung | PM6: Inspektion und Wartung | PN6: Inspektion und Wartung | PO6: Inspektion und Wartung | PP6: Inspektion und Wartung | PQ6: Inspektion und Wartung | PR6: Inspektion und Wartung | PS6: Inspektion und Wartung | PT6: Inspektion und Wartung | PU6: Inspektion und Wartung | PV6: Inspektion und Wartung | PW6: Inspektion und Wartung | PX6: Inspektion und Wartung | PY6: Inspektion und Wartung | PZ6: Inspektion und Wartung | QA6: Inspektion und Wartung | QB6: Inspektion und Wartung | QC6: Inspektion und Wartung | QD6: Inspektion und Wartung | QE6: Inspektion und Wartung | QF6: Inspektion und Wartung | QG6: Inspektion und Wartung | QH6: Inspektion und Wartung | QI6: Inspektion und Wartung | QJ6: Inspektion und Wartung | QK6: Inspektion und Wartung | QL6: Inspektion und Wartung | QM6: Inspektion und Wartung | QN6: Ersatzinvestitionen | QO6: Ersatzinvestitionen | QP6: Ersatzinvestitionen | QQ6: Ersatzinvestitionen | QR6: Ersatzinvestitionen | QS6: Ersatzinvestitionen | QT6: Ersatzinvestitionen | QU6: Ersatzinvestitionen | QV6: Ersatzinvestitionen | QW6: Ersatzinvestitionen | QX6: Ersatzinvestitionen | QY6: Ersatzinvestitionen | QZ6: Ersatzinvestitionen | RA6: Ersatzinvestitionen | RB6: Ersatzinvestitionen | RC6: Ersatzinvestitionen | RD6: Ersatzinvestitionen | RE6: Ersatzinvestitionen | RF6: Ersatzinvestitionen | RG6: Ersatzinvestitionen | RH6: Ersatzinvestitionen | RI6: Ersatzinvestitionen | RJ6: Ersatzinvestitionen | RK6: Ersatzinvestitionen | RL6: Ersatzinvestitionen | RM6: Ersatzinvestitionen | RN6: Ersatzinvestitionen | RO6: Ersatzinvestitionen | RP6: Ersatzinvestitionen | RQ6: Ersatzinvestitionen | RR6: Ersatzinvestitionen | RS6: Ersatzinvestitionen | RT6: Ersatzinvestitionen | RU6: Ersatzinvestitionen | RV6: Ersatzinvestitionen | RW6: Ersatzinvestitionen | RX6: Ersatzinvestitionen | RY6: Ersatzinvestitionen | RZ6: Ersatzinvestitionen | SA6: Ersatzinvestitionen | SB6: Ersatzinvestitionen | SC6: Ersatzinvestitionen | SD6: Ersatzinvestitionen | SE6: Ersatzinvestitionen | SF6: Ersatzinvestitionen | SG6: Ersatzinvestitionen | SH6: Ersatzinvestitionen | SI6: Ersatzinvestitionen | SJ6: Ersatzinvestitionen | SK6: Ersatzinvestitionen | SL6: Ersatzinvestitionen | SM6: Ersatzinvestitionen | SN6: Ersatzinvestitionen | SO6: Ersatzinvestitionen | SP6: Ersatzinvestitionen | SQ6: Ersatzinvestitionen | SR6: Ersatzinvestitionen | SS6: Ersatzinvestitionen | ST6: Ersatzinvestitionen | SU6: Ersatzinvestitionen | SV6: Ersatzinvestitionen | SW6: Ersatzinvestitionen | SX6: Ersatzinvestitionen | SY6: Ersatzinvestitionen | SZ6: Ersatzinvestitionen | TA6: Ersatzinvestitionen | TB6: Ersatzinvestitionen | TC6: Ersatzinvestitionen | TD6: Ersatzinvestitionen | TE6: Ersatzinvestitionen | TF6: Ersatzinvestitionen | TG6: Ersatzinvestitionen | TH6: Ersatzinvestitionen | TI6: Ersatzinvestitionen | TJ6: Ersatzinvestitionen | TK6: Ersatzinvestitionen | TL6: Ersatzinvestitionen | TM6: Ersatzinvestitionen | TN6: Ersatzinvestitionen | TO6: Ersatzinvestitionen | TQ6: regelmäßige Instandsetzung | TR6: regelmäßige Instandsetzung | TS6: regelmäßige Instandsetzung | TT6: regelmäßige Instandsetzung | TU6: regelmäßige Instandsetzung | TV6: regelmäßige Instandsetzung | TW6: regelmäßige Instandsetzung | TX6: regelmäßige Instandsetzung | TY6: regelmäßige Instandsetzung | TZ6: regelmäßige Instandsetzung | UA6: regelmäßige Instandsetzung | UB6: regelmäßige Instandsetzung | UC6: regelmäßige Instandsetzung | UD6: regelmäßige Instandsetzung | UE6: regelmäßige Instandsetzung | UF6: regelmäßige Instandsetzung | UG6: regelmäßige Instandsetzung | UH6: regelmäßige Instandsetzung | UI6: regelmäßige Instandsetzung | UJ6: regelmäßige Instandsetzung | UK6: regelmäßige Instandsetzung | UL6: regelmäßige Instandsetzung | UM6: regelmäßige Instandsetzung | UN6: regelmäßige Instandsetzung | UO6: regelmäßige Instandsetzung | UP6: regelmäßige Instandsetzung | UQ6: regelmäßige Instandsetzung | UR6: regelmäßige Instandsetzung | US6: regelmäßige Instandsetzung | UT6: regelmäßige Instandsetzung | UU6: regelmäßige Instandsetzung | UV6: regelmäßige Instandsetzung | UW6: regelmäßige Instandsetzung | UX6: regelmäßige Instandsetzung | UY6: regelmäßige Instandsetzung | UZ6: regelmäßige Instandsetzung | VA6: regelmäßige Instandsetzung | VB6: regelmäßige Instandsetzung | VC6: regelmäßige Instandsetzung | VD6: regelmäßige Instandsetzung | VE6: regelmäßige Instandsetzung | VF6: regelmäßige Instandsetzung | VG6: regelmäßige Instandsetzung | VH6: regelmäßige Instandsetzung | VI6: regelmäßige Instandsetzung | VJ6: regelmäßige Instandsetzung | VK6: regelmäßige Instandsetzung | VL6: regelmäßige Instandsetzung | VM6: regelmäßige Instandsetzung | VN6: regelmäßige Instandsetzung | VO6: regelmäßige Instandsetzung | VP6: regelmäßige Instandsetzung | VQ6: regelmäßige Instandsetzung | VR6: regelmäßige Instandsetzung | VS6: regelmäßige Instandsetzung | VT6: regelmäßige Instandsetzung | VU6: regelmäßige Instandsetzung | VV6: regelmäßige Instandsetzung | VW6: regelmäßige Instandsetzung | VX6: regelmäßige Instandsetzung | VY6: regelmäßige Instandsetzung | VZ6: regelmäßige Instandsetzung | WA6: regelmäßige Instandsetzung | WB6: regelmäßige Instandsetzung | WC6: regelmäßige Instandsetzung | WD6: regelmäßige Instandsetzung | WE6: regelmäßige Instandsetzung | WF6: regelmäßige Instandsetzung | WG6: regelmäßige Instandsetzung | WH6: regelmäßige Instandsetzung | WI6: regelmäßige Instandsetzung | WJ6: regelmäßige Instandsetzung | WK6: regelmäßige Instandsetzung | WL6: regelmäßige Instandsetzung | WM6: regelmäßige Instandsetzung | WN6: regelmäßige Instandsetzung | WO6: regelmäßige Instandsetzung | WP6: regelmäßige Instandsetzung | WQ6: regelmäßige Instandsetzung | WR6: regelmäßige Instandsetzung | WS6: regelmäßige Instandsetzung | WT6: regelmäßige Instandsetzung | WU6: regelmäßige Instandsetzung | WV6: regelmäßige Instandsetzung | WW6: regelmäßige Instandsetzung | WX6: regelmäßige Instandsetzung | WY6: regelmäßige Instandsetzung | WZ6: regelmäßige Instandsetzung | XA6: regelmäßige Instandsetzung | XB6: regelmäßige Instandsetzung | XC6: regelmäßige Instandsetzung | XD6: regelmäßige Instandsetzung | XE6: regelmäßige Instandsetzung | XF6: regelmäßige Instandsetzung | XG6: regelmäßige Instandsetzung | XH6: regelmäßige Instandsetzung | XI6: regelmäßige Instandsetzung | XJ6: regelmäßige Instandsetzung | XK6: regelmäßige Instandsetzung | XL6: regelmäßige Instandsetzung | XM6: regelmäßige Instandsetzung | XN6: regelmäßige Instandsetzung | XO6: regelmäßige Instandsetzung | XP6: regelmäßige Instandsetzung | XQ6: regelmäßige Instandsetzung | XR6: regelmäßige Instandsetzung | XS6: regelmäßige Instandsetzung | XT6: regelmäßige Instandsetzung | XU6: regelmäßige Instandsetzung | XV6: regelmäßige Instandsetzung | XW6: regelmäßige Instandsetzung | XX6: regelmäßige Instandsetzung | XY6: regelmäßige Instandsetzung | XZ6: regelmäßige Instandsetzung | YA6: regelmäßige Instandsetzung | YB6: regelmäßige Instandsetzung | YC6: regelmäßige Instandsetzung | YD6: regelmäßige Instandsetzung | YE6: regelmäßige Instandsetzung | YF6: regelmäßige Instandsetzung | YG6: regelmäßige Instandsetzung | YH6: regelmäßige Instandsetzung | YI6: regelmäßige Instandsetzung | YJ6: regelmäßige Instandsetzung | YK6: regelmäßige Instandsetzung | YL6: regelmäßige Instandsetzung | YM6: regelmäßige Instandsetzung | YN6: regelmäßige Instandsetzung | YO6: regelmäßige Instandsetzung | YP6: regelmäßige Instandsetzung | YQ6: regelmäßige Instandsetzung | YR6: regelmäßige Instandsetzung | YS6: regelmäßige Instandsetzung | YT6: regelmäßige Instandsetzung | YU6: regelmäßige Instandsetzung | YV6: regelmäßige Instandsetzung | YW6: regelmäßige Instandsetzung | YX6: regelmäßige Instandsetzung | YY6: regelmäßige Instandsetzung | YZ6: regelmäßige Instandsetzung | ZA6: regelmäßige Instandsetzung | ZB6: regelmäßige Instandsetzung | ZC6: regelmäßige Instandsetzung | ZD6: regelmäßige Instandsetzung | ZE6: regelmäßige Instandsetzung | ZF6: regelmäßige Instandsetzung | ZG6: regelmäßige Instandsetzung | ZH6: regelmäßige Instandsetzung | ZI6: regelmäßige Instandsetzung | ZJ6: regelmäßige Instandsetzung | ZK6: regelmäßige Instandsetzung | ZL6: regelmäßige Instandsetzung | ZM6: regelmäßige Instandsetzung | ZN6: regelmäßige Instandsetzung | ZO6: regelmäßige Instandsetzung | ZP6: regelmäßige Instandsetzung | ZQ6: regelmäßige Instandsetzung | ZR6: regelmäßige Instandsetzung | ZS6: regelmäßige Instandsetzung | ZT6: regelmäßige Instandsetzung | ZU6: regelmäßige Instandsetzung | ZV6: regelmäßige Instandsetzung | ZW6: regelmäßige Instandsetzung | ZX6: regelmäßige Instandsetzung | ZY6: regelmäßige Instandsetzung | ZZ6: regelmäßige Instandsetzung | AAA6: regelmäßige Instandsetzung | AAB6: regelmäßige Instandsetzung | AAC6: regelmäßige Instandsetzung | AAD6: regelmäßige Instandsetzung | AAE6: regelmäßige Instandsetzung | AAF6: regelmäßige Instandsetzung | AAG6: regelmäßige Instandsetzung | AAH6: regelmäßige Instandsetzung | AAI6: regelmäßige Instandsetzung | AAJ6: regelmäßige Instandsetzung | AAK6: regelmäßige Instandsetzung | AAL6: regelmäßige Instandsetzung | AAM6: regelmäßige Instandsetzung | AAN6: regelmäßige Instandsetzung | AAO6: regelmäßige Instandsetzung | AAP6: regelmäßige Instandsetzung | AAQ6: regelmäßige Instandsetzung | AAR6: regelmäßige Instandsetzung | AAS6: regelmäßige Instandsetzung | AAT6: regelmäßige Instandsetzung | AAU6: regelmäßige Instandsetzung | AAV6: regelmäßige Instandsetzung | AAW6: regelmäßige Instandsetzung | AAX6: regelmäßige Instandsetzung | AAY6: regelmäßige Instandsetzung | AAZ6: regelmäßige Instandsetzung | ABA6: regelmäßige Instandsetzung | ABB6: regelmäßige Instandsetzung | ABC6: regelmäßige Instandsetzung | ABD6: regelmäßige Instandsetzung | ABE6: regelmäßige Instandsetzung | ABF6: regelmäßige Instandsetzung | ABG6: regelmäßige Instandsetzung | ABH6: regelmäßige Instandsetzung | ABI6: regelmäßige Instandsetzung | ABJ6: regelmäßige Instandsetzung | ABK6: regelmäßige Instandsetzung | ABL6: regelmäßige Instandsetzung | ABM6: regelmäßige Instandsetzung | ABN6: regelmäßige Instandsetzung | ABO6: regelmäßige Instandsetzung | ABP6: regelmäßige Instandsetzung | ABQ6: regelmäßige Instandsetzung | ABR6: regelmäßige Instandsetzung | ABS6: regelmäßige Instandsetzung | ABT6: regelmäßige Instandsetzung | ABU6: regelmäßige Instandsetzung | ABV6: regelmäßige Instandsetzung | ABW6: regelmäßige Instandsetzung | ABX6: regelmäßige Instandsetzung | ABY6: regelmäßige Instandsetzung | ABZ6: regelmäßige Instandsetzung | ACA6: regelmäßige Instandsetzung | ACB6: regelmäßige Instandsetzung | ACC6: regelmäßige Instandsetzung | ACD6: regelmäßige Instandsetzung | ACE6: regelmäßige Instandsetzung | ACF6: regelmäßige Instandsetzung | ACG6: regelmäßige Instandsetzung | ACH6: regelmäßige Instandsetzung | ACI6: regelmäßige Instandsetzung | ACJ6: regelmäßige Instandsetzung | ACK6: regelmäßige Instandsetzung | ACL6: regelmäßige Instandsetzung | ACM6: regelmäßige Instandsetzung | ACN6: regelmäßige Instandsetzung | ACO6: regelmäßige Instandsetzung | ACP6: regelmäßige Instandsetzung | ACQ6: regelmäßige Instandsetzung | ACR6: regelmäßige Instandsetzung | ACS6: regelmäßige Instandsetzung | ACT6: regelmäßige Instandsetzung | ACU6: regelmäßige Instandsetzung | ACV6: regelmäßige Instandsetzung | ACW6: regelmäßige Instandsetzung | ACX6: regelmäßige Instandsetzung | ACY6: regelmäßige Instandsetzung
E7: Code DIN 276 | F7: Bezeichnung | G7: LCC | H7: Bestand | K7: Gesamt netto [€] | L7: Erstherstellung netto [€] | O7: netto [€] | P7: Ersatzhäufigkeit im BZR | Q7: Kontrolle KG | R7: relevante Nutzungsdauer | S7: Bezeichnung Datensatz | T7: ND [a] | U7: Ja/Nein | V7: ND [a] | W7: Kontrolle: KG Datensatz | X7: Inspektion und Wartung [€] | Y7: Instandsetzung [€] | Z7: Inspektion, Wartung und Instandsetzung | AA7: Bezeichnung Datensatz | AB7: Inspektion und Wartung [%] | AC7: Instandsetzung [%] | AD7: Ja/Nein | AE7: Inspektion und Wartung [€] | AF7: Instandsetzung [€] | AG7: KG 300 | AH7: KG 400 | AI7: KG 500 | AJ7: KG 300 | AK7: KG 400 | AL7: KG 500 | AM7: KG 300 | AN7: KG 400 | AO7: KG 500 | AP7: KG 300 | AQ7: KG 400 | AR7: KG 500 | AS7: je BGFabc | AT7: absolut | AW7: KG 300 DIN276 | AX7: KG 300 DIN276 Jahr | AY7: KG 300 DIN276 Jahr | AZ7: KG 300 DIN276 Jahr | BA7: KG 300 DIN276 Jahr | BB7: KG 300 DIN276 Jahr | BC7: KG 300 DIN276 Jahr | BD7: KG 300 DIN276 Jahr | BE7: KG 300 DIN276 Jahr | BF7: KG 300 DIN276 Jahr | BG7: KG 300 DIN276 Jahr | BH7: KG 300 DIN276 Jahr | BI7: KG 300 DIN276 Jahr | BJ7: KG 300 DIN276 Jahr | BK7: KG 300 DIN276 Jahr | BL7: KG 300 DIN276 Jahr | BM7: KG 300 DIN276 Jahr | BN7: KG 300 DIN276 Jahr | BO7: KG 300 DIN276 Jahr | BP7: KG 300 DIN276 Jahr | BQ7: KG 300 DIN276 Jahr | BR7: KG 300 DIN276 Jahr | BS7: KG 300 DIN276 Jahr | BT7: KG 300 DIN276 Jahr | BU7: KG 300 DIN276 Jahr | BV7: KG 300 DIN276 Jahr | BW7: KG 300 DIN276 Jahr | BX7: KG 300 DIN276 Jahr | BY7: KG 300 DIN276 Jahr | BZ7: KG 300 DIN276 Jahr | CA7: KG 300 DIN276 Jahr | CB7: KG 300 DIN276 Jahr | CC7: KG 300 DIN276 Jahr | CD7: KG 300 DIN276 Jahr | CE7: KG 300 DIN276 Jahr | CF7: KG 300 DIN276 Jahr | CG7: KG 300 DIN276 Jahr | CH7: KG 300 DIN276 Jahr | CI7: KG 300 DIN276 Jahr | CJ7: KG 300 DIN276 Jahr | CK7: KG 300 DIN276 Jahr | CL7: KG 300 DIN276 Jahr | CM7: KG 300 DIN276 Jahr | CN7: KG 300 DIN276 Jahr | CO7: KG 300 DIN276 Jahr | CP7: KG 300 DIN276 Jahr | CQ7: KG 300 DIN276 Jahr | CR7: KG 300 DIN276 Jahr | CS7: KG 300 DIN276 Jahr | CT7: KG 300 DIN276 Jahr | CU7: KG 300 DIN276 Jahr | CV7: KG 300 DIN276 Jahr | CW7: KG 300 DIN276 Jahr | CX7: KG 300 DIN276 Jahr | CY7: KG 300 DIN276 Jahr | CZ7: KG 300 DIN276 Jahr | DA7: KG 300 DIN276 Jahr | DB7: KG 300 DIN276 Jahr | DC7: KG 300 DIN276 Jahr | DD7: KG 300 DIN276 Jahr | DE7: KG 300 DIN276 Jahr | DF7: KG 300 DIN276 Jahr | DG7: KG 300 DIN276 Jahr | DH7: KG 300 DIN276 Jahr | DI7: KG 300 DIN276 Jahr | DJ7: KG 300 DIN276 Jahr | DK7: KG 300 DIN276 Jahr | DL7: KG 300 DIN276 Jahr | DM7: KG 300 DIN276 Jahr | DN7: KG 300 DIN276 Jahr | DO7: KG 300 DIN276 Jahr | DP7: KG 300 DIN276 Jahr | DQ7: KG 300 DIN276 Jahr | DR7: KG 300 DIN276 Jahr | DS7: KG 300 DIN276 Jahr | DT7: KG 300 DIN276 Jahr | DU7: KG 300 DIN276 Jahr | DV7: KG 300 DIN276 Jahr | DW7: KG 300 DIN276 Jahr | DX7: KG 300 DIN276 Jahr | DY7: KG 300 DIN276 Jahr | DZ7: KG 400 DIN276 | EA7: KG 400 DIN276 | EB7: KG 400 DIN276 | EC7: KG 400 DIN276 | ED7: KG 400 DIN276 | EE7: KG 400 DIN276 | EF7: KG 400 DIN276 | EG7: KG 400 DIN276 | EH7: KG 400 DIN276 | EI7: KG 400 DIN276 | EJ7: KG 400 DIN276 | EK7: KG 400 DIN276 | EL7: KG 400 DIN276 | EM7: KG 400 DIN276 | EN7: KG 400 DIN276 | EO7: KG 400 DIN276 | EP7: KG 400 DIN276 | EQ7: KG 400 DIN276 | ER7: KG 400 DIN276 | ES7: KG 400 DIN276 | ET7: KG 400 DIN276 | EU7: KG 400 DIN276 | EV7: KG 400 DIN276 | EW7: KG 400 DIN276 | EX7: KG 400 DIN276 | EY7: KG 400 DIN276 | EZ7: KG 400 DIN276 | FA7: KG 400 DIN276 | FB7: KG 400 DIN276 | FC7: KG 400 DIN276 | FD7: KG 400 DIN276 | FE7: KG 400 DIN276 | FF7: KG 400 DIN276 | FG7: KG 400 DIN276 | FH7: KG 400 DIN276 | FI7: KG 400 DIN276 | FJ7: KG 400 DIN276 | FK7: KG 400 DIN276 | FL7: KG 400 DIN276 | FM7: KG 400 DIN276 | FN7: KG 400 DIN276 | FO7: KG 400 DIN276 | FP7: KG 400 DIN276 | FQ7: KG 400 DIN276 | FR7: KG 400 DIN276 | FS7: KG 400 DIN276 | FT7: KG 400 DIN276 | FU7: KG 400 DIN276 | FV7: KG 400 DIN276 | FW7: KG 400 DIN276 | FX7: KG 400 DIN276 | FY7: KG 400 DIN276 | FZ7: KG 400 DIN276 | GA7: KG 400 DIN276 | GB7: KG 400 DIN276 | GC7: KG 400 DIN276 | GD7: KG 400 DIN276 | GE7: KG 400 DIN276 | GF7: KG 400 DIN276 | GG7: KG 400 DIN276 | GH7: KG 400 DIN276 | GI7: KG 400 DIN276 | GJ7: KG 400 DIN276 | GK7: KG 400 DIN276 | GL7: KG 400 DIN276 | GM7: KG 400 DIN276 | GN7: KG 400 DIN276 | GO7: KG 400 DIN276 | GP7: KG 400 DIN276 | GQ7: KG 400 DIN276 | GR7: KG 400 DIN276 | GS7: KG 400 DIN276 | GT7: KG 400 DIN276 | GU7: KG 400 DIN276 | GV7: KG 400 DIN276 | GW7: KG 400 DIN276 | GX7: KG 400 DIN276 | GY7: KG 400 DIN276 | GZ7: KG 400 DIN276 | HA7: KG 400 DIN276 | HB7: KG 400 DIN276 | HC7: KG 500 DIN276 | HD7: KG 500 DIN276 | HE7: KG 500 DIN276 | HF7: KG 500 DIN276 | HG7: KG 500 DIN276 | HH7: KG 500 DIN276 | HI7: KG 500 DIN276 | HJ7: KG 500 DIN276 | HK7: KG 500 DIN276 | HL7: KG 500 DIN276 | HM7: KG 500 DIN276 | HN7: KG 500 DIN276 | HO7: KG 500 DIN276 | HP7: KG 500 DIN276 | HQ7: KG 500 DIN276 | HR7: KG 500 DIN276 | HS7: KG 500 DIN276 | HT7: KG 500 DIN276 | HU7: KG 500 DIN276 | HV7: KG 500 DIN276 | HW7: KG 500 DIN276 | HX7: KG 500 DIN276 | HY7: KG 500 DIN276 | HZ7: KG 500 DIN276 | IA7: KG 500 DIN276 | IB7: KG 500 DIN276 | IC7: KG 500 DIN276 | ID7: KG 500 DIN276 | IE7: KG 500 DIN276 | IF7: KG 500 DIN276 | IG7: KG 500 DIN276 | IH7: KG 500 DIN276 | II7: KG 500 DIN276 | IJ7: KG 500 DIN276 | IK7: KG 500 DIN276 | IL7: KG 500 DIN276 | IM7: KG 500 DIN276 | IN7: KG 500 DIN276 | IO7: KG 500 DIN276 | IP7: KG 500 DIN276 | IQ7: KG 500 DIN276 | IR7: KG 500 DIN276 | IS7: KG 500 DIN276 | IT7: KG 500 DIN276 | IU7: KG 500 DIN276 | IV7: KG 500 DIN276 | IW7: KG 500 DIN276 | IX7: KG 500 DIN276 | IY7: KG 500 DIN276 | IZ7: KG 500 DIN276 | JA7: KG 500 DIN276 | JB7: KG 500 DIN276 | JC7: KG 500 DIN276 | JD7: KG 500 DIN276 | JE7: KG 500 DIN276 | JF7: KG 500 DIN276 | JG7: KG 500 DIN276 | JH7: KG 500 DIN276 | JI7: KG 500 DIN276 | JJ7: KG 500 DIN276 | JK7: KG 500 DIN276 | JL7: KG 500 DIN276 | JM7: KG 500 DIN276 | JN7: KG 500 DIN276 | JO7: KG 500 DIN276 | JP7: KG 500 DIN276 | JQ7: KG 500 DIN276 | JR7: KG 500 DIN276 | JS7: KG 500 DIN276 | JT7: KG 500 DIN276 | JU7: KG 500 DIN276 | JV7: KG 500 DIN276 | JW7: KG 500 DIN276 | JX7: KG 500 DIN276 | JY7: KG 500 DIN276 | JZ7: KG 500 DIN276 | KA7: KG 500 DIN276 | KB7: KG 500 DIN276 | KC7: KG 500 DIN276 | KD7: KG 500 DIN276 | KE7: KG 500 DIN276 | KG7: KG 300 DIN276 | KH7: KG 300 DIN276 | KI7: KG 300 DIN276 | KJ7: KG 300 DIN276 | KK7: KG 300 DIN276 | KL7: KG 300 DIN276 | KM7: KG 300 DIN276 | KN7: KG 300 DIN276 | KO7: KG 300 DIN276 | KP7: KG 300 DIN276 | KQ7: KG 300 DIN276 | KR7: KG 300 DIN276 | KS7: KG 300 DIN276 | KT7: KG 300 DIN276 | KU7: KG 300 DIN276 | KV7: KG 300 DIN276 | KW7: KG 300 DIN276 | KX7: KG 300 DIN276 | KY7: KG 300 DIN276 | KZ7: KG 300 DIN276 | LA7: KG 300 DIN276 | LB7: KG 300 DIN276 | LC7: KG 300 DIN276 | LD7: KG 300 DIN276 | LE7: KG 300 DIN276 | LF7: KG 300 DIN276 | LG7: KG 300 DIN276 | LH7: KG 300 DIN276 | LI7: KG 300 DIN276 | LJ7: KG 300 DIN276 | LK7: KG 300 DIN276 | LL7: KG 300 DIN276 | LM7: KG 300 DIN276 | LN7: KG 300 DIN276 | LO7: KG 300 DIN276 | LP7: KG 300 DIN276 | LQ7: KG 300 DIN276 | LR7: KG 300 DIN276 | LS7: KG 300 DIN276 | LT7: KG 300 DIN276 | LU7: KG 300 DIN276 | LV7: KG 300 DIN276 | LW7: KG 300 DIN276 | LX7: KG 300 DIN276 | LY7: KG 300 DIN276 | LZ7: KG 300 DIN276 | MA7: KG 300 DIN276 | MB7: KG 300 DIN276 | MC7: KG 300 DIN276 | MD7: KG 300 DIN276 | ME7: KG 300 DIN276 | MF7: KG 300 DIN276 | MG7: KG 300 DIN276 | MH7: KG 300 DIN276 | MI7: KG 300 DIN276 | MJ7: KG 300 DIN276 | MK7: KG 300 DIN276 | ML7: KG 300 DIN276 | MM7: KG 300 DIN276 | MN7: KG 300 DIN276 | MO7: KG 300 DIN276 | MP7: KG 300 DIN276 | MQ7: KG 300 DIN276 | MR7: KG 300 DIN276 | MS7: KG 300 DIN276 | MT7: KG 300 DIN276 | MU7: KG 300 DIN276 | MV7: KG 300 DIN276 | MW7: KG 300 DIN276 | MX7: KG 300 DIN276 | MY7: KG 300 DIN276 | MZ7: KG 300 DIN276 | NA7: KG 300 DIN276 | NB7: KG 300 DIN276 | NC7: KG 300 DIN276 | ND7: KG 300 DIN276 | NE7: KG 300 DIN276 | NF7: KG 300 DIN276 | NG7: KG 300 DIN276 | NH7: KG 300 DIN276 | NI7: KG 300 DIN276 | NJ7: KG 400 DIN276 | NK7: KG 400 DIN276 | NL7: KG 400 DIN276 | NM7: KG 400 DIN276 | NN7: KG 400 DIN276 | NO7: KG 400 DIN276 | NP7: KG 400 DIN276 | NQ7: KG 400 DIN276 | NR7: KG 400 DIN276 | NS7: KG 400 DIN276 | NT7: KG 400 DIN276 | NU7: KG 400 DIN276 | NV7: KG 400 DIN276 | NW7: KG 400 DIN276 | NX7: KG 400 DIN276 | NY7: KG 400 DIN276 | NZ7: KG 400 DIN276 | OA7: KG 400 DIN276 | OB7: KG 400 DIN276 | OC7: KG 400 DIN276 | OD7: KG 400 DIN276 | OE7: KG 400 DIN276 | OF7: KG 400 DIN276 | OG7: KG 400 DIN276 | OH7: KG 400 DIN276 | OI7: KG 400 DIN276 | OJ7: KG 400 DIN276 | OK7: KG 400 DIN276 | OL7: KG 400 DIN276 | OM7: KG 400 DIN276 | ON7: KG 400 DIN276 | OO7: KG 400 DIN276 | OP7: KG 400 DIN276 | OQ7: KG 400 DIN276 | OR7: KG 400 DIN276 | OS7: KG 400 DIN276 | OT7: KG 400 DIN276 | OU7: KG 400 DIN276 | OV7: KG 400 DIN276 | OW7: KG 400 DIN276 | OX7: KG 400 DIN276 | OY7: KG 400 DIN276 | OZ7: KG 400 DIN276 | PA7: KG 400 DIN276 | PB7: KG 400 DIN276 | PC7: KG 400 DIN276 | PD7: KG 400 DIN276 | PE7: KG 400 DIN276 | PF7: KG 400 DIN276 | PG7: KG 400 DIN276 | PH7: KG 400 DIN276 | PI7: KG 400 DIN276 | PJ7: KG 400 DIN276 | PK7: KG 400 DIN276 | PL7: KG 400 DIN276 | PM7: KG 400 DIN276 | PN7: KG 400 DIN276 | PO7: KG 400 DIN276 | PP7: KG 400 DIN276 | PQ7: KG 400 DIN276 | PR7: KG 400 DIN276 | PS7: KG 400 DIN276 | PT7: KG 400 DIN276 | PU7: KG 400 DIN276 | PV7: KG 400 DIN276 | PW7: KG 400 DIN276 | PX7: KG 400 DIN276 | PY7: KG 400 DIN276 | PZ7: KG 400 DIN276 | QA7: KG 400 DIN276 | QB7: KG 400 DIN276 | QC7: KG 400 DIN276 | QD7: KG 400 DIN276 | QE7: KG 400 DIN276 | QF7: KG 400 DIN276 | QG7: KG 400 DIN276 | QH7: KG 400 DIN276 | QI7: KG 400 DIN276 | QJ7: KG 400 DIN276 | QK7: KG 400 DIN276 | QL7: KG 400 DIN276 | QM7: KG 500 DIN276 | QN7: KG 500 DIN276 | QO7: KG 500 DIN276 | QP7: KG 500 DIN276 | QQ7: KG 500 DIN276 | QR7: KG 500 DIN276 | QS7: KG 500 DIN276 | QT7: KG 500 DIN276 | QU7: KG 500 DIN276 | QV7: KG 500 DIN276 | QW7: KG 500 DIN276 | QX7: KG 500 DIN276 | QY7: KG 500 DIN276 | QZ7: KG 500 DIN276 | RA7: KG 500 DIN276 | RB7: KG 500 DIN276 | RC7: KG 500 DIN276 | RD7: KG 500 DIN276 | RE7: KG 500 DIN276 | RF7: KG 500 DIN276 | RG7: KG 500 DIN276 | RH7: KG 500 DIN276 | RI7: KG 500 DIN276 | RJ7: KG 500 DIN276 | RK7: KG 500 DIN276 | RL7: KG 500 DIN276 | RM7: KG 500 DIN276 | RN7: KG 500 DIN276 | RO7: KG 500 DIN276 | RP7: KG 500 DIN276 | RQ7: KG 500 DIN276 | RR7: KG 500 DIN276 | RS7: KG 500 DIN276 | RT7: KG 500 DIN276 | RU7: KG 500 DIN276 | RV7: KG 500 DIN276 | RW7: KG 500 DIN276 | RX7: KG 500 DIN276 | RY7: KG 500 DIN276 | RZ7: KG 500 DIN276 | SA7: KG 500 DIN276 | SB7: KG 500 DIN276 | SC7: KG 500 DIN276 | SD7: KG 500 DIN276 | SE7: KG 500 DIN276 | SF7: KG 500 DIN276 | SG7: KG 500 DIN276 | SH7: KG 500 DIN276 | SI7: KG 500 DIN276 | SJ7: KG 500 DIN276 | SK7: KG 500 DIN276 | SL7: KG 500 DIN276 | SM7: KG 500 DIN276 | SN7: KG 500 DIN276 | SO7: KG 500 DIN276 | SP7: KG 500 DIN276 | SQ7: KG 500 DIN276 | SR7: KG 500 DIN276 | SS7: KG 500 DIN276 | ST7: KG 500 DIN276 | SU7: KG 500 DIN276 | SV7: KG 500 DIN276 | SW7: KG 500 DIN276 | SX7: KG 500 DIN276 | SY7: KG 500 DIN276 | SZ7: KG 500 DIN276 | TA7: KG 500 DIN276 | TB7: KG 500 DIN276 | TC7: KG 500 DIN276 | TD7: KG 500 DIN276 | TE7: KG 500 DIN276 | TF7: KG 500 DIN276 | TG7: KG 500 DIN276 | TH7: KG 500 DIN276 | TI7: KG 500 DIN276 | TJ7: KG 500 DIN276 | TK7: KG 500 DIN276 | TL7: KG 500 DIN276 | TM7: KG 500 DIN276 | TN7: KG 500 DIN276 | TO7: KG 500 DIN276 | TQ7: KG 300 DIN276 | TR7: KG 300 DIN276 | TS7: KG 300 DIN276 | TT7: KG 300 DIN276 | TU7: KG 300 DIN276 | TV7: KG 300 DIN276 | TW7: KG 300 DIN276 | TX7: KG 300 DIN276 | TY7: KG 300 DIN276 | TZ7: KG 300 DIN276 | UA7: KG 300 DIN276 | UB7: KG 300 DIN276 | UC7: KG 300 DIN276 | UD7: KG 300 DIN276 | UE7: KG 300 DIN276 | UF7: KG 300 DIN276 | UG7: KG 300 DIN276 | UH7: KG 300 DIN276 | UI7: KG 300 DIN276 | UJ7: KG 300 DIN276 | UK7: KG 300 DIN276 | UL7: KG 300 DIN276 | UM7: KG 300 DIN276 | UN7: KG 300 DIN276 | UO7: KG 300 DIN276 | UP7: KG 300 DIN276 | UQ7: KG 300 DIN276 | UR7: KG 300 DIN276 | US7: KG 300 DIN276 | UT7: KG 300 DIN276 | UU7: KG 300 DIN276 | UV7: KG 300 DIN276 | UW7: KG 300 DIN276 | UX7: KG 300 DIN276 | UY7: KG 300 DIN276 | UZ7: KG 300 DIN276 | VA7: KG 300 DIN276 | VB7: KG 300 DIN276 | VC7: KG 300 DIN276 | VD7: KG 300 DIN276 | VE7: KG 300 DIN276 | VF7: KG 300 DIN276 | VG7: KG 300 DIN276 | VH7: KG 300 DIN276 | VI7: KG 300 DIN276 | VJ7: KG 300 DIN276 | VK7: KG 300 DIN276 | VL7: KG 300 DIN276 | VM7: KG 300 DIN276 | VN7: KG 300 DIN276 | VO7: KG 300 DIN276 | VP7: KG 300 DIN276 | VQ7: KG 300 DIN276 | VR7: KG 300 DIN276 | VS7: KG 300 DIN276 | VT7: KG 300 DIN276 | VU7: KG 300 DIN276 | VV7: KG 300 DIN276 | VW7: KG 300 DIN276 | VX7: KG 300 DIN276 | VY7: KG 300 DIN276 | VZ7: KG 300 DIN276 | WA7: KG 300 DIN276 | WB7: KG 300 DIN276 | WC7: KG 300 DIN276 | WD7: KG 300 DIN276 | WE7: KG 300 DIN276 | WF7: KG 300 DIN276 | WG7: KG 300 DIN276 | WH7: KG 300 DIN276 | WI7: KG 300 DIN276 | WJ7: KG 300 DIN276 | WK7: KG 300 DIN276 | WL7: KG 300 DIN276 | WM7: KG 300 DIN276 | WN7: KG 300 DIN276 | WO7: KG 300 DIN276 | WP7: KG 300 DIN276 | WQ7: KG 300 DIN276 | WR7: KG 300 DIN276 | WS7: KG 300 DIN276 | WT7: KG 400 DIN276 | WU7: KG 400 DIN276 | WV7: KG 400 DIN276 | WW7: KG 400 DIN276 | WX7: KG 400 DIN276 | WY7: KG 400 DIN276 | WZ7: KG 400 DIN276 | XA7: KG 400 DIN276 | XB7: KG 400 DIN276 | XC7: KG 400 DIN276 | XD7: KG 400 DIN276 | XE7: KG 400 DIN276 | XF7: KG 400 DIN276 | XG7: KG 400 DIN276 | XH7: KG 400 DIN276 | XI7: KG 400 DIN276 | XJ7: KG 400 DIN276 | XK7: KG 400 DIN276 | XL7: KG 400 DIN276 | XM7: KG 400 DIN276 | XN7: KG 400 DIN276 | XO7: KG 400 DIN276 | XP7: KG 400 DIN276 | XQ7: KG 400 DIN276 | XR7: KG 400 DIN276 | XS7: KG 400 DIN276 | XT7: KG 400 DIN276 | XU7: KG 400 DIN276 | XV7: KG 400 DIN276 | XW7: KG 400 DIN276 | XX7: KG 400 DIN276 | XY7: KG 400 DIN276 | XZ7: KG 400 DIN276 | YA7: KG 400 DIN276 | YB7: KG 400 DIN276 | YC7: KG 400 DIN276 | YD7: KG 400 DIN276 | YE7: KG 400 DIN276 | YF7: KG 400 DIN276 | YG7: KG 400 DIN276 | YH7: KG 400 DIN276 | YI7: KG 400 DIN276 | YJ7: KG 400 DIN276 | YK7: KG 400 DIN276 | YL7: KG 400 DIN276 | YM7: KG 400 DIN276 | YN7: KG 400 DIN276 | YO7: KG 400 DIN276 | YP7: KG 400 DIN276 | YQ7: KG 400 DIN276 | YR7: KG 400 DIN276 | YS7: KG 400 DIN276 | YT7: KG 400 DIN276 | YU7: KG 400 DIN276 | YV7: KG 400 DIN276 | YW7: KG 400 DIN276 | YX7: KG 400 DIN276 | YY7: KG 400 DIN276 | YZ7: KG 400 DIN276 | ZA7: KG 400 DIN276 | ZB7: KG 400 DIN276 | ZC7: KG 400 DIN276 | ZD7: KG 400 DIN276 | ZE7: KG 400 DIN276 | ZF7: KG 400 DIN276 | ZG7: KG 400 DIN276 | ZH7: KG 400 DIN276 | ZI7: KG 400 DIN276 | ZJ7: KG 400 DIN276 | ZK7: KG 400 DIN276 | ZL7: KG 400 DIN276 | ZM7: KG 400 DIN276 | ZN7: KG 400 DIN276 | ZO7: KG 400 DIN276 | ZP7: KG 400 DIN276 | ZQ7: KG 400 DIN276 | ZR7: KG 400 DIN276 | ZS7: KG 400 DIN276 | ZT7: KG 400 DIN276 | ZU7: KG 400 DIN276 | ZV7: KG 400 DIN276 | ZW7: KG 500 DIN276 | ZX7: KG 500 DIN276 | ZY7: KG 500 DIN276 | ZZ7: KG 500 DIN276 | AAA7: KG 500 DIN276 | AAB7: KG 500 DIN276 | AAC7: KG 500 DIN276 | AAD7: KG 500 DIN276 | AAE7: KG 500 DIN276 | AAF7: KG 500 DIN276 | AAG7: KG 500 DIN276 | AAH7: KG 500 DIN276 | AAI7: KG 500 DIN276 | AAJ7: KG 500 DIN276 | AAK7: KG 500 DIN276 | AAL7: KG 500 DIN276 | AAM7: KG 500 DIN276 | AAN7: KG 500 DIN276 | AAO7: KG 500 DIN276 | AAP7: KG 500 DIN276 | AAQ7: KG 500 DIN276 | AAR7: KG 500 DIN276 | AAS7: KG 500 DIN276 | AAT7: KG 500 DIN276 | AAU7: KG 500 DIN276 | AAV7: KG 500 DIN276 | AAW7: KG 500 DIN276 | AAX7: KG 500 DIN276 | AAY7: KG 500 DIN276 | AAZ7: KG 500 DIN276 | ABA7: KG 500 DIN276 | ABB7: KG 500 DIN276 | ABC7: KG 500 DIN276 | ABD7: KG 500 DIN276 | ABE7: KG 500 DIN276 | ABF7: KG 500 DIN276 | ABG7: KG 500 DIN276 | ABH7: KG 500 DIN276 | ABI7: KG 500 DIN276 | ABJ7: KG 500 DIN276 | ABK7: KG 500 DIN276 | ABL7: KG 500 DIN276 | ABM7: KG 500 DIN276 | ABN7: KG 500 DIN276 | ABO7: KG 500 DIN276 | ABP7: KG 500 DIN276 | ABQ7: KG 500 DIN276 | ABR7: KG 500 DIN276 | ABS7: KG 500 DIN276 | ABT7: KG 500 DIN276 | ABU7: KG 500 DIN276 | ABV7: KG 500 DIN276 | ABW7: KG 500 DIN276 | ABX7: KG 500 DIN276 | ABY7: KG 500 DIN276 | ABZ7: KG 500 DIN276 | ACA7: KG 500 DIN276 | ACB7: KG 500 DIN276 | ACC7: KG 500 DIN276 | ACD7: KG 500 DIN276 | ACE7: KG 500 DIN276 | ACF7: KG 500 DIN276 | ACG7: KG 500 DIN276 | ACH7: KG 500 DIN276 | ACI7: KG 500 DIN276 | ACJ7: KG 500 DIN276 | ACK7: KG 500 DIN276 | ACL7: KG 500 DIN276 | ACM7: KG 500 DIN276 | ACN7: KG 500 DIN276 | ACO7: KG 500 DIN276 | ACP7: KG 500 DIN276 | ACQ7: KG 500 DIN276 | ACR7: KG 500 DIN276 | ACS7: KG 500 DIN276 | ACT7: KG 500 DIN276 | ACU7: KG 500 DIN276 | ACV7: KG 500 DIN276 | ACW7: KG 500 DIN276 | ACX7: KG 500 DIN276 | ACY7: KG 500 DIN276
R8: in [a] | AS8: ∑ BZR | AT8: ∑ BZR | AW8: ∑ BZR | AX8: 1 | AY8: 2 | AZ8: 3 | BA8: 4 | BB8: 5 | BC8: 6 | BD8: 7 | BE8: 8 | BF8: 9 | BG8: 10 | BH8: 11 | BI8: 12 | BJ8: 13 | BK8: 14 | BL8: 15 | BM8: 16 | BN8: 17 | BO8: 18 | BP8: 19 | BQ8: 20 | BR8: 21 | BS8: 22 | BT8: 23 | BU8: 24 | BV8: 25 | BW8: 26 | BX8: 27 | BY8: 28 | BZ8: 29 | CA8: 30 | CB8: 31 | CC8: 32 | CD8: 33 | CE8: 34 | CF8: 35 | CG8: 36 | CH8: 37 | CI8: 38 | CJ8: 39 | CK8: 40 | CL8: 41 | CM8: 42 | CN8: 43 | CO8: 44 | CP8: 45 | CQ8: 46 | CR8: 47 | CS8: 48 | CT8: 49 | CU8: 50 | CV8: 51 | CW8: 52 | CX8: 53 | CY8: 54 | CZ8: 55 | DA8: 56 | DB8: 57 | DC8: 58 | DD8: 59 | DE8: 60 | DF8: 61 | DG8: 62 | DH8: 63 | DI8: 64 | DJ8: 65 | DK8: 66 | DL8: 67 | DM8: 68 | DN8: 69 | DO8: 70 | DP8: 71 | DQ8: 72 | DR8: 73 | DS8: 74 | DT8: 75 | DU8: 76 | DV8: 77 | DW8: 78 | DX8: 79 | DY8: 80 | DZ8: ∑ BZR | EA8: 1 | EB8: 2 | EC8: 3 | ED8: 4 | EE8: 5 | EF8: 6 | EG8: 7 | EH8: 8 | EI8: 9 | EJ8: 10 | EK8: 11 | EL8: 12 | EM8: 13 | EN8: 14 | EO8: 15 | EP8: 16 | EQ8: 17 | ER8: 18 | ES8: 19 | ET8: 20 | EU8: 21 | EV8: 22 | EW8: 23 | EX8: 24 | EY8: 25 | EZ8: 26 | FA8: 27 | FB8: 28 | FC8: 29 | FD8: 30 | FE8: 31 | FF8: 32 | FG8: 33 | FH8: 34 | FI8: 35 | FJ8: 36 | FK8: 37 | FL8: 38 | FM8: 39 | FN8: 40 | FO8: 41 | FP8: 42 | FQ8: 43 | FR8: 44 | FS8: 45 | FT8: 46 | FU8: 47 | FV8: 48 | FW8: 49 | FX8: 50 | FY8: 51 | FZ8: 52 | GA8: 53 | GB8: 54 | GC8: 55 | GD8: 56 | GE8: 57 | GF8: 58 | GG8: 59 | GH8: 60 | GI8: 61 | GJ8: 62 | GK8: 63 | GL8: 64 | GM8: 65 | GN8: 66 | GO8: 67 | GP8: 68 | GQ8: 69 | GR8: 70 | GS8: 71 | GT8: 72 | GU8: 73 | GV8: 74 | GW8: 75 | GX8: 76 | GY8: 77 | GZ8: 78 | HA8: 79 | HB8: 80 | HC8: ∑ BZR | HD8: 1 | HE8: 2 | HF8: 3 | HG8: 4 | HH8: 5 | HI8: 6 | HJ8: 7 | HK8: 8 | HL8: 9 | HM8: 10 | HN8: 11 | HO8: 12 | HP8: 13 | HQ8: 14 | HR8: 15 | HS8: 16 | HT8: 17 | HU8: 18 | HV8: 19 | HW8: 20 | HX8: 21 | HY8: 22 | HZ8: 23 | IA8: 24 | IB8: 25 | IC8: 26 | ID8: 27 | IE8: 28 | IF8: 29 | IG8: 30 | IH8: 31 | II8: 32 | IJ8: 33 | IK8: 34 | IL8: 35 | IM8: 36 | IN8: 37 | IO8: 38 | IP8: 39 | IQ8: 40 | IR8: 41 | IS8: 42 | IT8: 43 | IU8: 44 | IV8: 45 | IW8: 46 | IX8: 47 | IY8: 48 | IZ8: 49 | JA8: 50 | JB8: 51 | JC8: 52 | JD8: 53 | JE8: 54 | JF8: 55 | JG8: 56 | JH8: 57 | JI8: 58 | JJ8: 59 | JK8: 60 | JL8: 61 | JM8: 62 | JN8: 63 | JO8: 64 | JP8: 65 | JQ8: 66 | JR8: 67 | JS8: 68 | JT8: 69 | JU8: 70 | JV8: 71 | JW8: 72 | JX8: 73 | JY8: 74 | JZ8: 75 | KA8: 76 | KB8: 77 | KC8: 78 | KD8: 79 | KE8: 80 | KG8: ∑ BZR | KH8: 1 | KI8: 2 | KJ8: 3 | KK8: 4 | KL8: 5 | KM8: 6 | KN8: 7 | KO8: 8 | KP8: 9 | KQ8: 10 | KR8: 11 | KS8: 12 | KT8: 13 | KU8: 14 | KV8: 15 | KW8: 16 | KX8: 17 | KY8: 18 | KZ8: 19 | LA8: 20 | LB8: 21 | LC8: 22 | LD8: 23 | LE8: 24 | LF8: 25 | LG8: 26 | LH8: 27 | LI8: 28 | LJ8: 29 | LK8: 30 | LL8: 31 | LM8: 32 | LN8: 33 | LO8: 34 | LP8: 35 | LQ8: 36 | LR8: 37 | LS8: 38 | LT8: 39 | LU8: 40 | LV8: 41 | LW8: 42 | LX8: 43 | LY8: 44 | LZ8: 45 | MA8: 46 | MB8: 47 | MC8: 48 | MD8: 49 | ME8: 50 | MF8: 51 | MG8: 52 | MH8: 53 | MI8: 54 | MJ8: 55 | MK8: 56 | ML8: 57 | MM8: 58 | MN8: 59 | MO8: 60 | MP8: 61 | MQ8: 62 | MR8: 63 | MS8: 64 | MT8: 65 | MU8: 66 | MV8: 67 | MW8: 68 | MX8: 69 | MY8: 70 | MZ8: 71 | NA8: 72 | NB8: 73 | NC8: 74 | ND8: 75 | NE8: 76 | NF8: 77 | NG8: 78 | NH8: 79 | NI8: 80 | NJ8: ∑ BZR | NK8: 1 | NL8: 2 | NM8: 3 | NN8: 4 | NO8: 5 | NP8: 6 | NQ8: 7 | NR8: 8 | NS8: 9 | NT8: 10 | NU8: 11 | NV8: 12 | NW8: 13 | NX8: 14 | NY8: 15 | NZ8: 16 | OA8: 17 | OB8: 18 | OC8: 19 | OD8: 20 | OE8: 21 | OF8: 22 | OG8: 23 | OH8: 24 | OI8: 25 | OJ8: 26 | OK8: 27 | OL8: 28 | OM8: 29 | ON8: 30 | OO8: 31 | OP8: 32 | OQ8: 33 | OR8: 34 | OS8: 35 | OT8: 36 | OU8: 37 | OV8: 38 | OW8: 39 | OX8: 40 | OY8: 41 | OZ8: 42 | PA8: 43 | PB8: 44 | PC8: 45 | PD8: 46 | PE8: 47 | PF8: 48 | PG8: 49 | PH8: 50 | PI8: 51 | PJ8: 52 | PK8: 53 | PL8: 54 | PM8: 55 | PN8: 56 | PO8: 57 | PP8: 58 | PQ8: 59 | PR8: 60 | PS8: 61 | PT8: 62 | PU8: 63 | PV8: 64 | PW8: 65 | PX8: 66 | PY8: 67 | PZ8: 68 | QA8: 69 | QB8: 70 | QC8: 71 | QD8: 72 | QE8: 73 | QF8: 74 | QG8: 75 | QH8: 76 | QI8: 77 | QJ8: 78 | QK8: 79 | QL8: 80 | QM8: ∑ BZR | QN8: 1 | QO8: 2 | QP8: 3 | QQ8: 4 | QR8: 5 | QS8: 6 | QT8: 7 | QU8: 8 | QV8: 9 | QW8: 10 | QX8: 11 | QY8: 12 | QZ8: 13 | RA8: 14 | RB8: 15 | RC8: 16 | RD8: 17 | RE8: 18 | RF8: 19 | RG8: 20 | RH8: 21 | RI8: 22 | RJ8: 23 | RK8: 24 | RL8: 25 | RM8: 26 | RN8: 27 | RO8: 28 | RP8: 29 | RQ8: 30 | RR8: 31 | RS8: 32 | RT8: 33 | RU8: 34 | RV8: 35 | RW8: 36 | RX8: 37 | RY8: 38 | RZ8: 39 | SA8: 40 | SB8: 41 | SC8: 42 | SD8: 43 | SE8: 44 | SF8: 45 | SG8: 46 | SH8: 47 | SI8: 48 | SJ8: 49 | SK8: 50 | SL8: 51 | SM8: 52 | SN8: 53 | SO8: 54 | SP8: 55 | SQ8: 56 | SR8: 57 | SS8: 58 | ST8: 59 | SU8: 60 | SV8: 61 | SW8: 62 | SX8: 63 | SY8: 64 | SZ8: 65 | TA8: 66 | TB8: 67 | TC8: 68 | TD8: 69 | TE8: 70 | TF8: 71 | TG8: 72 | TH8: 73 | TI8: 74 | TJ8: 75 | TK8: 76 | TL8: 77 | TM8: 78 | TN8: 79 | TO8: 80 | TQ8: ∑ BZR | TR8: 1 | TS8: 2 | TT8: 3 | TU8: 4 | TV8: 5 | TW8: 6 | TX8: 7 | TY8: 8 | TZ8: 9 | UA8: 10 | UB8: 11 | UC8: 12 | UD8: 13 | UE8: 14 | UF8: 15 | UG8: 16 | UH8: 17 | UI8: 18 | UJ8: 19 | UK8: 20 | UL8: 21 | UM8: 22 | UN8: 23 | UO8: 24 | UP8: 25 | UQ8: 26 | UR8: 27 | US8: 28 | UT8: 29 | UU8: 30 | UV8: 31 | UW8: 32 | UX8: 33 | UY8: 34 | UZ8: 35 | VA8: 36 | VB8: 37 | VC8: 38 | VD8: 39 | VE8: 40 | VF8: 41 | VG8: 42 | VH8: 43 | VI8: 44 | VJ8: 45 | VK8: 46 | VL8: 47 | VM8: 48 | VN8: 49 | VO8: 50 | VP8: 51 | VQ8: 52 | VR8: 53 | VS8: 54 | VT8: 55 | VU8: 56 | VV8: 57 | VW8: 58 | VX8: 59 | VY8: 60 | VZ8: 61 | WA8: 62 | WB8: 63 | WC8: 64 | WD8: 65 | WE8: 66 | WF8: 67 | WG8: 68 | WH8: 69 | WI8: 70 | WJ8: 71 | WK8: 72 | WL8: 73 | WM8: 74 | WN8: 75 | WO8: 76 | WP8: 77 | WQ8: 78 | WR8: 79 | WS8: 80 | WT8: ∑ BZR | WU8: 1 | WV8: 2 | WW8: 3 | WX8: 4 | WY8: 5 | WZ8: 6 | XA8: 7 | XB8: 8 | XC8: 9 | XD8: 10 | XE8: 11 | XF8: 12 | XG8: 13 | XH8: 14 | XI8: 15 | XJ8: 16 | XK8: 17 | XL8: 18 | XM8: 19 | XN8: 20 | XO8: 21 | XP8: 22 | XQ8: 23 | XR8: 24 | XS8: 25 | XT8: 26 | XU8: 27 | XV8: 28 | XW8: 29 | XX8: 30 | XY8: 31 | XZ8: 32 | YA8: 33 | YB8: 34 | YC8: 35 | YD8: 36 | YE8: 37 | YF8: 38 | YG8: 39 | YH8: 40 | YI8: 41 | YJ8: 42 | YK8: 43 | YL8: 44 | YM8: 45 | YN8: 46 | YO8: 47 | YP8: 48 | YQ8: 49 | YR8: 50 | YS8: 51 | YT8: 52 | YU8: 53 | YV8: 54 | YW8: 55 | YX8: 56 | YY8: 57 | YZ8: 58 | ZA8: 59 | ZB8: 60 | ZC8: 61 | ZD8: 62 | ZE8: 63 | ZF8: 64 | ZG8: 65 | ZH8: 66 | ZI8: 67 | ZJ8: 68 | ZK8: 69 | ZL8: 70 | ZM8: 71 | ZN8: 72 | ZO8: 73 | ZP8: 74 | ZQ8: 75 | ZR8: 76 | ZS8: 77 | ZT8: 78 | ZU8: 79 | ZV8: 80 | ZW8: ∑ BZR | ZX8: 1 | ZY8: 2 | ZZ8: 3 | AAA8: 4 | AAB8: 5 | AAC8: 6 | AAD8: 7 | AAE8: 8 | AAF8: 9 | AAG8: 10 | AAH8: 11 | AAI8: 12 | AAJ8: 13 | AAK8: 14 | AAL8: 15 | AAM8: 16 | AAN8: 17 | AAO8: 18 | AAP8: 19 | AAQ8: 20 | AAR8: 21 | AAS8: 22 | AAT8: 23 | AAU8: 24 | AAV8: 25 | AAW8: 26 | AAX8: 27 | AAY8: 28 | AAZ8: 29 | ABA8: 30 | ABB8: 31 | ABC8: 32 | ABD8: 33 | ABE8: 34 | ABF8: 35 | ABG8: 36 | ABH8: 37 | ABI8: 38 | ABJ8: 39 | ABK8: 40 | ABL8: 41 | ABM8: 42 | ABN8: 43 | ABO8: 44 | ABP8: 45 | ABQ8: 46 | ABR8: 47 | ABS8: 48 | ABT8: 49 | ABU8: 50 | ABV8: 51 | ABW8: 52 | ABX8: 53 | ABY8: 54 | ABZ8: 55 | ACA8: 56 | ACB8: 57 | ACC8: 58 | ACD8: 59 | ACE8: 60 | ACF8: 61 | ACG8: 62 | ACH8: 63 | ACI8: 64 | ACJ8: 65 | ACK8: 66 | ACL8: 67 | ACM8: 68 | ACN8: 69 | ACO8: 70 | ACP8: 71 | ACQ8: 72 | ACR8: 73 | ACS8: 74 | ACT8: 75 | ACU8: 76 | ACV8: 77 | ACW8: 78 | ACX8: 79 | ACY8: 80
J9: =SUM(J10:J13) -> 0 | K9: =SUM(K10:K13) -> 0 | L9: =SUM(L10:L13) -> 0 | AG9: =SUM(AG10:AG13) -> 0 | AH9: =SUM(AH10:AH13) -> 0 | AI9: =SUM(AI10:AI13) -> 0 | AJ9: =SUMIF($H11:$H12,"Nein",AM11:AM12) -> 0 | AK9: =SUMIF($H11:$H12,"Nein",AN11:AN12) -> 0 | AL9: =SUMIF($H11:$H12,"Nein",AO11:AO12) -> 0 | AM9: =SUM(AM11:AM12) -> 0 | AN9: 0 | AO9: 0 | AP9: 0 | AQ9: 0 | AR9: 0 | AS9: =IF(AND(ISNUMBER(BGFabc),BGFabc>0),AT9/BGFabc,"") ->  | AT9: =ERG_BARERSATZ300+ERG_BARERSATZ400+ERG_BARERSATZ500+ERG_BARWART300+ERG_BARWART400+ERG_BARWART500+ERG_BARINST300+ERG_BARINST400+ERG_BARINST500 -> 0 | AW9: =SUM(AW10:AW13) -> 0 | AX9: 0 | AY9: 0 | AZ9: 0 | BA9: 0 | BB9: 0 | BC9: 0 | BD9: 0 | BE9: 0 | BF9: 0 | BG9: 0 | BH9: 0 | BI9: 0 | BJ9: 0 | BK9: 0 | BL9: 0 | BM9: 0 | BN9: 0 | BO9: 0 | BP9: 0 | BQ9: 0 | BR9: 0 | BS9: 0 | BT9: 0 | BU9: 0 | BV9: 0 | BW9: 0 | BX9: 0 | BY9: 0 | BZ9: 0 | CA9: 0 | CB9: 0 | CC9: 0 | CD9: 0 | CE9: 0 | CF9: 0 | CG9: 0 | CH9: 0 | CI9: 0 | CJ9: 0 | CK9: 0 | CL9: 0 | CM9: 0 | CN9: 0 | CO9: 0 | CP9: 0 | CQ9: 0 | CR9: 0 | CS9: 0 | CT9: 0 | CU9: 0 | CV9: 0 | CW9: 0 | CX9: 0 | CY9: 0 | CZ9: 0 | DA9: 0 | DB9: 0 | DC9: 0 | DD9: 0 | DE9: 0 | DF9: 0 | DG9: 0 | DH9: 0 | DI9: =SUM(DI10:DI13) -> 0 | DJ9: 0 | DK9: 0 | DL9: 0 | DM9: 0 | DN9: 0 | DO9: 0 | DP9: 0 | DQ9: 0 | DR9: 0 | DS9: 0 | DT9: 0 | DU9: 0 | DV9: 0 | DW9: 0 | DX9: 0 | DY9: 0 | DZ9: 0 | EA9: 0 | EB9: 0 | EC9: 0 | ED9: 0 | EE9: 0 | EF9: 0 | EG9: 0 | EH9: 0 | EI9: 0 | EJ9: 0 | EK9: 0 | EL9: 0 | EM9: 0 | EN9: 0 | EO9: 0 | EP9: 0 | EQ9: 0 | ER9: 0 | ES9: 0 | ET9: 0 | EU9: 0 | EV9: 0 | EW9: 0 | EX9: 0 | EY9: 0 | EZ9: 0 | FA9: 0 | FB9: 0 | FC9: 0 | FD9: 0 | FE9: 0 | FF9: 0 | FG9: 0 | FH9: 0 | FI9: 0 | FJ9: 0 | FK9: 0 | FL9: 0 | FM9: 0 | FN9: 0 | FO9: 0 | FP9: 0 | FQ9: 0 | FR9: 0 | FS9: 0 | FT9: 0 | FU9: =SUM(FU10:FU13) -> 0 | FV9: 0 | FW9: 0 | FX9: 0 | FY9: 0 | FZ9: 0 | GA9: 0 | GB9: 0 | GC9: 0 | GD9: 0 | GE9: 0 | GF9: 0 | GG9: 0 | GH9: 0 | GI9: 0 | GJ9: 0 | GK9: 0 | GL9: 0 | GM9: 0 | GN9: 0 | GO9: 0 | GP9: 0 | GQ9: 0 | GR9: 0 | GS9: 0 | GT9: 0 | GU9: 0 | GV9: 0 | GW9: 0 | GX9: 0 | GY9: 0 | GZ9: 0 | HA9: 0 | HB9: 0 | HC9: 0 | HD9: 0 | HE9: 0 | HF9: 0 | HG9: 0 | HH9: 0 | HI9: 0 | HJ9: 0 | HK9: 0 | HL9: 0 | HM9: 0 | HN9: 0 | HO9: 0 | HP9: 0 | HQ9: 0 | HR9: 0 | HS9: 0 | HT9: 0 | HU9: 0 | HV9: 0 | HW9: 0 | HX9: 0 | HY9: 0 | HZ9: 0 | IA9: 0 | IB9: 0 | IC9: 0 | ID9: 0 | IE9: 0 | IF9: 0 | IG9: =SUM(IG10:IG13) -> 0 | IH9: 0 | II9: 0 | IJ9: 0 | IK9: 0 | IL9: 0 | IM9: 0 | IN9: 0 | IO9: 0 | IP9: 0 | IQ9: 0 | IR9: 0 | IS9: 0 | IT9: 0 | IU9: 0 | IV9: 0 | IW9: 0 | IX9: 0 | IY9: 0 | IZ9: 0 | JA9: 0 | JB9: 0 | JC9: 0 | JD9: 0 | JE9: 0 | JF9: 0 | JG9: 0 | JH9: 0 | JI9: 0 | JJ9: 0 | JK9: 0 | JL9: 0 | JM9: 0 | JN9: 0 | JO9: 0 | JP9: 0 | JQ9: 0 | JR9: 0 | JS9: 0 | JT9: 0 | JU9: 0 | JV9: 0 | JW9: 0 | JX9: 0 | JY9: 0 | JZ9: 0 | KA9: 0 | KB9: 0 | KC9: 0 | KD9: 0 | KE9: 0 | KG9: =SUM(KG10:KG13) -> 0 | KH9: 0 | KI9: 0 | KJ9: 0 | KK9: 0 | KL9: 0 | KM9: 0 | KN9: 0 | KO9: 0 | KP9: 0 | KQ9: 0 | KR9: 0 | KS9: 0 | KT9: 0 | KU9: 0 | KV9: 0 | KW9: 0 | KX9: 0 | KY9: 0 | KZ9: 0 | LA9: 0 | LB9: 0 | LC9: 0 | LD9: 0 | LE9: 0 | LF9: 0 | LG9: 0 | LH9: 0 | LI9: 0 | LJ9: 0 | LK9: 0 | LL9: 0 | LM9: 0 | LN9: 0 | LO9: 0 | LP9: 0 | LQ9: 0 | LR9: 0 | LS9: 0 | LT9: 0 | LU9: 0 | LV9: 0 | LW9: 0 | LX9: 0 | LY9: 0 | LZ9: 0 | MA9: 0 | MB9: 0 | MC9: 0 | MD9: 0 | ME9: 0 | MF9: 0 | MG9: 0 | MH9: 0 | MI9: 0 | MJ9: 0 | MK9: 0 | ML9: 0 | MM9: 0 | MN9: 0 | MO9: 0 | MP9: 0 | MQ9: 0 | MR9: 0 | MS9: =SUM(MS10:MS13) -> 0 | MT9: 0 | MU9: 0 | MV9: 0 | MW9: 0 | MX9: 0 | MY9: 0 | MZ9: 0 | NA9: 0 | NB9: 0 | NC9: 0 | ND9: 0 | NE9: 0 | NF9: 0 | NG9: 0 | NH9: 0 | NI9: 0 | NJ9: 0 | NK9: 0 | NL9: 0 | NM9: 0 | NN9: 0 | NO9: 0 | NP9: 0 | NQ9: 0 | NR9: 0 | NS9: 0 | NT9: 0 | NU9: 0 | NV9: 0 | NW9: 0 | NX9: 0 | NY9: 0 | NZ9: 0 | OA9: 0 | OB9: 0 | OC9: 0 | OD9: 0 | OE9: 0 | OF9: 0 | OG9: 0 | OH9: 0 | OI9: 0 | OJ9: 0 | OK9: 0 | OL9: 0 | OM9: 0 | ON9: 0 | OO9: 0 | OP9: 0 | OQ9: 0 | OR9: 0 | OS9: 0 | OT9: 0 | OU9: 0 | OV9: 0 | OW9: 0 | OX9: 0 | OY9: 0 | OZ9: 0 | PA9: 0 | PB9: 0 | PC9: 0 | PD9: 0 | PE9: =SUM(PE10:PE13) -> 0 | PF9: 0 | PG9: 0 | PH9: 0 | PI9: 0 | PJ9: 0 | PK9: 0 | PL9: 0 | PM9: 0 | PN9: 0 | PO9: 0 | PP9: 0 | PQ9: 0 | PR9: 0 | PS9: 0 | PT9: 0 | PU9: 0 | PV9: 0 | PW9: 0 | PX9: 0 | PY9: 0 | PZ9: 0 | QA9: 0 | QB9: 0 | QC9: 0 | QD9: 0 | QE9: 0 | QF9: 0 | QG9: 0 | QH9: 0 | QI9: 0 | QJ9: 0 | QK9: 0 | QL9: 0 | QM9: 0 | QN9: 0 | QO9: 0 | QP9: 0 | QQ9: 0 | QR9: 0 | QS9: 0 | QT9: 0 | QU9: 0 | QV9: 0 | QW9: 0 | QX9: 0 | QY9: 0 | QZ9: 0 | RA9: 0 | RB9: 0 | RC9: 0 | RD9: 0 | RE9: 0 | RF9: 0 | RG9: 0 | RH9: 0 | RI9: 0 | RJ9: 0 | RK9: 0 | RL9: 0 | RM9: 0 | RN9: 0 | RO9: 0 | RP9: 0 | RQ9: =SUM(RQ10:RQ13) -> 0 | RR9: 0 | RS9: 0 | RT9: 0 | RU9: 0 | RV9: 0 | RW9: 0 | RX9: 0 | RY9: 0 | RZ9: 0 | SA9: 0 | SB9: 0 | SC9: 0 | SD9: 0 | SE9: 0 | SF9: 0 | SG9: 0 | SH9: 0 | SI9: 0 | SJ9: 0 | SK9: 0 | SL9: 0 | SM9: 0 | SN9: 0 | SO9: 0 | SP9: 0 | SQ9: 0 | SR9: 0 | SS9: 0 | ST9: 0 | SU9: 0 | SV9: 0 | SW9: 0 | SX9: 0 | SY9: 0 | SZ9: 0 | TA9: 0 | TB9: 0 | TC9: 0 | TD9: 0 | TE9: 0 | TF9: 0 | TG9: 0 | TH9: 0 | TI9: 0 | TJ9: 0 | TK9: 0 | TL9: 0 | TM9: 0 | TN9: 0 | TO9: 0 | TQ9: =SUM(TQ10:TQ13) -> 0 | TR9: 0 | TS9: 0 | TT9: 0 | TU9: 0 | TV9: 0 | TW9: 0 | TX9: 0 | TY9: 0 | TZ9: 0 | UA9: 0 | UB9: 0 | UC9: 0 | UD9: 0 | UE9: 0 | UF9: 0 | UG9: 0 | UH9: 0 | UI9: 0 | UJ9: 0 | UK9: 0 | UL9: 0 | UM9: 0 | UN9: 0 | UO9: 0 | UP9: 0 | UQ9: 0 | UR9: 0 | US9: 0 | UT9: 0 | UU9: 0 | UV9: 0 | UW9: 0 | UX9: 0 | UY9: 0 | UZ9: 0 | VA9: 0 | VB9: 0 | VC9: 0 | VD9: 0 | VE9: 0 | VF9: 0 | VG9: 0 | VH9: 0 | VI9: 0 | VJ9: 0 | VK9: 0 | VL9: 0 | VM9: 0 | VN9: 0 | VO9: 0 | VP9: 0 | VQ9: 0 | VR9: 0 | VS9: 0 | VT9: 0 | VU9: 0 | VV9: 0 | VW9: 0 | VX9: 0 | VY9: 0 | VZ9: 0 | WA9: 0 | WB9: 0 | WC9: =SUM(WC10:WC13) -> 0 | WD9: 0 | WE9: 0 | WF9: 0 | WG9: 0 | WH9: 0 | WI9: 0 | WJ9: 0 | WK9: 0 | WL9: 0 | WM9: 0 | WN9: 0 | WO9: 0 | WP9: 0 | WQ9: 0 | WR9: 0 | WS9: 0 | WT9: 0 | WU9: 0 | WV9: 0 | WW9: 0 | WX9: 0 | WY9: 0 | WZ9: 0 | XA9: 0 | XB9: 0 | XC9: 0 | XD9: 0 | XE9: 0 | XF9: 0 | XG9: 0 | XH9: 0 | XI9: 0 | XJ9: 0 | XK9: 0 | XL9: 0 | XM9: 0 | XN9: 0 | XO9: 0 | XP9: 0 | XQ9: 0 | XR9: 0 | XS9: 0 | XT9: 0 | XU9: 0 | XV9: 0 | XW9: 0 | XX9: 0 | XY9: 0 | XZ9: 0 | YA9: 0 | YB9: 0 | YC9: 0 | YD9: 0 | YE9: 0 | YF9: 0 | YG9: 0 | YH9: 0 | YI9: 0 | YJ9: 0 | YK9: 0 | YL9: 0 | YM9: 0 | YN9: 0 | YO9: =SUM(YO10:YO13) -> 0 | YP9: 0 | YQ9: 0 | YR9: 0 | YS9: 0 | YT9: 0 | YU9: 0 | YV9: 0 | YW9: 0 | YX9: 0 | YY9: 0 | YZ9: 0 | ZA9: 0 | ZB9: 0 | ZC9: 0 | ZD9: 0 | ZE9: 0 | ZF9: 0 | ZG9: 0 | ZH9: 0 | ZI9: 0 | ZJ9: 0 | ZK9: 0 | ZL9: 0 | ZM9: 0 | ZN9: 0 | ZO9: 0 | ZP9: 0 | ZQ9: 0 | ZR9: 0 | ZS9: 0 | ZT9: 0 | ZU9: 0 | ZV9: 0 | ZW9: 0 | ZX9: 0 | ZY9: 0 | ZZ9: 0 | AAA9: 0 | AAB9: 0 | AAC9: 0 | AAD9: 0 | AAE9: 0 | AAF9: 0 | AAG9: 0 | AAH9: 0 | AAI9: 0 | AAJ9: 0 | AAK9: 0 | AAL9: 0 | AAM9: 0 | AAN9: 0 | AAO9: 0 | AAP9: 0 | AAQ9: 0 | AAR9: 0 | AAS9: 0 | AAT9: 0 | AAU9: 0 | AAV9: 0 | AAW9: 0 | AAX9: 0 | AAY9: 0 | AAZ9: 0 | ABA9: =SUM(ABA10:ABA13) -> 0 | ABB9: 0 | ABC9: 0 | ABD9: 0 | ABE9: 0 | ABF9: 0 | ABG9: 0 | ABH9: 0 | ABI9: 0 | ABJ9: 0 | ABK9: 0 | ABL9: 0 | ABM9: 0 | ABN9: 0 | ABO9: 0 | ABP9: 0 | ABQ9: 0 | ABR9: 0 | ABS9: 0 | ABT9: 0 | ABU9: 0 | ABV9: 0 | ABW9: 0 | ABX9: 0 | ABY9: 0 | ABZ9: 0 | ACA9: 0 | ACB9: 0 | ACC9: 0 | ACD9: 0 | ACE9: 0 | ACF9: 0 | ACG9: 0 | ACH9: 0 | ACI9: 0 | ACJ9: 0 | ACK9: 0 | ACL9: 0 | ACM9: 0 | ACN9: 0 | ACO9: 0 | ACP9: 0 | ACQ9: 0 | ACR9: 0 | ACS9: 0 | ACT9: 0 | ACU9: 0 | ACV9: 0 | ACW9: 0 | ACX9: 0 | ACY9: 0
E10: 0
M12: 1 | Q12: =IF(ISNUMBER(VLOOKUP(S12,ND_Verweis,2,0)),VLOOKUP(S12,ND_Verweis,2,0),"") ->  | W12: =IF(ISNUMBER(VLOOKUP(AA12,NK_Verweis,4,0)),VLOOKUP(AA12,NK_Verweis,4,0),"") ->  | AJ12: =IF(AND($E12>=300,$E12<400,$G12="Ja"),$K12,0) -> 0 | AK12: =IF(AND($E12>=400,$E12<500,$G12="Ja"),$K12,0) -> 0 | AL12: =IF(AND($E12>=500,$E12<600,$G12="Ja"),$K12,0) -> 0 | KG12: =SUM(OFFSET(KH12,,,,BZBNB)) -> 0
A13: =(MAX(A$9:A$12))+1 -> 1 | E13: =IF(ISNUMBER(VLOOKUP(F13,DIN276_Verweis,2,0)),VLOOKUP(F13,DIN276_Verweis,2,0),"k.A.") -> k.A. | G13: Ja | H13: Nein | J13: =O13*M13 -> 0 | K13: =IF(G13="Ja",$J13*PINDbnb,0) -> 0 | L13: =IF(AND(G13="Ja",H13="Nein"),$J13*PINDbnb,0) -> 0 | M13: 1 | P13: =(BZBNB-MOD(BZBNB-1,R13)-1)/R13 -> 49 | R13: =IF(AND(IF(U13="Nein",T13,V13)>0,ISNUMBER(IF(U13="Nein",T13,V13))),IF(U13="Nein",T13,V13),1) -> 1 | T13: =IF(ISNUMBER(VLOOKUP(S13,ND_Verweis,5,0)),VLOOKUP(S13,ND_Verweis,5,0),"") ->  | U13: Nein | W13: =IF(ISNUMBER(VLOOKUP(AA13,NK_Verweis,4,0)),VLOOKUP(AA13,NK_Verweis,4,0),"") ->  | X13: =SUM(AM13:AO13) -> 0 | Y13: =SUM(AP13:AR13) -> 0 | Z13: =SUM(X13:Y13) -> 0 | AB13: =IF(ISNUMBER(VLOOKUP(AA13,NK_Verweis,7,0)),VLOOKUP(AA13,NK_Verweis,7,0),0) -> 0 | AC13: =IF(ISNUMBER(VLOOKUP(AA13,NK_Verweis,8,0)),VLOOKUP(AA13,NK_Verweis,8,0),0) -> 0 | AD13: Nein | AG13: =IF(AND($E13>=300,$E13<400,$G13="Ja",$H13="Nein"),$K13,0) -> 0 | AH13: =IF(AND($E13>=400,$E13<500,$G13="Ja",$H13="Nein"),$K13,0) -> 0 | AI13: =IF(AND($E13>=500,$E13<600,$G13="Ja",$H13="Nein"),$K13,0) -> 0 | AJ13: 0 | AK13: 0 | AL13: 0 | AM13: =IF(AND($E13>=300,$E13<400,$G13="Ja"),IF($AD13="Ja",$AE13,$AJ13*$AB13),0) -> 0 | AN13: =IF(AND($E13>=400,$E13<500,$G13="Ja"),IF($AD13="Ja",$AE13,$AK13*$AB13),0) -> 0 | AO13: =IF(AND($E13>=500,$E13<600,$G13="Ja"),IF($AD13="Ja",$AE13,$AL13*$AB13),0) -> 0 | AP13: =IF(AND($E13>=300,$E13<400,$G13="Ja"),IF($AD13="Ja",$AF13,$AJ13*$AC13),0) -> 0 | AQ13: =IF(AND($E13>=400,$E13<500,$G13="Ja"),IF($AD13="Ja",$AF13,$AK13*$AC13),0) -> 0 | AR13: =IF(AND($E13>=500,$E13<600,$G13="Ja"),IF($AD13="Ja",$AF13,$AL13*$AC13),0) -> 0 | AS13: =IF(AND(ISNUMBER(BGFabc),BGFabc>0),AT13/BGFabc,"") ->  | AT13: =AW13+DZ13+HC13+KG13+NJ13+QM13+TQ13+WT13+ZW13 -> 0 | AW13: =SUM(OFFSET(AX13,,,,BZBNB-1)) -> 0 | AY13: =IF(AND(MOD(AX$8,$R13)=0,AY$8<BZBNB),$AJ13*POWER(1+PSBNB,(AY$8+1))*POWER(1+KALBNB,-(AY$8+1)),"") -> 0 | AZ13: 0 | BA13: 0 | BB13: 0 | BC13: 0 | BD13: 0 | BE13: 0 | BF13: 0 | BG13: 0 | BH13: 0 | BI13: 0 | BJ13: 0 | BK13: 0 | BL13: 0 | BM13: 0 | BN13: 0 | BO13: 0 | BP13: 0 | BQ13: 0 | BR13: 0 | BS13: 0 | BT13: 0 | BU13: 0 | BV13: 0 | BW13: 0 | BX13: 0 | BY13: 0 | BZ13: 0 | CA13: 0 | CB13: 0 | CC13: 0 | CD13: 0 | CE13: =IF(AND(MOD(CD$8,$R13)=0,CE$8<BZBNB),$AJ13*POWER(1+PSBNB,(CE$8+1))*POWER(1+KALBNB,-(CE$8+1)),"") -> 0 | CF13: 0 | CG13: 0 | CH13: 0 | CI13: 0 | CJ13: 0 | CK13: 0 | CL13: 0 | CM13: 0 | CN13: 0 | CO13: 0 | CP13: 0 | CQ13: 0 | CR13: 0 | CS13: 0 | CT13: 0 | DK13: =IF(AND(MOD(DJ$8,$R13)=0,DK$8<BZBNB),$AJ13*POWER(1+PSBNB,(DK$8+1))*POWER(1+KALBNB,-(DK$8+1)),"") ->  | DZ13: =SUM(OFFSET(EA13,,,,BZBNB-1)) -> 0 | EB13: =IF(AND(MOD(EA$8,$R13)=0,EB$8<BZBNB),$AK13*POWER(1+PSBNB,(EB$8+1))*POWER(1+KALBNB,-(EB$8+1)),"") -> 0 | EC13: 0 | ED13: 0 | EE13: 0 | EF13: 0 | EG13: 0 | EH13: 0 | EI13: 0 | EJ13: 0 | EK13: 0 | EL13: 0 | EM13: 0 | EN13: 0 | EO13: 0 | EP13: 0 | EQ13: 0 | ER13: 0 | ES13: 0 | ET13: 0 | EU13: 0 | EV13: 0 | EW13: 0 | EX13: 0 | EY13: 0 | EZ13: 0 | FA13: 0 | FB13: 0 | FC13: 0 | FD13: 0 | FE13: 0 | FF13: 0 | FG13: 0 | FH13: =IF(AND(MOD(FG$8,$R13)=0,FH$8<BZBNB),$AK13*POWER(1+PSBNB,(FH$8+1))*POWER(1+KALBNB,-(FH$8+1)),"") -> 0 | FI13: 0 | FJ13: 0 | FK13: 0 | FL13: 0 | FM13: 0 | FN13: 0 | FO13: 0 | FP13: 0 | FQ13: 0 | FR13: 0 | FS13: 0 | FT13: 0 | FU13: 0 | FV13: 0 | FW13: 0 | GN13: =IF(AND(MOD(GM$8,$R13)=0,GN$8<BZBNB),$AK13*POWER(1+PSBNB,(GN$8+1))*POWER(1+KALBNB,-(GN$8+1)),"") ->  | HC13: =SUM(OFFSET(HD13,,,,BZBNB-1)) -> 0 | HE13: =IF(AND(MOD(HD$8,$R13)=0,HE$8<BZBNB),$AL13*POWER(1+PSBNB,HE$8)*POWER(1+KALBNB,-HE$8),"") -> 0 | HF13: 0 | HG13: 0 | HH13: 0 | HI13: 0 | HJ13: 0 | HK13: 0 | HL13: 0 | HM13: 0 | HN13: 0 | HO13: 0 | HP13: 0 | HQ13: 0 | HR13: 0 | HS13: 0 | HT13: 0 | HU13: 0 | HV13: 0 | HW13: 0 | HX13: 0 | HY13: 0 | HZ13: 0 | IA13: 0 | IB13: 0 | IC13: 0 | ID13: 0 | IE13: 0 | IF13: 0 | IG13: 0 | IH13: 0 | II13: 0 | IJ13: 0 | IK13: =IF(AND(MOD(IJ$8,$R13)=0,IK$8<BZBNB),$AL13*POWER(1+PSBNB,IK$8)*POWER(1+KALBNB,-IK$8),"") -> 0 | IL13: 0 | IM13: 0 | IN13: 0 | IO13: 0 | IP13: 0 | IQ13: 0 | IR13: 0 | IS13: 0 | IT13: 0 | IU13: 0 | IV13: 0 | IW13: 0 | IX13: 0 | IY13: 0 | IZ13: 0 | JQ13: =IF(AND(MOD(JP$8,$R13)=0,JQ$8<BZBNB),$AL13*POWER(1+PSBNB,JQ$8)*POWER(1+KALBNB,-JQ$8),"") ->  | KG13: 0 | KH13: =IF(AND(ISNUMBER($AM13),$AM13<>0),$AM13*POWER(1+PSBNB,KH$8)*POWER(1+KALBNB,-KH$8),"") ->  | LN13: =IF(AND(ISNUMBER($AM13),$AM13<>0),$AM13*POWER(1+PSBNB,LN$8)*POWER(1+KALBNB,-LN$8),"") ->  | MT13: =IF(AND(ISNUMBER($AM13),$AM13<>0),$AM13*POWER(1+PSBNB,MT$8)*POWER(1+KALBNB,-MT$8),"") ->  | NJ13: =SUM(OFFSET(NK13,,,,BZBNB)) -> 0 | NK13: =IF(AND(ISNUMBER($AN13),$AN13<>0),$AN13*POWER(1+PSBNB,NK$8)*POWER(1+KALBNB,-NK$8),"") ->  | OQ13: =IF(AND(ISNUMBER($AN13),$AN13<>0),$AN13*POWER(1+PSBNB,OQ$8)*POWER(1+KALBNB,-OQ$8),"") ->  | PW13: =IF(AND(ISNUMBER($AN13),$AN13<>0),$AN13*POWER(1+PSBNB,PW$8)*POWER(1+KALBNB,-PW$8),"") ->  | QM13: =SUM(OFFSET(QN13,,,,BZBNB)) -> 0 | QN13: =IF(AND(ISNUMBER($AO13),$AO13<>0),$AO13*POWER(1+PSBNB,QN$8)*POWER(1+KALBNB,-QN$8),"") ->  | RT13: =IF(AND(ISNUMBER($AO13),$AO13<>0),$AO13*POWER(1+PSBNB,RT$8)*POWER(1+KALBNB,-RT$8),"") ->  | SZ13: =IF(AND(ISNUMBER($AO13),$AO13<>0),$AO13*POWER(1+PSBNB,SZ$8)*POWER(1+KALBNB,-SZ$8),"") ->  | TQ13: =SUM(OFFSET(TR13,,,,BZBNB)) -> 0 | TR13: =IF(AND(ISNUMBER($AP13),$AP13<>0),$AP13*POWER(1+PSBNB,TR$8)*POWER(1+KALBNB,-TR$8),"") ->  | UX13: =IF(AND(ISNUMBER($AP13),$AP13<>0),$AP13*POWER(1+PSBNB,UX$8)*POWER(1+KALBNB,-UX$8),"") ->  | WD13: =IF(AND(ISNUMBER($AP13),$AP13<>0),$AP13*POWER(1+PSBNB,WD$8)*POWER(1+KALBNB,-WD$8),"") ->  | WT13: =SUM(OFFSET(WU13,,,,BZBNB)) -> 0 | WU13: =IF(AND(ISNUMBER($AQ13),$AQ13<>0),$AQ13*POWER(1+PSBNB,WU$8)*POWER(1+KALBNB,-WU$8),"") ->  | YA13: =IF(AND(ISNUMBER($AQ13),$AQ13<>0),$AQ13*POWER(1+PSBNB,YA$8)*POWER(1+KALBNB,-YA$8),"") ->  | ZG13: =IF(AND(ISNUMBER($AQ13),$AQ13<>0),$AQ13*POWER(1+PSBNB,ZG$8)*POWER(1+KALBNB,-ZG$8),"") ->  | ZW13: =SUM(OFFSET(ZX13,,,,BZBNB)) -> 0 | ZX13: =IF(AND(ISNUMBER($AR13),$AR13<>0),$AR13*POWER(1+PSBNB,ZX$8)*POWER(1+KALBNB,-ZX$8),"") ->  | ABD13: =IF(AND(ISNUMBER($AR13),$AR13<>0),$AR13*POWER(1+PSBNB,ABD$8)*POWER(1+KALBNB,-ABD$8),"") ->  | ACJ13: =IF(AND(ISNUMBER($AR13),$AR13<>0),$AR13*POWER(1+PSBNB,ACJ$8)*POWER(1+KALBNB,-ACJ$8),"") -> 

Sheet Bauteilreinigung
A1: Berechnung LCC nach BNB BN 2.1.1 v2011 Eingabe Bauteilreinigung | C1: BBR-LCC Ver. 15-1 BBR A1
A2: Projekt: | B2: =IF(ISTEXT(Projekt),Projekt,"") -> 
A3: Stand: | B3: =IF(ISNUMBER(LCC_Stand),LCC_Stand,"") -> 
A5: Nr. | B5: Bezeichnung | C5: Einbauort | D5: Reinigungs-fläche | E5: Seiten | F5: Bauteil | G5: Oberfläche | H5: Typ | I5: Einbauort | J5: Material | K5: Zugänglichkeit | L5: Belastung | M5: €/h | N5: m²/h | O5: Anzahl je Jahr | P5: €/m² | Q5: €/m²*a | R5: €/a | S5: Barwert | T5: Barwert | U5: Barwert | V5: Barwert | W5: Barwert | X5: Barwert | Y5: Barwert | Z5: Barwert | AA5: Barwert | AB5: Barwert | AC5: Barwert | AD5: Barwert | AE5: Barwert | AF5: Barwert | AG5: Barwert | AH5: Barwert | AI5: Barwert | AJ5: Barwert | AK5: Barwert | AL5: Barwert | AM5: Barwert | AN5: Barwert | AO5: Barwert | AP5: Barwert | AQ5: Barwert | AR5: Barwert | AS5: Barwert | AT5: Barwert | AU5: Barwert | AV5: Barwert | AW5: Barwert | AX5: Barwert | AY5: Barwert | AZ5: Barwert | BA5: Barwert | BB5: Barwert | BC5: Barwert | BD5: Barwert | BE5: Barwert | BF5: Barwert | BG5: Barwert | BH5: Barwert | BI5: Barwert | BJ5: Barwert | BK5: Barwert | BL5: Barwert | BM5: Barwert | BN5: Barwert | BO5: Barwert | BP5: Barwert | BQ5: Barwert | BR5: Barwert | BS5: Barwert | BT5: Barwert | BU5: Barwert | BV5: Barwert | BW5: Barwert | BX5: Barwert | BY5: Barwert | BZ5: Barwert | CA5: Barwert | CB5: Barwert | CC5: Barwert | CD5: Barwert | CE5: Barwert | CF5: Barwert | CG5: Barwert | CH5: Barwert | CI5: Barwert | CJ5: Barwert | CK5: Barwert | CL5: Barwert | CM5: Barwert | CN5: Barwert | CO5: Barwert | CP5: Barwert | CQ5: Barwert | CR5: Barwert | CS5: Barwert | CT5: Barwert | CU5: Barwert
S6: ∑ BZR | T6: 1 | U6: 2 | V6: 3 | W6: 4 | X6: 5 | Y6: 6 | Z6: 7 | AA6: 8 | AB6: 9 | AC6: 10 | AD6: 11 | AE6: 12 | AF6: 13 | AG6: 14 | AH6: 15 | AI6: 16 | AJ6: 17 | AK6: 18 | AL6: 19 | AM6: 20 | AN6: 21 | AO6: 22 | AP6: 23 | AQ6: 24 | AR6: 25 | AS6: 26 | AT6: 27 | AU6: 28 | AV6: 29 | AW6: 30 | AX6: 31 | AY6: 32 | AZ6: 33 | BA6: 34 | BB6: 35 | BC6: 36 | BD6: 37 | BE6: 38 | BF6: 39 | BG6: 40 | BH6: 41 | BI6: 42 | BJ6: 43 | BK6: 44 | BL6: 45 | BM6: 46 | BN6: 47 | BO6: 48 | BP6: 49 | BQ6: 50 | BR6: 51 | BS6: 52 | BT6: 53 | BU6: 54 | BV6: 55 | BW6: 56 | BX6: 57 | BY6: 58 | BZ6: 59 | CA6: 60 | CB6: 61 | CC6: 62 | CD6: 63 | CE6: 64 | CF6: 65 | CG6: 66 | CH6: 67 | CI6: 68 | CJ6: 69 | CK6: 70 | CL6: 71 | CM6: 72 | CN6: 73 | CO6: 74 | CP6: 75 | CQ6: 76 | CR6: 77 | CS6: 78 | CT6: 79 | CU6: 80
R7: =SUM(R8:R10) -> 0 | S7: 0 | T7: 0 | U7: 0 | V7: 0 | W7: 0 | X7: 0 | Y7: 0 | Z7: 0 | AA7: 0 | AB7: 0 | AC7: 0 | AD7: 0 | AE7: 0 | AF7: 0 | AG7: 0 | AH7: 0 | AI7: 0 | AJ7: 0 | AK7: 0 | AL7: 0 | AM7: 0 | AN7: 0 | AO7: 0 | AP7: 0 | AQ7: 0 | AR7: 0 | AS7: 0 | AT7: 0 | AU7: 0 | AV7: 0 | AW7: 0 | AX7: =SUM(AX8:AX10) -> 0 | AY7: 0 | AZ7: 0 | BA7: 0 | BB7: 0 | BC7: 0 | BD7: 0 | BE7: 0 | BF7: 0 | BG7: 0 | BH7: 0 | BI7: 0 | BJ7: 0 | BK7: 0 | BL7: 0 | BM7: 0 | BN7: 0 | BO7: 0 | BP7: 0 | BQ7: 0 | BR7: 0 | BS7: 0 | BT7: 0 | BU7: 0 | BV7: 0 | BW7: 0 | BX7: 0 | BY7: 0 | BZ7: 0 | CA7: 0 | CB7: 0 | CC7: 0 | CD7: =SUM(CD8:CD10) -> 0 | CE7: 0 | CF7: 0 | CG7: 0 | CH7: 0 | CI7: 0 | CJ7: 0 | CK7: 0 | CL7: 0 | CM7: 0 | CN7: 0 | CO7: 0 | CP7: 0 | CQ7: 0 | CR7: 0 | CS7: 0 | CT7: 0 | CU7: 0
A10: =(MAX(A$8:A$9))+1 -> 1 | G10: =IF(ISTEXT(VLOOKUP($F10,KatalogReinigung,3,0)),VLOOKUP($F10,KatalogReinigung,3,0),"") ->  | H10: =IF(ISTEXT(VLOOKUP($F10,KatalogReinigung,4,0)),VLOOKUP($F10,KatalogReinigung,4,0),"") ->  | I10: =IF(ISTEXT(VLOOKUP($F10,KatalogReinigung,5,0)),VLOOKUP($F10,KatalogReinigung,5,0),"") ->  | J10: =IF(ISTEXT(VLOOKUP($F10,KatalogReinigung,6,0)),VLOOKUP($F10,KatalogReinigung,6,0),"") ->  | K10: =IF(ISTEXT(VLOOKUP($F10,KatalogReinigung,7,0)),VLOOKUP($F10,KatalogReinigung,7,0),"") ->  | L10: =IF(ISTEXT(VLOOKUP($F10,KatalogReinigung,8,0)),VLOOKUP($F10,KatalogReinigung,8,0),"") ->  | M10: =IF(ISNUMBER(VLOOKUP($F10,KatalogReinigung,8,0)),VLOOKUP($F10,KatalogReinigung,8,0),"") ->  | N10: =IF(ISNUMBER(VLOOKUP($F10,KatalogReinigung,9,0)),VLOOKUP($F10,KatalogReinigung,9,0),"") ->  | O10: =IF(ISNUMBER(VLOOKUP($F10,KatalogReinigung,10,0)),VLOOKUP($F10,KatalogReinigung,10,0),"") ->  | P10: =IF(ISNUMBER(M10/N10),M10/N10,"") ->  | Q10: =(IF(ISNUMBER(P10*O10),P10*O10,"")) ->  | R10: =IF(ISNUMBER(Q10*E10*D10),Q10*E10*D10,"") ->  | S10: =SUM(OFFSET(T10,,,,BZBNB)) -> 0 | T10: =IF(AND(ISNUMBER($R10),ISNUMBER($R10*POWER(1+PSBNB,T$6)*POWER(1+KALBNB,-T$6)),T$6<BZBNB+1),$R10*POWER(1+PSBNB,T$6)*POWER(1+KALBNB,-T$6),"") ->  | AZ10: =IF(AND(ISNUMBER($R10),ISNUMBER($R10*POWER(1+PSBNB,AZ$6)*POWER(1+KALBNB,-AZ$6)),AZ$6<BZBNB+1),$R10*POWER(1+PSBNB,AZ$6)*POWER(1+KALBNB,-AZ$6),"") ->  | CF10: =IF(AND(ISNUMBER($R10),ISNUMBER($R10*POWER(1+PSBNB,CF$6)*POWER(1+KALBNB,-CF$6)),CF$6<BZBNB+1),$R10*POWER(1+PSBNB,CF$6)*POWER(1+KALBNB,-CF$6),"") -> 

Sheet Bodenreinigung
A1: Berechnung LCC nach BNB BN 2.1.1 v2011 Eingabe Bodenreinigung | C1: BBR-LCC Ver. 15-1 BBR A1
A2: Projekt: | B2: =IF(ISTEXT(Projekt),Projekt,"") -> 
A3: Stand: | B3: =IF(ISNUMBER(LCC_Stand),LCC_Stand,"") -> 
A5: Nr. | B5: Raumbezeichnung | C5: Raumnr. | D5: Fläche | E5: Oberflächentyp | F5: Typ | G5: Material | H5: Belastung | I5: €/h | J5: m²/h | K5: Anzahl je Jahr | L5: €/m² | M5: €/m²*a | N5: €/a | O5: Barwert | P5: Barwert | Q5: Barwert | R5: Barwert | S5: Barwert | T5: Barwert | U5: Barwert | V5: Barwert | W5: Barwert | X5: Barwert | Y5: Barwert | Z5: Barwert | AA5: Barwert | AB5: Barwert | AC5: Barwert | AD5: Barwert | AE5: Barwert | AF5: Barwert | AG5: Barwert | AH5: Barwert | AI5: Barwert | AJ5: Barwert | AK5: Barwert | AL5: Barwert | AM5: Barwert | AN5: Barwert | AO5: Barwert | AP5: Barwert | AQ5: Barwert | AR5: Barwert | AS5: Barwert | AT5: Barwert | AU5: Barwert | AV5: Barwert | AW5: Barwert | AX5: Barwert | AY5: Barwert | AZ5: Barwert | BA5: Barwert | BB5: Barwert | BC5: Barwert | BD5: Barwert | BE5: Barwert | BF5: Barwert | BG5: Barwert | BH5: Barwert | BI5: Barwert | BJ5: Barwert | BK5: Barwert | BL5: Barwert | BM5: Barwert | BN5: Barwert | BO5: Barwert | BP5: Barwert | BQ5: Barwert | BR5: Barwert | BS5: Barwert | BT5: Barwert | BU5: Barwert | BV5: Barwert | BW5: Barwert | BX5: Barwert | BY5: Barwert | BZ5: Barwert | CA5: Barwert | CB5: Barwert | CC5: Barwert | CD5: Barwert | CE5: Barwert | CF5: Barwert | CG5: Barwert | CH5: Barwert | CI5: Barwert | CJ5: Barwert | CK5: Barwert | CL5: Barwert | CM5: Barwert | CN5: Barwert | CO5: Barwert | CP5: Barwert | CQ5: Barwert
O6: ∑ BZR | P6: 1 | Q6: 2 | R6: 3 | S6: 4 | T6: 5 | U6: 6 | V6: 7 | W6: 8 | X6: 9 | Y6: 10 | Z6: 11 | AA6: 12 | AB6: 13 | AC6: 14 | AD6: 15 | AE6: 16 | AF6: 17 | AG6: 18 | AH6: 19 | AI6: 20 | AJ6: 21 | AK6: 22 | AL6: 23 | AM6: 24 | AN6: 25 | AO6: 26 | AP6: 27 | AQ6: 28 | AR6: 29 | AS6: 30 | AT6: 31 | AU6: 32 | AV6: 33 | AW6: 34 | AX6: 35 | AY6: 36 | AZ6: 37 | BA6: 38 | BB6: 39 | BC6: 40 | BD6: 41 | BE6: 42 | BF6: 43 | BG6: 44 | BH6: 45 | BI6: 46 | BJ6: 47 | BK6: 48 | BL6: 49 | BM6: 50 | BN6: 51 | BO6: 52 | BP6: 53 | BQ6: 54 | BR6: 55 | BS6: 56 | BT6: 57 | BU6: 58 | BV6: 59 | BW6: 60 | BX6: 61 | BY6: 62 | BZ6: 63 | CA6: 64 | CB6: 65 | CC6: 66 | CD6: 67 | CE6: 68 | CF6: 69 | CG6: 70 | CH6: 71 | CI6: 72 | CJ6: 73 | CK6: 74 | CL6: 75 | CM6: 76 | CN6: 77 | CO6: 78 | CP6: 79 | CQ6: 80
N7: =SUM(N8:N10) -> 0 | O7: 0 | P7: 0 | Q7: 0 | R7: 0 | S7: 0 | T7: 0 | U7: 0 | V7: 0 | W7: 0 | X7: 0 | Y7: 0 | Z7: 0 | AA7: 0 | AB7: 0 | AC7: 0 | AD7: 0 | AE7: 0 | AF7: 0 | AG7: 0 | AH7: 0 | AI7: 0 | AJ7: 0 | AK7: 0 | AL7: 0 | AM7: 0 | AN7: 0 | AO7: 0 | AP7: 0 | AQ7: 0 | AR7: 0 | AS7: 0 | AT7: =SUM(AT8:AT10) -> 0 | AU7: 0 | AV7: 0 | AW7: 0 | AX7: 0 | AY7: 0 | AZ7: 0 | BA7: 0 | BB7: 0 | BC7: 0 | BD7: 0 | BE7: 0 | BF7: 0 | BG7: 0 | BH7: 0 | BI7: 0 | BJ7: 0 | BK7: 0 | BL7: 0 | BM7: 0 | BN7: 0 | BO7: 0 | BP7: 0 | BQ7: 0 | BR7: 0 | BS7: 0 | BT7: 0 | BU7: 0 | BV7: 0 | BW7: 0 | BX7: 0 | BY7: 0 | BZ7: =SUM(BZ8:BZ10) -> 0 | CA7: 0 | CB7: 0 | CC7: 0 | CD7: 0 | CE7: 0 | CF7: 0 | CG7: 0 | CH7: 0 | CI7: 0 | CJ7: 0 | CK7: 0 | CL7: 0 | CM7: 0 | CN7: 0 | CO7: 0 | CP7: 0 | CQ7: 0
A10: =(MAX(A$8:A$9))+1 -> 1 | F10: =IF(ISTEXT(VLOOKUP($E10,KatalogBodenreinigung,3,0)),VLOOKUP($E10,KatalogBodenreinigung,3,0),"") ->  | G10: =IF(ISTEXT(VLOOKUP($E10,KatalogBodenreinigung,4,0)),VLOOKUP($E10,KatalogBodenreinigung,4,0),"") ->  | H10: =IF(ISTEXT(VLOOKUP($E10,KatalogBodenreinigung,5,0)),VLOOKUP($E10,KatalogBodenreinigung,5,0),"") ->  | I10: =IF(ISNUMBER(VLOOKUP($E10,KatalogBodenreinigung,6,0)),VLOOKUP($E10,KatalogBodenreinigung,6,0),"") ->  | J10: =IF(ISNUMBER(VLOOKUP($E10,KatalogBodenreinigung,7,0)),VLOOKUP($E10,KatalogBodenreinigung,7,0),"") ->  | K10: =IF(ISNUMBER(VLOOKUP($E10,KatalogBodenreinigung,8,0)),VLOOKUP($E10,KatalogBodenreinigung,8,0),"") ->  | L10: =IF(ISNUMBER(I10/J10),I10/J10,"") ->  | M10: =(IF(ISNUMBER(L10*K10),L10*K10,"")) ->  | N10: =IF(ISNUMBER(M10*D10),M10*D10,"") ->  | O10: =SUM(OFFSET(P10,,,,BZBNB)) -> 0 | P10: =IF(AND(ISNUMBER($N10),ISNUMBER($N10*POWER(1+PSBNB,P$6)*POWER(1+KALBNB,-P$6)),P$6<BZBNB+1),$N10*POWER(1+PSBNB,P$6)*POWER(1+KALBNB,-P$6),"") ->  | AV10: =IF(AND(ISNUMBER($N10),ISNUMBER($N10*POWER(1+PSBNB,AV$6)*POWER(1+KALBNB,-AV$6)),AV$6<BZBNB+1),$N10*POWER(1+PSBNB,AV$6)*POWER(1+KALBNB,-AV$6),"") ->  | CB10: =IF(AND(ISNUMBER($N10),ISNUMBER($N10*POWER(1+PSBNB,CB$6)*POWER(1+KALBNB,-CB$6)),CB$6<BZBNB+1),$N10*POWER(1+PSBNB,CB$6)*POWER(1+KALBNB,-CB$6),"") -> 

Sheet Energieversorgung
A1: Berechnung LCC nach BNB BN 2.1.1 v2011 Eingabe Energieversorgung | C1: BBR-LCC Ver. 15-1 BBR A1
A2: Projekt: | B2: =IF(ISTEXT(Projekt),Projekt,"") -> 
A3: Stand: | B3: =IF(ISNUMBER(LCC_Stand),LCC_Stand,"") -> 
A5: Nr. | B5: Bezeichnung | C5: Energieträger | D5: Heizwert Endenergiebedarf absolut | E5: Energiekosten netto BNB | F5: jährliche Energiekosten BNB | G5: Barwert | H5: Barwert | I5: Barwert | J5: Barwert | K5: Barwert | L5: Barwert | M5: Barwert | N5: Barwert | O5: Barwert | P5: Barwert | Q5: Barwert | R5: Barwert | S5: Barwert | T5: Barwert | U5: Barwert | V5: Barwert | W5: Barwert | X5: Barwert | Y5: Barwert | Z5: Barwert | AA5: Barwert | AB5: Barwert | AC5: Barwert | AD5: Barwert | AE5: Barwert | AF5: Barwert | AG5: Barwert | AH5: Barwert | AI5: Barwert | AJ5: Barwert | AK5: Barwert | AL5: Barwert | AM5: Barwert | AN5: Barwert | AO5: Barwert | AP5: Barwert | AQ5: Barwert | AR5: Barwert | AS5: Barwert | AT5: Barwert | AU5: Barwert | AV5: Barwert | AW5: Barwert | AX5: Barwert | AY5: Barwert | AZ5: Barwert | BA5: Barwert | BB5: Barwert | BC5: Barwert | BD5: Barwert | BE5: Barwert | BF5: Barwert | BG5: Barwert | BH5: Barwert | BI5: Barwert | BJ5: Barwert | BK5: Barwert | BL5: Barwert | BM5: Barwert | BN5: Barwert | BO5: Barwert | BP5: Barwert | BQ5: Barwert | BR5: Barwert | BS5: Barwert | BT5: Barwert | BU5: Barwert | BV5: Barwert | BW5: Barwert | BX5: Barwert | BY5: Barwert | BZ5: Barwert | CA5: Barwert | CB5: Barwert | CC5: Barwert | CD5: Barwert | CE5: Barwert | CF5: Barwert | CG5: Barwert | CH5: Barwert | CI5: Barwert
D6: kWh | E6: € / kWh | F6: € | G6: ∑ BZR | H6: 1 | I6: 2 | J6: 3 | K6: 4 | L6: 5 | M6: 6 | N6: 7 | O6: 8 | P6: 9 | Q6: 10 | R6: 11 | S6: 12 | T6: 13 | U6: 14 | V6: 15 | W6: 16 | X6: 17 | Y6: 18 | Z6: 19 | AA6: 20 | AB6: 21 | AC6: 22 | AD6: 23 | AE6: 24 | AF6: 25 | AG6: 26 | AH6: 27 | AI6: 28 | AJ6: 29 | AK6: 30 | AL6: 31 | AM6: 32 | AN6: 33 | AO6: 34 | AP6: 35 | AQ6: 36 | AR6: 37 | AS6: 38 | AT6: 39 | AU6: 40 | AV6: 41 | AW6: 42 | AX6: 43 | AY6: 44 | AZ6: 45 | BA6: 46 | BB6: 47 | BC6: 48 | BD6: 49 | BE6: 50 | BF6: 51 | BG6: 52 | BH6: 53 | BI6: 54 | BJ6: 55 | BK6: 56 | BL6: 57 | BM6: 58 | BN6: 59 | BO6: 60 | BP6: 61 | BQ6: 62 | BR6: 63 | BS6: 64 | BT6: 65 | BU6: 66 | BV6: 67 | BW6: 68 | BX6: 69 | BY6: 70 | BZ6: 71 | CA6: 72 | CB6: 73 | CC6: 74 | CD6: 75 | CE6: 76 | CF6: 77 | CG6: 78 | CH6: 79 | CI6: 80
D7: =SUM(D8:D10) -> 0 | F7: =SUM(F8:F10) -> 0 | G7: 0 | H7: 0 | I7: 0 | J7: 0 | K7: 0 | L7: 0 | M7: 0 | N7: 0 | O7: 0 | P7: 0 | Q7: 0 | R7: 0 | S7: 0 | T7: 0 | U7: 0 | V7: 0 | W7: 0 | X7: 0 | Y7: 0 | Z7: 0 | AA7: 0 | AB7: 0 | AC7: 0 | AD7: 0 | AE7: 0 | AF7: 0 | AG7: 0 | AH7: 0 | AI7: 0 | AJ7: 0 | AK7: 0 | AL7: =SUM(AL8:AL10) -> 0 | AM7: 0 | AN7: 0 | AO7: 0 | AP7: 0 | AQ7: 0 | AR7: 0 | AS7: 0 | AT7: 0 | AU7: 0 | AV7: 0 | AW7: 0 | AX7: 0 | AY7: 0 | AZ7: 0 | BA7: 0 | BB7: 0 | BC7: 0 | BD7: 0 | BE7: 0 | BF7: 0 | BG7: 0 | BH7: 0 | BI7: 0 | BJ7: 0 | BK7: 0 | BL7: 0 | BM7: 0 | BN7: 0 | BO7: 0 | BP7: 0 | BQ7: 0 | BR7: =SUM(BR8:BR10) -> 0 | BS7: 0 | BT7: 0 | BU7: 0 | BV7: 0 | BW7: 0 | BX7: 0 | BY7: 0 | BZ7: 0 | CA7: 0 | CB7: 0 | CC7: 0 | CD7: 0 | CE7: 0 | CF7: 0 | CG7: 0 | CH7: 0 | CI7: 0
E9: =IF(ISNUMBER(VLOOKUP(C9,Energieträger_Verweis,3,0)),VLOOKUP(C9,Energieträger_Verweis,3,0),"") -> 
A10: =(MAX(A$8:A$9))+1 -> 1 | E10: =IF(ISNUMBER(VLOOKUP(C10,Energieträger_Verweis,3,0)),VLOOKUP(C10,Energieträger_Verweis,3,0),"") ->  | F10: =IF(ISNUMBER(E10*D10),E10*D10,"") ->  | G10: =SUM(OFFSET(H10,,,,BZBNB)) -> 0 | H10: =IF(AND(ISNUMBER($F10),ISNUMBER($F10*POWER(1+PSEBNB,H$6)*POWER(1+KALBNB,-H$6)),H$6<BZBNB+1),$F10*POWER(1+PSEBNB,H$6)*POWER(1+KALBNB,-H$6),"") ->  | AN10: =IF(AND(ISNUMBER($F10),ISNUMBER($F10*POWER(1+PSEBNB,AN$6)*POWER(1+KALBNB,-AN$6)),AN$6<BZBNB+1),$F10*POWER(1+PSEBNB,AN$6)*POWER(1+KALBNB,-AN$6),"") ->  | BF10: =IF(AND(ISNUMBER($F10),ISNUMBER($F10*POWER(1+PSBNB,BF$6)*POWER(1+KALBNB,-BF$6)),BF$6<BZBNB+1),$F10*POWER(1+PSBNB,BF$6)*POWER(1+KALBNB,-BF$6),"") ->  | BT10: =IF(AND(ISNUMBER($F10),ISNUMBER($F10*POWER(1+PSBNB,BT$6)*POWER(1+KALBNB,-BT$6)),BT$6<BZBNB+1),$F10*POWER(1+PSBNB,BT$6)*POWER(1+KALBNB,-BT$6),"") -> 

Sheet Wasser_Abwasser
A1: Berechnung LCC nach BNB BN 2.1.1 v2011 Eingabe Wasser- und Abwasserkosten | D1: BBR-LCC Ver. 15-1 BBR A1
A2: Projekt: | B2: =IF(ISTEXT(Projekt),Projekt,"") -> 
A3: Stand: | B3: =IF(ISNUMBER(LCC_Stand),LCC_Stand,"") -> 
A5: Bezeichnung | B5: Menge | C5: ME | D5: Preis BNB | E5: jährliche Kosten für Wasserver- und Entsorgung | F5: Barwert | G5: Barwert | H5: Barwert | I5: Barwert | J5: Barwert | K5: Barwert | L5: Barwert | M5: Barwert | N5: Barwert | O5: Barwert | P5: Barwert | Q5: Barwert | R5: Barwert | S5: Barwert | T5: Barwert | U5: Barwert | V5: Barwert | W5: Barwert | X5: Barwert | Y5: Barwert | Z5: Barwert | AA5: Barwert | AB5: Barwert | AC5: Barwert | AD5: Barwert | AE5: Barwert | AF5: Barwert | AG5: Barwert | AH5: Barwert | AI5: Barwert | AJ5: Barwert | AK5: Barwert | AL5: Barwert | AM5: Barwert | AN5: Barwert | AO5: Barwert | AP5: Barwert | AQ5: Barwert | AR5: Barwert | AS5: Barwert | AT5: Barwert | AU5: Barwert | AV5: Barwert | AW5: Barwert | AX5: Barwert | AY5: Barwert | AZ5: Barwert | BA5: Barwert | BB5: Barwert | BC5: Barwert | BD5: Barwert | BE5: Barwert | BF5: Barwert | BG5: Barwert | BH5: Barwert | BI5: Barwert | BJ5: Barwert | BK5: Barwert | BL5: Barwert | BM5: Barwert | BN5: Barwert | BO5: Barwert | BP5: Barwert | BQ5: Barwert | BR5: Barwert | BS5: Barwert | BT5: Barwert | BU5: Barwert | BV5: Barwert | BW5: Barwert | BX5: Barwert | BY5: Barwert | BZ5: Barwert | CA5: Barwert | CB5: Barwert | CC5: Barwert | CD5: Barwert | CE5: Barwert | CF5: Barwert | CG5: Barwert | CH5: Barwert
B6: pro ME | D6: € / ME | E6: € | F6: ∑ BZR | G6: 1 | H6: 2 | I6: 3 | J6: 4 | K6: 5 | L6: 6 | M6: 7 | N6: 8 | O6: 9 | P6: 10 | Q6: 11 | R6: 12 | S6: 13 | T6: 14 | U6: 15 | V6: 16 | W6: 17 | X6: 18 | Y6: 19 | Z6: 20 | AA6: 21 | AB6: 22 | AC6: 23 | AD6: 24 | AE6: 25 | AF6: 26 | AG6: 27 | AH6: 28 | AI6: 29 | AJ6: 30 | AK6: 31 | AL6: 32 | AM6: 33 | AN6: 34 | AO6: 35 | AP6: 36 | AQ6: 37 | AR6: 38 | AS6: 39 | AT6: 40 | AU6: 41 | AV6: 42 | AW6: 43 | AX6: 44 | AY6: 45 | AZ6: 46 | BA6: 47 | BB6: 48 | BC6: 49 | BD6: 50 | BE6: 51 | BF6: 52 | BG6: 53 | BH6: 54 | BI6: 55 | BJ6: 56 | BK6: 57 | BL6: 58 | BM6: 59 | BN6: 60 | BO6: 61 | BP6: 62 | BQ6: 63 | BR6: 64 | BS6: 65 | BT6: 66 | BU6: 67 | BV6: 68 | BW6: 69 | BX6: 70 | BY6: 71 | BZ6: 72 | CA6: 73 | CB6: 74 | CC6: 75 | CD6: 76 | CE6: 77 | CF6: 78 | CG6: 79 | CH6: 80
E7: =SUM(E9:E11) -> 0 | F7: =SUM(F8:F11) -> 0 | G7: 0 | H7: 0 | I7: 0 | J7: 0 | K7: 0 | L7: 0 | M7: 0 | N7: 0 | O7: 0 | P7: 0 | Q7: 0 | R7: 0 | S7: 0 | T7: 0 | U7: 0 | V7: 0 | W7: 0 | X7: 0 | Y7: 0 | Z7: 0 | AA7: 0 | AB7: 0 | AC7: 0 | AD7: 0 | AE7: 0 | AF7: 0 | AG7: 0 | AH7: 0 | AI7: 0 | AJ7: 0 | AK7: 0 | AL7: =SUM(AL8:AL11) -> 0 | AM7: 0 | AN7: 0 | AO7: 0 | AP7: 0 | AQ7: 0 | AR7: 0 | AS7: 0 | AT7: 0 | AU7: 0 | AV7: 0 | AW7: 0 | AX7: 0 | AY7: 0 | AZ7: 0 | BA7: 0 | BB7: 0 | BC7: 0 | BD7: 0 | BE7: 0 | BF7: 0 | BG7: 0 | BH7: 0 | BI7: 0 | BJ7: 0 | BK7: 0 | BL7: 0 | BM7: 0 | BN7: 0 | BO7: 0 | BP7: 0 | BQ7: 0 | BR7: =SUM(BR8:BR11) -> 0 | BS7: 0 | BT7: 0 | BU7: 0 | BV7: 0 | BW7: 0 | BX7: 0 | BY7: 0 | BZ7: 0 | CA7: 0 | CB7: 0 | CC7: 0 | CD7: 0 | CE7: 0 | CF7: 0 | CG7: 0 | CH7: 0
A9: Gesamtfrischwasserbedarf aus Berechnungshilfe Trinkwasser (Tool 1.2.3) | C9: m³ | D9: =Kosten_Frischwasserbedarf -> 2.01 | E9: =D9*B9 -> 0 | F9: =SUM(OFFSET(G9,,,,BZBNB)) -> 0 | G9: =IF(AND(ISNUMBER($E9),ISNUMBER($E9*POWER(1+PSBNB,G$6)*POWER(1+KALBNB,-G$6)),G$6<BZBNB+1),$E9*POWER(1+PSBNB,G$6)*POWER(1+KALBNB,-G$6),"") -> 0 | H9: 0 | I9: 0 | J9: 0 | K9: 0 | L9: 0 | M9: 0 | N9: 0 | O9: 0 | P9: 0 | Q9: =IF(AND(ISNUMBER($E9),ISNUMBER($E9*POWER(1+PSBNB,Q$6)*POWER(1+KALBNB,-Q$6)),Q$6<BZBNB+1),$E9*POWER(1+PSBNB,Q$6)*POWER(1+KALBNB,-Q$6),"") -> 0 | R9: 0 | S9: 0 | T9: 0 | U9: 0 | V9: 0 | W9: 0 | X9: 0 | Y9: 0 | Z9: 0 | AA9: =IF(AND(ISNUMBER($E9),ISNUMBER($E9*POWER(1+PSBNB,AA$6)*POWER(1+KALBNB,-AA$6)),AA$6<BZBNB+1),$E9*POWER(1+PSBNB,AA$6)*POWER(1+KALBNB,-AA$6),"") -> 0 | AB9: 0 | AC9: 0 | AD9: 0 | AE9: 0 | AF9: 0 | AG9: 0 | AH9: 0 | AI9: 0 | AJ9: 0 | AK9: =IF(AND(ISNUMBER($E9),ISNUMBER($E9*POWER(1+PSBNB,AK$6)*POWER(1+KALBNB,-AK$6)),AK$6<BZBNB+1),$E9*POWER(1+PSBNB,AK$6)*POWER(1+KALBNB,-AK$6),"") -> 0 | AL9: 0 | AM9: 0 | AN9: 0 | AO9: 0 | AP9: 0 | AQ9: 0 | AR9: 0 | AS9: 0 | AT9: 0 | AU9: =IF(AND(ISNUMBER($E9),ISNUMBER($E9*POWER(1+PSBNB,AU$6)*POWER(1+KALBNB,-AU$6)),AU$6<BZBNB+1),$E9*POWER(1+PSBNB,AU$6)*POWER(1+KALBNB,-AU$6),"") -> 0 | AV9: 0 | AW9: 0 | AX9: 0 | AY9: 0 | AZ9: 0 | BA9: 0 | BB9: 0 | BC9: 0 | BD9: 0 | BE9: =IF(AND(ISNUMBER($E9),ISNUMBER($E9*POWER(1+PSBNB,BE$6)*POWER(1+KALBNB,-BE$6)),BE$6<BZBNB+1),$E9*POWER(1+PSBNB,BE$6)*POWER(1+KALBNB,-BE$6),"") ->  | BO9: =IF(AND(ISNUMBER($E9),ISNUMBER($E9*POWER(1+PSBNB,BO$6)*POWER(1+KALBNB,-BO$6)),BO$6<BZBNB+1),$E9*POWER(1+PSBNB,BO$6)*POWER(1+KALBNB,-BO$6),"") ->  | BY9: =IF(AND(ISNUMBER($E9),ISNUMBER($E9*POWER(1+PSBNB,BY$6)*POWER(1+KALBNB,-BY$6)),BY$6<BZBNB+1),$E9*POWER(1+PSBNB,BY$6)*POWER(1+KALBNB,-BY$6),"") -> 
A10: Abwasseraufkommen aus Niederschlagswasser aus Berechnungshilfe Trinkwasser (Tool 1.2.3) | C10: m² | D10: =Kosten_Niederschlagswasser -> 1.1 | E10: =D10*B10 -> 0 | F10: =SUM(OFFSET(G10,,,,BZBNB)) -> 0 | G10: 0 | H10: 0 | I10: 0 | J10: 0 | K10: 0 | L10: 0 | M10: 0 | N10: 0 | O10: 0 | P10: 0 | Q10: 0 | R10: 0 | S10: 0 | T10: 0 | U10: 0 | V10: 0 | W10: 0 | X10: 0 | Y10: 0 | Z10: 0 | AA10: 0 | AB10: 0 | AC10: 0 | AD10: 0 | AE10: 0 | AF10: 0 | AG10: 0 | AH10: 0 | AI10: 0 | AJ10: 0 | AK10: 0 | AL10: 0 | AM10: 0 | AN10: 0 | AO10: 0 | AP10: 0 | AQ10: 0 | AR10: 0 | AS10: 0 | AT10: 0 | AU10: 0 | AV10: 0 | AW10: 0 | AX10: 0 | AY10: 0 | AZ10: 0 | BA10: 0 | BB10: 0 | BC10: 0 | BD10: 0
A11: Abwasseraufkommen aus Brauchwasser aus Berechnungshilfe Trinkwasser (Tool 1.2.3) | C11: m³ | D11: =Kosten_Brauchwasser -> 2.14 | E11: =D11*B11 -> 0 | F11: =SUM(OFFSET(G11,,,,BZBNB)) -> 0 | G11: 0 | H11: 0 | I11: 0 | J11: 0 | K11: 0 | L11: 0 | M11: 0 | N11: 0 | O11: 0 | P11: 0 | Q11: 0 | R11: 0 | S11: 0 | T11: 0 | U11: 0 | V11: 0 | W11: 0 | X11: 0 | Y11: 0 | Z11: 0 | AA11: 0 | AB11: 0 | AC11: 0 | AD11: 0 | AE11: 0 | AF11: 0 | AG11: 0 | AH11: 0 | AI11: 0 | AJ11: 0 | AK11: 0 | AL11: 0 | AM11: 0 | AN11: 0 | AO11: 0 | AP11: 0 | AQ11: 0 | AR11: 0 | AS11: 0 | AT11: 0 | AU11: 0 | AV11: 0 | AW11: 0 | AX11: 0 | AY11: 0 | AZ11: 0 | BA11: 0 | BB11: 0 | BC11: 0 | BD11: 0

Sheet KT_Reinigung (hidden)
A1: Bezeichnung | B1: Nummer | C1: Oberfläche | D1: Typ | E1: Einbauort | F1: Material | G1: Zugänglichkeit | H1: €/h | I1: m²/h | J1: Anzahl je Jahr
A2: =CONCATENATE(B2,"; ", C2,D2,"; ",E2,"; ",G2) -> 00001; Fenster, Tür, Festverglasung; außen; gut zugänglich | B2: 00001 | C2: Fenster, Tür, Festverglasung | E2: außen | F2: Glas | G2: gut zugänglich | H2: 15 | I2: 25 | J2: 2
A3: =CONCATENATE(B3,"; ", C3,"; ",D3,"; ",E3,"; ",G3) -> 00002; Fenster, Tür, Festverglasung; ; außen; mittel zugänglich | B3: 00002 | C3: Fenster, Tür, Festverglasung | E3: außen | F3: Glas | G3: mittel zugänglich | H3: 15 | I3: 20 | J3: 2
A4: =CONCATENATE(B4,"; ", C4,"; ",D4,"; ",E4,"; ",G4) -> 00003; Fenster, Tür, Festverglasung; ; außen; schwer zugänglich | B4: 00003 | C4: Fenster, Tür, Festverglasung | E4: außen | F4: Glas | G4: schwer zugänglich | H4: 15 | I4: 13 | J4: 2
A5: =CONCATENATE(B5,"; ", C5,"; ",D5,"; ",E5,"; ",G5) -> 00004; Glasfläche; Geländer; außen; gut zugänglich | B5: 00004 | C5: Glasfläche | D5: Geländer | E5: außen | F5: Glas | G5: gut zugänglich | H5: 15 | I5: 25 | J5: 2
A6: =CONCATENATE(B6,"; ", C6,"; ",D6,"; ",E6,"; ",G6) -> 00005; Glasfläche; Geländer; außen; mittel zugänglich | B6: 00005 | C6: Glasfläche | D6: Geländer | E6: außen | F6: Glas | G6: mittel zugänglich | H6: 15 | I6: 20 | J6: 2
A7: =CONCATENATE(B7,"; ", C7,"; ",D7,"; ",E7,"; ",G7) -> 00006; Glasfläche; Geländer; außen; schwer zugänglich | B7: 00006 | C7: Glasfläche | D7: Geländer | E7: außen | F7: Glas | G7: schwer zugänglich | H7: 15 | I7: 13 | J7: 2
A8: 00007; Glasfläche; sonstige Verglasung; außen; gut zugänglich | B8: 00007 | C8: Glasfläche | D8: sonstige Verglasung | E8: außen | F8: Glas | G8: gut zugänglich | H8: 15 | I8: 25 | J8: 2
A9: 00008; Glasfläche; sonstige Verglasung; außen; mittel zugänglich | B9: 00008 | C9: Glasfläche | D9: sonstige Verglasung | E9: außen | F9: Glas | G9: mittel zugänglich | H9: 15 | I9: 20 | J9: 2
A10: 00009; Glasfläche; sonstige Verglasung; außen; schwer zugänglich | B10: 00009 | C10: Glasfläche | D10: sonstige Verglasung | E10: außen | F10: Glas | G10: schwer zugänglich | H10: 15 | I10: 13 | J10: 2
A11: 00010; AW-Bekleidung; Naturstein weich; außen; | B11: 00010 | C11: AW-Bekleidung | D11: Naturstein weich | E11: außen | F11: Naturstein weich | H11: 15 | I11: 1.15 | J11: 0.25
A12: 00011; AW-Bekleidung; Naturstein hart; außen; | B12: 00011 | C12: AW-Bekleidung | D12: Naturstein hart | E12: außen | F12: Naturstein hart | H12: 15 | I12: 6 | J12: 0.25
A13: 00012; AW-Bekleidung; Aluminium; außen; | B13: 00012 | C13: AW-Bekleidung | D13: Aluminium | E13: außen | F13: Aluminium | H13: 15 | I13: 3 | J13: 0.25
A14: 00013; AW-Bekleidung; Edelstahl; außen; | B14: 00013 | C14: AW-Bekleidung | D14: Edelstahl | E14: außen | F14: Edelstahl | H14: 15 | I14: 3 | J14: 0.25
A15: 00014; AW-Bekleidung; Kupferblech; außen; | B15: 00014 | C15: AW-Bekleidung | D15: Kupferblech | E15: außen | F15: Kupferblech | H15: 15 | I15: 3 | J15: 0.25
A16: 00015; AW-Bekleidung; Stahl korrosionsgeschützt; außen; | B16: 00015 | C16: AW-Bekleidung | D16: Stahl korrosionsgeschützt | E16: außen | F16: Stahl korrosionsgeschützt | H16: 15 | I16: 3 | J16: 0.25
A17: 00016; AW-Bekleidung; Glas; außen; | B17: 00016 | C17: AW-Bekleidung | D17: Glas | E17: außen | F17: Glas | H17: 15 | I17: 20 | J17: 0.25
A18: 00017; AW-Bekleidung; Keramik; außen; | B18: 00017 | C18: AW-Bekleidung | D18: Keramik | E18: außen | F18: Keramik | H18: 15 | I18: 6 | J18: 0.25
A19: 00018; AW-Bekleidung; Kunst/ Werkstein; außen; | B19: 00018 | C19: AW-Bekleidung | D19: Kunst/ Werkstein | E19: außen | F19: Kunst/ Werkstein | H19: 15 | I19: 6 | J19: 0.25
A20: =CONCATENATE(B20,"; ", C20,"; ",D20,"; ",E20) -> 00019; Türen allgemein + Innenfenster; außer Glastür außen; | B20: 00019 | C20: Türen allgemein + Innenfenster | D20: außer Glastür außen | H20: 15 | I20: 250 | J20: 4
A21: 00020; Sanitäreinrichtung; Ansatz über m² Bodenfläche; innen; | B21: 00020 | C21: Sanitäreinrichtung | D21: Ansatz über m² Bodenfläche | E21: innen | H21: 15 | I21: 212.5 | J21: 250
A22: 00021; Sonnenschutzfläche; Jalousie; außen; normal | B22: 00021 | C22: Sonnenschutzfläche | D22: Jalousie | E22: außen | F22: Aluminium | G22: normal | H22: 15 | I22: 3 | J22: 0.25

Sheet KT_Bodenreinigung (hidden)
A1: Bezeichnung | B1: Nummer | C1: Typ | D1: Material | E1: Belastung | F1: €/h | G1: m²/h | H1: Anzahl je Jahr
A2: =CONCATENATE(B2,"; ",D2,"; ",E2) -> 00001; keramische Fliesen; normal | B2: 00001 | C2: wischbar | D2: keramische Fliesen | E2: normal | F2: 15 | G2: 250 | H2: 100
A3: =CONCATENATE(B3,"; ",D3,"; ",E3) -> 00002; Natur-/ Werkstein (weich); normal | B3: 00002 | C3: wischbar | D3: Natur-/ Werkstein (weich) | E3: normal | F3: 15 | G3: 250 | H3: 100
A4: =CONCATENATE(B4,"; ",D4,"; ",E4) -> 00003; Textilbelag; normal | B4: 00003 | C4: nicht wischbar | D4: Textilbelag | E4: normal | F4: 15 | G4: 300 | H4: 100
A5: 00004; Kunststoff bis 2,5 mm; normal | B5: 00004 | C5: wischbar | D5: Kunststoff bis 2,5 mm | E5: normal | F5: 15 | G5: 400 | H5: 100
A6: 00005; Laminat; normal | B6: 00005 | C6: wischbar | D6: Laminat | E6: normal | F6: 15 | G6: 400 | H6: 100
A7: 00006; Linoleum bis 2,5 mm; normal | B7: 00006 | C7: wischbar | D7: Linoleum bis 2,5 mm | E7: normal | F7: 15 | G7: 400 | H7: 100
A8: 00007; Parkett; normal | B8: 00007 | C8: wischbar | D8: Parkett | E8: normal | F8: 15 | G8: 400 | H8: 100
A9: 00008; keramische Fliesen; stark | B9: 00008 | C9: wischbar | D9: keramische Fliesen | E9: stark | F9: 15 | G9: 212.5 | H9: 100
A10: 00009; Natur-/ Werkstein (hart); stark | B10: 00009 | C10: wischbar | D10: Natur-/ Werkstein (hart) | E10: stark | F10: 15 | G10: 340 | H10: 100
A11: 00010; Textilbelag; stark | B11: 00010 | C11: nicht wischbar | D11: Textilbelag | E11: stark | F11: 15 | G11: 340 | H11: 100
A12: 00011; Kunststoff über 2,5 mm; stark | B12: 00011 | C12: wischbar | D12: Kunststoff über 2,5 mm | E12: stark | F12: 15 | G12: 340 | H12: 100
A13: 00013; Linoleum ab 3,2 mm; stark | B13: 00013 | C13: wischbar | D13: Linoleum ab 3,2 mm | E13: stark | F13: 15 | G13: 340 | H13: 100
A14: 00014; Parkett; stark | B14: 00014 | C14: wischbar | D14: Parkett | E14: stark | F14: 15 | G14: 212.5 | H14: 100

Sheet KT_NDauern (hidden)
B1: KG | C1: Code | D1: Bezeichnung Kostengruppe oder Bauteil/Material | E1: Nutzungsdauer
A2: =IF(AND(ISNUMBER(B2),ISNUMBER(E2)),CONCATENATE(B2,"-",C2,": ",D2," [ND: ",E2,"]"),"") -> 322-111: Einzel-/Streifenfundamente [ND: 50] | B2: 322 | C2: 111 | D2: Einzel-/Streifenfundamente | E2: 50
A3: =IF(AND(ISNUMBER(B3),ISNUMBER(E3)),CONCATENATE(B3,"-",C3,": ",D3," [ND: ",E3,"]"),"") -> 322-112: Fundamentplatten [ND: 50] | B3: 322 | C3: 112 | D3: Fundamentplatten | E3: 50
A4: 323-111: Bohrpfähle, Presspfähle, Rammpfähle, Pfahlwände, Schlitzwände, Spundwände, Trägerbohlwände [ND: 50] | B4: 323 | C4: 111 | D4: Bohrpfähle, Presspfähle, Rammpfähle, Pfahlwände, Schlitzwände, Spundwände, Trägerbohlwände | E4: 50
A5: 324-111: Bodenplatte [ND: 50] | B5: 324 | C5: 111 | D5: Bodenplatte | E5: 50
A6: 326-111: Abdichtung gegen nichtdrückendes Wasser [ND: 35] | B6: 326 | C6: 111 | D6: Abdichtung gegen nichtdrückendes Wasser | E6: 35
A7: 331-111: Mauerwerkswand [ND: 50] | B7: 331 | C7: 111 | D7: Mauerwerkswand | E7: 50
A8: 331-211: Betonwand [ND: 50] | B8: 331 | C8: 211 | D8: Betonwand | E8: 50
A9: 331-311: Holzwand [ND: 50] | B9: 331 | C9: 311 | D9: Holzwand | E9: 50
A10: 331-411: Stahlbauwand [ND: 50] | B10: 331 | C10: 411 | D10: Stahlbauwand | E10: 50
A11: 331-511: Lehmbauwand [ND: 50] | B11: 331 | C11: 511 | D11: Lehmbauwand | E11: 50
A12: 331-611: Formsteine mit Betonfüllung [ND: 50] | B12: 331 | C12: 611 | D12: Formsteine mit Betonfüllung | E12: 50
A13: 333-111: Mauerwerksstütze [ND: 50] | B13: 333 | C13: 111 | D13: Mauerwerksstütze | E13: 50
A14: 333-211: Betonstütze [ND: 50] | B14: 333 | C14: 211 | D14: Betonstütze | E14: 50
A15: 333-311: Holzstütze [ND: 50] | B15: 333 | C15: 311 | D15: Holzstütze | E15: 50
A16: 333-411: Stahlstütze [ND: 50] | B16: 333 | C16: 411 | D16: Stahlstütze | E16: 50
A17: 334-111: Standardtüren: Laubholz [ND: 50] | B17: 334 | C17: 111 | D17: Standardtüren: Laubholz | E17: 50
A18: 334-112: Standardtüren: Metall [ND: 50] | B18: 334 | C18: 112 | D18: Standardtüren: Metall | E18: 50
A19: 334-113: Standardtüren: Holzwerkstoff [ND: 40] | B19: 334 | C19: 113 | D19: Standardtüren: Holzwerkstoff | E19: 40
A20: 334-114: Standardtüren: Kunststoff [ND: 40] | B20: 334 | C20: 114 | D20: Standardtüren: Kunststoff | E20: 40
A21: 334-115: Standardtüren: Nadelholz [ND: 35] | B21: 334 | C21: 115 | D21: Standardtüren: Nadelholz | E21: 35
A22: 334-121: Brandschutztüren [ND: 50] | B22: 334 | C22: 121 | D22: Brandschutztüren | E22: 50
A23: 334-131: Sondertüren: Schallschutztüren, Glastüren [ND: 50] | B23: 334 | C23: 131 | D23: Sondertüren: Schallschutztüren, Glastüren | E23: 50
A24: 334-132: Sondertüren: Automatiktüren [ND: 20] | B24: 334 | C24: 132 | D24: Sondertüren: Automatiktüren | E24: 20
A25: 334-133: Sondertüren: Schiebetüren, Rotationstüren [ND: 30] | B25: 334 | C25: 133 | D25: Sondertüren: Schiebetüren, Rotationstüren | E25: 30
A26: 334-211: Fenster (Rahmen und Flügel): Aluminium, Aluminium-Holz-Komposit, Aluminium-Kunststoff-Komposit, Laubholz behandelt, Stahl [ND: 50] | B26: 334 | C26: 211 | D26: Fenster (Rahmen und Flügel): Aluminium, Aluminium-Holz-Komposit, Aluminium-Kunststoff-Komposit, Laubholz behandelt, Stahl | E26: 50
A27: 334-212: Fenster (Rahmen und Flügel): Kunststoff, Nadelholz behandelt [ND: 40] | B27: 334 | C27: 212 | D27: Fenster (Rahmen und Flügel): Kunststoff, Nadelholz behandelt | E27: 40
A28: 334-311: Beschläge: einfache Beschläge, Schiebebeschläge [ND: 30] | B28: 334 | C28: 311 | D28: Beschläge: einfache Beschläge, Schiebebeschläge | E28: 30
A29: 334-312: Beschläge: Drehkippbeschläge, Schwingflügelbeschläge, Hebedrehkippbeschläge [ND: 25] | B29: 334 | C29: 312 | D29: Beschläge: Drehkippbeschläge, Schwingflügelbeschläge, Hebedrehkippbeschläge | E29: 25
A30: 334-313: Türschlösser, Türanschlagdämpfer, Panikverschlüsse [ND: 25] | B30: 334 | C30: 313 | D30: Türschlösser, Türanschlagdämpfer, Panikverschlüsse | E30: 25
A31: 334-314: Türschließer [ND: 20] | B31: 334 | C31: 314 | D31: Türschließer | E31: 20
A32: 334-315: Türantriebe [ND: 15] | B32: 334 | C32: 315 | D32: Türantriebe | E32: 15
A33: 334-316: Verglasung: Sicherheits-Isolierglas, 3-Scheiben-Wärmeschutz-Isolierglas, 2-Scheiben-Wärmeschutz-Isolierglas, Brandschutz-Isolierglas, Schallschutz-Isolierglas, Angriffhemmendes Isolierglas, Sonnenschutz-Isolierglas [ND: 30] | B33: 334 | C33: 316 | D33: Verglasung: Sicherheits-Isolierglas, 3-Scheiben-Wärmeschutz-Isolierglas, 2-Scheiben-Wärmeschutz-Isolierglas, Brandschutz-Isolierglas, Schallschutz-Isolierglas, Angriffhemmendes Isolierglas, Sonnenschutz-Isolierglas | E33: 30
A34: 334-317: Dichtungsprofile [ND: 20] | B34: 334 | C34: 317 | D34: Dichtungsprofile | E34: 20
A35: 334-318: Dichtungsstoffe [ND: 12] | B35: 334 | C35: 318 | D35: Dichtungsstoffe | E35: 12
A36: 334-319: Rolläden [ND: 40] | B36: 334 | C36: 319 | D36: Rolläden | E36: 40
A37: 335-111: Abdichtungen erdberührt, gegen drückendes Wasser: Dichtungsbahnen [ND: 50] | B37: 335 | C37: 111 | D37: Abdichtungen erdberührt, gegen drückendes Wasser: Dichtungsbahnen | E37: 50
A38: 335-112: Abdichtungen erdberührt, gegen drückendes Wasser: Bentonit [ND: 40] | B38: 335 | C38: 112 | D38: Abdichtungen erdberührt, gegen drückendes Wasser: Bentonit | E38: 40
A39: 335-113: Abdichtungen erdberührt: Konstruktionen aus wasserundurchlässigem Beton [ND: 50] | B39: 335 | C39: 113 | D39: Abdichtungen erdberührt: Konstruktionen aus wasserundurchlässigem Beton | E39: 50
A40: 335-121: Abdichtungen erdberührt, gegen nichtdrückendes Wasser: Dichtungsbahnen aus Bitumen, Spachtelmasse [ND: 40] | B40: 335 | C40: 121 | D40: Abdichtungen erdberührt, gegen nichtdrückendes Wasser: Dichtungsbahnen aus Bitumen, Spachtelmasse | E40: 40
A41: 335-122: Abdichtungen erdberührt, gegen nichtdrückendes Wasser: Beschichtungen und Anstriche [ND: 30] | B41: 335 | C41: 122 | D41: Abdichtungen erdberührt, gegen nichtdrückendes Wasser: Beschichtungen und Anstriche | E41: 30
A42: 335-131: Abdichtungen erdberührt nachträglich: Querschnittsabdichtungen gegen aufsteigende Feuchtigkeit durch mechanische Injektion [ND: 40] | B42: 335 | C42: 131 | D42: Abdichtungen erdberührt nachträglich: Querschnittsabdichtungen gegen aufsteigende Feuchtigkeit durch mechanische Injektion | E42: 40
A43: 335-132: Abdichtungen erdberührt nachträglich: Vergelung, Schleierinjektion [ND: 20] | B43: 335 | C43: 132 | D43: Abdichtungen erdberührt nachträglich: Vergelung, Schleierinjektion | E43: 20
A44: 335-141: Abdichtungen erdberührt: Abdichtungsschutz aus Schutzmauern (Beton, Ziegel, Hartbrandklinker) [ND: 50] | B44: 335 | C44: 141 | D44: Abdichtungen erdberührt: Abdichtungsschutz aus Schutzmauern (Beton, Ziegel, Hartbrandklinker) | E44: 50
A45: 335-142: Abdichtungen erdberührt: Abdichtungsschutz aus Hartschaumplatten Polystyrol, Noppenbahnen (Polyethylen Polypropylen), Wellplatten faserverstärkt auf Zementbasis [ND: 40] | B45: 335 | C45: 142 | D45: Abdichtungen erdberührt: Abdichtungsschutz aus Hartschaumplatten Polystyrol, Noppenbahnen (Polyethylen Polypropylen), Wellplatten faserverstärkt auf Zementbasis | E45: 40
A46: 335-143: Abdichtungen erdberührt: Abdichtungsschutz aus Granulatmatten, Wellplatten [ND: 30] | B46: 335 | C46: 143 | D46: Abdichtungen erdberührt: Abdichtungsschutz aus Granulatmatten, Wellplatten | E46: 30
A47: 335-151: Wärmedämmung erdberührter Bauteile: Perimenterdämmung Schaumglas [ND: 50] | B47: 335 | C47: 151 | D47: Wärmedämmung erdberührter Bauteile: Perimenterdämmung Schaumglas | E47: 50
A48: 335-152: Wärmedämmung erdberührter Bauteile: Perimenterdämmung Extrudiertes Polystyrol [ND: 40] | B48: 335 | C48: 152 | D48: Wärmedämmung erdberührter Bauteile: Perimenterdämmung Extrudiertes Polystyrol | E48: 40
A49: 335-211: Außenanstriche, mineralischer Untergrund: Dipersionsfarbe, Dispersions-Silikatfarbe, Weißzementfarbe, Kunststoffbeschichtungen auf Beton [ND: 20] | B49: 335 | C49: 211 | D49: Außenanstriche, mineralischer Untergrund: Dipersionsfarbe, Dispersions-Silikatfarbe, Weißzementfarbe, Kunststoffbeschichtungen auf Beton | E49: 20
A50: 335-212: Außenanstriche, mineralischer Untergrund: Silikonharzfarbe, Silikatfarbe, Polymerisatharzfarben [ND: 15] | B50: 335 | C50: 212 | D50: Außenanstriche, mineralischer Untergrund: Silikonharzfarbe, Silikatfarbe, Polymerisatharzfarben | E50: 15
A51: 335-213: Außenanstriche, mineralischer Untergrund: Kaseinfarbe [ND: 10] | B51: 335 | C51: 213 | D51: Außenanstriche, mineralischer Untergrund: Kaseinfarbe | E51: 10
A52: 335-214: Außenanstriche, mineralischer Untergrund: Kalkfarbe [ND: 8] | B52: 335 | C52: 214 | D52: Außenanstriche, mineralischer Untergrund: Kalkfarbe | E52: 8
A53: 335-215: Außenanstriche, mineralischer Untergrund: Imprägnierung auf Mauerwerk [ND: 15] | B53: 335 | C53: 215 | D53: Außenanstriche, mineralischer Untergrund: Imprägnierung auf Mauerwerk | E53: 15
A54: 335-216: Außenanstriche, mineralischer Untergrund: Lasur, Graffitischutz [ND: 10] | B54: 335 | C54: 216 | D54: Außenanstriche, mineralischer Untergrund: Lasur, Graffitischutz | E54: 10
A55: 335-221: Holzschutzanstriche, außen: Holzlacke, Holzlasuren [ND: 8] | B55: 335 | C55: 221 | D55: Holzschutzanstriche, außen: Holzlacke, Holzlasuren | E55: 8
A56: 335-222: Holzschutzanstriche, außen: Holzöle/-wachse [ND: 5] | B56: 335 | C56: 222 | D56: Holzschutzanstriche, außen: Holzöle/-wachse | E56: 5
A57: 335-223: Holzschutzimprägnierungen, außen: Druckimprägnierung [ND: 18] | B57: 335 | C57: 223 | D57: Holzschutzimprägnierungen, außen: Druckimprägnierung | E57: 18
A58: 335-311: Putz auf monolitischer Tragschicht: hochhydraulischer Kalkmörtel, Mörtel mit Putzund Mauerbinder, Kalkzementmörtel, Zementmörtel mit Zusatz von Luftkalk, Zementmörtel, Luftkalk, Hydraulischer Kalkmörtel, Wasserkalkmörtel [ND: 45] | B58: 335 | C58: 311 | D58: Putz auf monolitischer Tragschicht: hochhydraulischer Kalkmörtel, Mörtel mit Putzund Mauerbinder, Kalkzementmörtel, Zementmörtel mit Zusatz von Luftkalk, Zementmörtel, Luftkalk, Hydraulischer Kalkmörtel, Wasserkalkmörtel | E58: 45
A59: 335-312: Putz auf monolitischer Tragschicht: Sanierputzsysteme, mineralische Leichtputzsysteme auf porosierter Tragschicht [ND: 40] | B59: 335 | C59: 312 | D59: Putz auf monolitischer Tragschicht: Sanierputzsysteme, mineralische Leichtputzsysteme auf porosierter Tragschicht | E59: 40
A60: 335-313: Putz auf monolitischer Tragschicht: Silikatputze, Silikonharzputze, Kunstharzputze [ND: 30] | B60: 335 | C60: 313 | D60: Putz auf monolitischer Tragschicht: Silikatputze, Silikonharzputze, Kunstharzputze | E60: 30
A61: 335-314: Putz auf Wärmedämmung: mineralische Putzsysteme, silikatische Putzsysteme, Kunstharzputzsysteme, Silikonharzputzsysteme [ND: 30] | B61: 335 | C61: 314 | D61: Putz auf Wärmedämmung: mineralische Putzsysteme, silikatische Putzsysteme, Kunstharzputzsysteme, Silikonharzputzsysteme | E61: 30
A62: 335-411: Bekleidungen: Klinker, Kalksandstein, Sichtbeton [ND: 50] | B62: 335 | C62: 411 | D62: Bekleidungen: Klinker, Kalksandstein, Sichtbeton | E62: 50
A63: 335-511: Bekleidungen: Naturstein, Kunststein, Betonsteinplatten, Faserzementplatten, Kunstharzstein, Ziegelplatten [ND: 50] | B63: 335 | C63: 511 | D63: Bekleidungen: Naturstein, Kunststein, Betonsteinplatten, Faserzementplatten, Kunstharzstein, Ziegelplatten | E63: 50
A64: 335-512: Bekleidungen: keramische Fliesen und Platten, Feinsteinzeug [ND: 40] | B64: 335 | C64: 512 | D64: Bekleidungen: keramische Fliesen und Platten, Feinsteinzeug | E64: 40
A65: 335-521: keramische Fliesen und Platten: Fliesenverfugungsmassen [ND: 30] | B65: 335 | C65: 521 | D65: keramische Fliesen und Platten: Fliesenverfugungsmassen | E65: 30
A66: 335-522: Bekleidungen keramisch auf Wärmedämmung: Fliesen, Klinkerriemchen [ND: 30] | B66: 335 | C66: 522 | D66: Bekleidungen keramisch auf Wärmedämmung: Fliesen, Klinkerriemchen | E66: 30
A67: =IF(AND(ISNUMBER(B67),ISNUMBER(E67)),CONCATENATE(B67,"-",C67,": ",D67," [ND: ",E67,"]"),"") -> 335-611: Dämmschicht als Kerndämmung: Glaswolledämmplatten, Steinwollewdämmplatten, Polyurethandämmplatten, Polystyrol, Blähschiefergranulat, Blähglasgranulat, Blähtongranulat [ND: 40] | B67: 335 | C67: 611 | D67: Dämmschicht als Kerndämmung: Glaswolledämmplatten, Steinwollewdämmplatten, Polyurethandämmplatten, Polystyrol, Blähschiefergranulat, Blähglasgranulat, Blähtongranulat | E67: 40
A68: 335-621: Dämmschicht hinter Vorsatzschale, hinterlüftet: Mineralschaumplatten, Schaumglasplatten [ND: 45] | B68: 335 | C68: 621 | D68: Dämmschicht hinter Vorsatzschale, hinterlüftet: Mineralschaumplatten, Schaumglasplatten | E68: 45
A69: 335-631: Dämmschicht hinter Vorsatzschale: Vakuumdämmpaneele [ND: 30] | B69: 335 | C69: 631 | D69: Dämmschicht hinter Vorsatzschale: Vakuumdämmpaneele | E69: 30
A70: 335-641: Wärmedämmverbundsystem: Steinwolledämmplatten, Mineralwolledämmplatten, Polystyroldämmplatten, Polyurethandämmplatten, Holzfaserdämmplatten, Holzwolleleichtbauplatten, Korkplatten [ND: 40] | B70: 335 | C70: 641 | D70: Wärmedämmverbundsystem: Steinwolledämmplatten, Mineralwolledämmplatten, Polystyroldämmplatten, Polyurethandämmplatten, Holzfaserdämmplatten, Holzwolleleichtbauplatten, Korkplatten | E70: 40
A71: 335-642: Wärmedämmverbundsystem, transparent [ND: 20] | B71: 335 | C71: 642 | D71: Wärmedämmverbundsystem, transparent | E71: 20
A72: 335-711: Holzbekleidungen: Nadelholz behandelt, Laubholz, Holzwerkstoff-Systeme [ND: 40] | B72: 335 | C72: 711 | D72: Holzbekleidungen: Nadelholz behandelt, Laubholz, Holzwerkstoff-Systeme | E72: 40
A73: 335-712: Holzbekleidung: Nadelholz unbehandelt [ND: 30] | B73: 335 | C73: 712 | D73: Holzbekleidung: Nadelholz unbehandelt | E73: 30
A74: 335-713: Holzbekleidung: Holzschindeln [ND: 50] | B74: 335 | C74: 713 | D74: Holzbekleidung: Holzschindeln | E74: 50
A75: 335-811: Metallbekleidungen: Zink, Kupfer, Aluminium eloxiert, Aluminium lackiert, Stahl nicht rostend [ND: 50] | B75: 335 | C75: 811 | D75: Metallbekleidungen: Zink, Kupfer, Aluminium eloxiert, Aluminium lackiert, Stahl nicht rostend | E75: 50
A76: 335-812: Metallbekleidungen: Stahl galvanisch verzinkt [ND: 40] | B76: 335 | C76: 812 | D76: Metallbekleidungen: Stahl galvanisch verzinkt | E76: 40
A77: 335-813: Vorsatzschale, hinterlüftet: Kupferblech [ND: 50] | B77: 335 | C77: 813 | D77: Vorsatzschale, hinterlüftet: Kupferblech | E77: 50
A78: 335-814: Vorsatzschale, hinterlüftet: Zink, Stahl nicht rostend [ND: 45] | B78: 335 | C78: 814 | D78: Vorsatzschale, hinterlüftet: Zink, Stahl nicht rostend | E78: 45
A79: 335-815: Vorsatzschale, hinterlüftet: Aluminium-Verbundplatten, korrosionsreduzierter Stahl, Stahl galvanisch verzinkt und beschichtet [ND: 30] | B79: 335 | C79: 815 | D79: Vorsatzschale, hinterlüftet: Aluminium-Verbundplatten, korrosionsreduzierter Stahl, Stahl galvanisch verzinkt und beschichtet | E79: 30
A80: 335-911: Vorsatzschale, hinterlüftet: Glas [ND: 50] | B80: 335 | C80: 911 | D80: Vorsatzschale, hinterlüftet: Glas | E80: 50
A81: 335-912: Kunststoffstegplatten, transparent: Acrylglasplatten [ND: 40] | B81: 335 | C81: 912 | D81: Kunststoffstegplatten, transparent: Acrylglasplatten | E81: 40
A82: 335-913: Kunststoffstegplatten, transparent: Polycarbonatplatten [ND: 30] | B82: 335 | C82: 913 | D82: Kunststoffstegplatten, transparent: Polycarbonatplatten | E82: 30
A83: 335-914: Vorsatzschale, hinterlüftet: faserverstärkte Harzkompositplatten [ND: 30] | B83: 335 | C83: 914 | D83: Vorsatzschale, hinterlüftet: faserverstärkte Harzkompositplatten | E83: 30
A84: 335-915: Wandbekleidungen (Systeme): Kunststoff, Mehrschichtleichtbauplatten [ND: 40] | B84: 335 | C84: 915 | D84: Wandbekleidungen (Systeme): Kunststoff, Mehrschichtleichtbauplatten | E84: 40
A85: 335-916: Vorsatzschale: Fugen und Kompriband, Verfugung, Dehnungsfuge, Profil [ND: 40] | B85: 335 | C85: 916 | D85: Vorsatzschale: Fugen und Kompriband, Verfugung, Dehnungsfuge, Profil | E85: 40
A86: 335-917: Vorsatzschale: Unterkonstruktion [ND: 50] | B86: 335 | C86: 917 | D86: Vorsatzschale: Unterkonstruktion | E86: 50
A87: 336-111: Bekleidung Dämmplatten: Mineralschaumdämmplatten, Calciumsilikatplatten [ND: 50] | B87: 336 | C87: 111 | D87: Bekleidung Dämmplatten: Mineralschaumdämmplatten, Calciumsilikatplatten | E87: 50
A88: 338-111: Jalousien: Kunststoff [ND: 25] | B88: 338 | C88: 111 | D88: Jalousien: Kunststoff | E88: 25
A89: 338-112: Jalousien: Aluminium [ND: 15] | B89: 338 | C89: 112 | D89: Jalousien: Aluminium | E89: 15
A90: 338-211: Markisen [ND: 15] | B90: 338 | C90: 211 | D90: Markisen | E90: 15
A91: 338-311: Sonnenschutz, feststehend: Aluminium [ND: 50] | B91: 338 | C91: 311 | D91: Sonnenschutz, feststehend: Aluminium | E91: 50
A92: 339-111: frei stehende Konstruktion: Mauerwerk, Stahlbeton, Stahl nicht rostend, Stahl feuerverzinkt (stückverzinkt), Aluminium beschichtet, Laubholz, Kunststoff-Komposit [ND: 50] | B92: 339 | C92: 111 | D92: frei stehende Konstruktion: Mauerwerk, Stahlbeton, Stahl nicht rostend, Stahl feuerverzinkt (stückverzinkt), Aluminium beschichtet, Laubholz, Kunststoff-Komposit | E92: 50
A93: 339-112: frei stehende Konstruktion: Nadelholz, behandelt [ND: 45] | B93: 339 | C93: 112 | D93: frei stehende Konstruktion: Nadelholz, behandelt | E93: 45
A94: 339-121: Brüstung: Stahlgitterkonstruktion feuerverzinkt (stückverzinkt), Glas, Mauerwerk, Stahlbeton [ND: 50] | B94: 339 | C94: 121 | D94: Brüstung: Stahlgitterkonstruktion feuerverzinkt (stückverzinkt), Glas, Mauerwerk, Stahlbeton | E94: 50
A95: 339-122: Brüstung aus Holzkonstruktion [ND: 30] | B95: 339 | C95: 122 | D95: Brüstung aus Holzkonstruktion | E95: 30
A96: 339-123: Brüstungsbekleidung aus Aluminiumplatten, Glasplatten [ND: 50] | B96: 339 | C96: 123 | D96: Brüstungsbekleidung aus Aluminiumplatten, Glasplatten | E96: 50
A97: 339-124: Brüstungsbekleidung aus Kunststoffplatten [ND: 40] | B97: 339 | C97: 124 | D97: Brüstungsbekleidung aus Kunststoffplatten | E97: 40
A98: 341-111: Mauerwerkswand [ND: 50] | B98: 341 | C98: 111 | D98: Mauerwerkswand | E98: 50
A99: 341-211: Betonwand [ND: 50] | B99: 341 | C99: 211 | D99: Betonwand | E99: 50
A100: 341-311: Holzwand [ND: 50] | B100: 341 | C100: 311 | D100: Holzwand | E100: 50
A101: 342-111: Mauerwerkswand [ND: 50] | B101: 342 | C101: 111 | D101: Mauerwerkswand | E101: 50
A102: 342-211: Betonwand [ND: 50] | B102: 342 | C102: 211 | D102: Betonwand | E102: 50
A103: 342-311: Holzwand [ND: 50] | B103: 342 | C103: 311 | D103: Holzwand | E103: 50
A104: 342-411: Ständersysteme [ND: 50] | B104: 342 | C104: 411 | D104: Ständersysteme | E104: 50
A105: 343-111: Mauerwerksstütze [ND: 50] | B105: 343 | C105: 111 | D105: Mauerwerksstütze | E105: 50
A106: 343-211: Betonstütze [ND: 50] | B106: 343 | C106: 211 | D106: Betonstütze | E106: 50
A107: 343-311: Holzstütze [ND: 50] | B107: 343 | C107: 311 | D107: Holzstütze | E107: 50
A108: 343-411: Stahlstütze [ND: 50] | B108: 343 | C108: 411 | D108: Stahlstütze | E108: 50
A109: 344-111: Standardtüren: Holztüren, Holzwerkstofftüren, Aluminiumtüren, Kunststofftüren, Stahltüren und Stahltüren rostfrei [ND: 50] | B109: 344 | C109: 111 | D109: Standardtüren: Holztüren, Holzwerkstofftüren, Aluminiumtüren, Kunststofftüren, Stahltüren und Stahltüren rostfrei | E109: 50
A110: 344-211: Sondertüren: Glastüren, Rauchschutztüren, Schallschutztüren [ND: 50] | B110: 344 | C110: 211 | D110: Sondertüren: Glastüren, Rauchschutztüren, Schallschutztüren | E110: 50
A111: 344-311: Brandschutztüren [ND: 50] | B111: 344 | C111: 311 | D111: Brandschutztüren | E111: 50
A112: 344-312: Sondertüren: Feuchtraumtüren [ND: 40] | B112: 344 | C112: 312 | D112: Sondertüren: Feuchtraumtüren | E112: 40
A113: 344-313: Sondertüren: Schiebetüren, Rotationstüren [ND: 30] | B113: 344 | C113: 313 | D113: Sondertüren: Schiebetüren, Rotationstüren | E113: 30
A114: 344-314: Sondertüren: Automatiktüren [ND: 20] | B114: 344 | C114: 314 | D114: Sondertüren: Automatiktüren | E114: 20
A115: 344-411: Tore: Brandschutztore [ND: 30] | B115: 344 | C115: 411 | D115: Tore: Brandschutztore | E115: 30
A116: 344-511: Fenster (Rahmen und Flügel) [ND: 50] | B116: 344 | C116: 511 | D116: Fenster (Rahmen und Flügel) | E116: 50
A117: 344-611: Beschläge: einfache Beschläge [ND: 50] | B117: 344 | C117: 611 | D117: Beschläge: einfache Beschläge | E117: 50
A118: 344-612: Beschläge: Schwingflügelbeschläge, Falttürbeschläge, Schiebebeschläge, Drehkippbeschläge, Hebedrehkippbeschläge [ND: 30] | B118: 344 | C118: 612 | D118: Beschläge: Schwingflügelbeschläge, Falttürbeschläge, Schiebebeschläge, Drehkippbeschläge, Hebedrehkippbeschläge | E118: 30
A119: 344-613: Türschließer, Türschlösser, Fensterschlösser [ND: 30] | B119: 344 | C119: 613 | D119: Türschließer, Türschlösser, Fensterschlösser | E119: 30
A120: 344-614: Panikverschlüsse [ND: 25] | B120: 344 | C120: 614 | D120: Panikverschlüsse | E120: 25
A121: 344-615: Türantriebe [ND: 15] | B121: 344 | C121: 615 | D121: Türantriebe | E121: 15
A122: 344-616: Türanschlagdämpfer [ND: 20] | B122: 344 | C122: 616 | D122: Türanschlagdämpfer | E122: 20
A123: 344-617: Fenster und Türverglasung: Einfachverglasung [ND: 50] | B123: 344 | C123: 617 | D123: Fenster und Türverglasung: Einfachverglasung | E123: 50
A124: 344-618: Fenster und Türverglasung: angriffhemmendes Isolierglas, Sicherheits-Isolierglas, Brandschutz-Isolierglas, Schallschutz-Isolierglas [ND: 40] | B124: 344 | C124: 618 | D124: Fenster und Türverglasung: angriffhemmendes Isolierglas, Sicherheits-Isolierglas, Brandschutz-Isolierglas, Schallschutz-Isolierglas | E124: 40
A125: 344-621: Dichtungsprofile [ND: 30] | B125: 344 | C125: 621 | D125: Dichtungsprofile | E125: 30
A126: 344-622: Dichtungsstoffe [ND: 20] | B126: 344 | C126: 622 | D126: Dichtungsstoffe | E126: 20
A127: 345-111: Innenanstriche: Dispersionsfarbe, Dispersions-Silikatfarbe, Silikatfarbe, Silikonharzfarbe, Polymerisatharzfarben, Weißzementfarbe, Kaseinfarbe, Kalkfarbe, Leimfarbe [ND: 15] | B127: 345 | C127: 111 | D127: Innenanstriche: Dispersionsfarbe, Dispersions-Silikatfarbe, Silikatfarbe, Silikonharzfarbe, Polymerisatharzfarben, Weißzementfarbe, Kaseinfarbe, Kalkfarbe, Leimfarbe | E127: 15
A128: 345-112: Innenanstriche: Latexfarbe [ND: 10] | B128: 345 | C128: 112 | D128: Innenanstriche: Latexfarbe | E128: 10
A129: 345-113: Innenanstriche: Lasur [ND: 18] | B129: 345 | C129: 113 | D129: Innenanstriche: Lasur | E129: 18
A130: 345-211: Standard-Innenputze: Gipsputz, Anhydritputz, Kalkputz, Kalkgipsputz, Kalkzementputz, Kunstharzputz, Lehmputz [ND: 50] | B130: 345 | C130: 211 | D130: Standard-Innenputze: Gipsputz, Anhydritputz, Kalkputz, Kalkgipsputz, Kalkzementputz, Kunstharzputz, Lehmputz | E130: 50
A131: =IF(AND(ISNUMBER(B131),ISNUMBER(E131)),CONCATENATE(B131,"-",C131,": ",D131," [ND: ",E131,"]"),"") -> 345-212: mineralische Deckputze: Zementputz, Trasskalkputz, Trasszementputz [ND: 50] | B131: 345 | C131: 212 | D131: mineralische Deckputze: Zementputz, Trasskalkputz, Trasszementputz | E131: 50
A132: 345-213: Spezialputze: Sanierputz/-System [ND: 15] | B132: 345 | C132: 213 | D132: Spezialputze: Sanierputz/-System | E132: 15
A133: 345-214: Spezialputze: Akustikputz, Strahlenschutzputz [ND: 50] | B133: 345 | C133: 214 | D133: Spezialputze: Akustikputz, Strahlenschutzputz | E133: 50
A134: 345-221: Putzprofile: Kunststoff, Stahl, Glasfaser [ND: 50] | B134: 345 | C134: 221 | D134: Putzprofile: Kunststoff, Stahl, Glasfaser | E134: 50
A135: 345-222: Putzträger: Stahldrahtnetz, Rippenstreckmetall, Kunststoffgewebe [ND: 50] | B135: 345 | C135: 222 | D135: Putzträger: Stahldrahtnetz, Rippenstreckmetall, Kunststoffgewebe | E135: 50
A136: 345-311: Bekleidungen: Holz, Holzwerkstoffe und Mehrschichtleichtbauplatten, Aluminium, Stahl, Kupfer, Zink [ND: 50] | B136: 345 | C136: 311 | D136: Bekleidungen: Holz, Holzwerkstoffe und Mehrschichtleichtbauplatten, Aluminium, Stahl, Kupfer, Zink | E136: 50
A137: 345-312: Bekleidungen: Naturstein, Kunststein, keramische Fliesen und Platten, Feinsteinzeug [ND: 40] | B137: 345 | C137: 312 | D137: Bekleidungen: Naturstein, Kunststein, keramische Fliesen und Platten, Feinsteinzeug | E137: 40
A138: 345-313: Bekleidungen (Systeme): Gipskartonplatten, Gipskartonverbundplatten [ND: 50] | B138: 345 | C138: 313 | D138: Bekleidungen (Systeme): Gipskartonplatten, Gipskartonverbundplatten | E138: 50
A139: 345-314: Bekleidungen: Kunststoff (PVC, PE. PP) [ND: 40] | B139: 345 | C139: 314 | D139: Bekleidungen: Kunststoff (PVC, PE. PP) | E139: 40
A140: 345-315: Bekleidungen: Sonderkonstruktionen aus Glas [ND: 50] | B140: 345 | C140: 315 | D140: Bekleidungen: Sonderkonstruktionen aus Glas | E140: 50
A141: 345-316: Spezial-Bekleidungen: Brandschutz, Schallschutz, feuerressistente Bekleidungen [ND: 50] | B141: 345 | C141: 316 | D141: Spezial-Bekleidungen: Brandschutz, Schallschutz, feuerressistente Bekleidungen | E141: 50
A142: 345-411: Tapeten: Papier, Kunststoff, Tapeten nicht überstreichbar, Tapeten überstreichbar [ND: 10] | B142: 345 | C142: 411 | D142: Tapeten: Papier, Kunststoff, Tapeten nicht überstreichbar, Tapeten überstreichbar | E142: 10
A143: 345-412: Tapeten: Textil, Webstoff [ND: 15] | B143: 345 | C143: 412 | D143: Tapeten: Textil, Webstoff | E143: 15
A144: 346-111: Sanitärtrennwände: Toilettentrennwände, Urinaltrennwände [ND: 30] | B144: 346 | C144: 111 | D144: Sanitärtrennwände: Toilettentrennwände, Urinaltrennwände | E144: 30
A145: 346-112: Sanitärtrennwände: Duschtrennwände [ND: 25] | B145: 346 | C145: 112 | D145: Sanitärtrennwände: Duschtrennwände | E145: 25
A146: 346-211: Umkleidekabinen [ND: 30] | B146: 346 | C146: 211 | D146: Umkleidekabinen | E146: 30
A147: 349-111: Treppengeländer: Handläufe aus Aluminium, Laubholz, Stahl [ND: 50] | B147: 349 | C147: 111 | D147: Treppengeländer: Handläufe aus Aluminium, Laubholz, Stahl | E147: 50
A148: 349-112: Treppengeländer: Handläufe aus Kunststoff, Nadelholz [ND: 30] | B148: 349 | C148: 112 | D148: Treppengeländer: Handläufe aus Kunststoff, Nadelholz | E148: 30
A149: 351-111: Betondecken: Vollbetondecke, STB-Hohlraumdecke, Porenbetondecke [ND: 50] | B149: 351 | C149: 111 | D149: Betondecken: Vollbetondecke, STB-Hohlraumdecke, Porenbetondecke | E149: 50
A150: 351-211: Fertigteildecken: Gitterträgerdecke, Rippendecke [ND: 50] | B150: 351 | C150: 211 | D150: Fertigteildecken: Gitterträgerdecke, Rippendecke | E150: 50
A151: 351-311: Metalldecken: Stahlverbunddecke, Stahlträgerdecke [ND: 50] | B151: 351 | C151: 311 | D151: Metalldecken: Stahlverbunddecke, Stahlträgerdecke | E151: 50
A152: 351-411: Holzdecken: Massivholzdecke, Holzbalkendecke, Holz-Fertigteilelemente, Holz-Beton-Verbunddecke [ND: 50] | B152: 351 | C152: 411 | D152: Holzdecken: Massivholzdecke, Holzbalkendecke, Holz-Fertigteilelemente, Holz-Beton-Verbunddecke | E152: 50
A153: 351-511: Treppe: Tragkonstruktion aus Stahlbeton, Stahl, Holz, Aluminium [ND: 50] | B153: 351 | C153: 511 | D153: Treppe: Tragkonstruktion aus Stahlbeton, Stahl, Holz, Aluminium | E153: 50
A154: 352-111: Fließestriche: Zementestrich, Gussasphaltestrich, Anhydritestrich, Magnesiaestrich [ND: 50] | B154: 352 | C154: 111 | D154: Fließestriche: Zementestrich, Gussasphaltestrich, Anhydritestrich, Magnesiaestrich | E154: 50
A155: 352-112: Trockenestriche (Systeme): Holzwerkstoffplatten, Gipsfaserplatten, Gipskartonplatten [ND: 50] | B155: 352 | C155: 112 | D155: Trockenestriche (Systeme): Holzwerkstoffplatten, Gipsfaserplatten, Gipskartonplatten | E155: 50
A156: 352-113: Estrische als Verschleißboden [ND: 50] | B156: 352 | C156: 113 | D156: Estrische als Verschleißboden | E156: 50
A157: 352-121: Trittschalldämmung [ND: 50] | B157: 352 | C157: 121 | D157: Trittschalldämmung | E157: 50
A158: 352-211: Natursteinbeläge [ND: 50] | B158: 352 | C158: 211 | D158: Natursteinbeläge | E158: 50
A159: 352-311: Kunststeinbeläge [ND: 50] | B159: 352 | C159: 311 | D159: Kunststeinbeläge | E159: 50
A160: 352-411: keramische Fliesen und Platten: Feinsteinzeug, keramische Spaltplatten, Glasmosaik [ND: 50] | B160: 352 | C160: 411 | D160: keramische Fliesen und Platten: Feinsteinzeug, keramische Spaltplatten, Glasmosaik | E160: 50
A161: 352-412: keramische Fliesen und Platten: Steinzeug [ND: 40] | B161: 352 | C161: 412 | D161: keramische Fliesen und Platten: Steinzeug | E161: 40
A162: 352-413: keramische Fliesen und Platten: Steingut [ND: 20] | B162: 352 | C162: 413 | D162: keramische Fliesen und Platten: Steingut | E162: 20
A163: 352-511: Gussböden: Kunstharz [ND: 30] | B163: 352 | C163: 511 | D163: Gussböden: Kunstharz | E163: 30
A164: 352-512: Gussböden: Terrazzo [ND: 50] | B164: 352 | C164: 512 | D164: Gussböden: Terrazzo | E164: 50
A165: 352-611: textile Beläge: Baumwolle, Wolle, Synthetikfaser, Sisal, Naturfasergemisch, Jute, Kokos [ND: 10] | B165: 352 | C165: 611 | D165: textile Beläge: Baumwolle, Wolle, Synthetikfaser, Sisal, Naturfasergemisch, Jute, Kokos | E165: 10
A166: 352-711: Linoleum, Laminat, PVC, Kunststoff-Parkett, Kork, Kautschuk, Sporthallenbeläge [ND: 20] | B166: 352 | C166: 711 | D166: Linoleum, Laminat, PVC, Kunststoff-Parkett, Kork, Kautschuk, Sporthallenbeläge | E166: 20
A167: 352-811: Vollholzparkett, Holzdielen, Holzpflaster [ND: 50] | B167: 352 | C167: 811 | D167: Vollholzparkett, Holzdielen, Holzpflaster | E167: 50
A168: 352-812: Holz-Mehrschichtparkett [ND: 40] | B168: 352 | C168: 812 | D168: Holz-Mehrschichtparkett | E168: 40
A169: 352-813: Holzschutzanstriche für Bodenbeläge: Holzlacke [ND: 8] | B169: 352 | C169: 813 | D169: Holzschutzanstriche für Bodenbeläge: Holzlacke | E169: 8
A170: 352-814: Holzschutzanstriche für Bodenbeläge: Holzversiegelungen [ND: 10] | B170: 352 | C170: 814 | D170: Holzschutzanstriche für Bodenbeläge: Holzversiegelungen | E170: 10
A171: 352-815: Holzschutzanstriche für Bodenbeläge: Holzimprägnierungen, Holzöle/-wachse [ND: 5] | B171: 352 | C171: 815 | D171: Holzschutzanstriche für Bodenbeläge: Holzimprägnierungen, Holzöle/-wachse | E171: 5
A172: 352-911: Doppelböden und Hohlraumböden [ND: 50] | B172: 352 | C172: 911 | D172: Doppelböden und Hohlraumböden | E172: 50
A173: 352-912: Doppelbodenstützen und Hohlraumbodenstützen: Stahl [ND: 50] | B173: 352 | C173: 912 | D173: Doppelbodenstützen und Hohlraumbodenstützen: Stahl | E173: 50
A174: 352-921: Schwingböden: Holz, Kunststoff [ND: 45] | B174: 352 | C174: 921 | D174: Schwingböden: Holz, Kunststoff | E174: 45
A175: 352-931: Sockelleisten: Naturstein, Kunststein, Klinker, Keramik, Holz [ND: 50] | B175: 352 | C175: 931 | D175: Sockelleisten: Naturstein, Kunststein, Klinker, Keramik, Holz | E175: 50
A176: 352-941: Schmutzfangbeläge: Synthetikfaser, Kunststoff, Baumwolle, Sisal, Jute, Kokos [ND: 8] | B176: 352 | C176: 941 | D176: Schmutzfangbeläge: Synthetikfaser, Kunststoff, Baumwolle, Sisal, Jute, Kokos | E176: 8
A177: 352-951: Oberflächenbehandlung: Versiegelung [ND: 12] | B177: 352 | C177: 951 | D177: Oberflächenbehandlung: Versiegelung | E177: 12
A178: 352-952: Oberflächenbehandlung: Beschichtung auf Kunststoffbasis [ND: 10] | B178: 352 | C178: 952 | D178: Oberflächenbehandlung: Beschichtung auf Kunststoffbasis | E178: 10
A179: 352-953: Oberflächenbehandlung: Beschichtung auf Wachsoder Ölbasis [ND: 8] | B179: 352 | C179: 953 | D179: Oberflächenbehandlung: Beschichtung auf Wachsoder Ölbasis | E179: 8
A180: 353-111: Gipskartonbekleidungen [ND: 50] | B180: 353 | C180: 111 | D180: Gipskartonbekleidungen | E180: 50
A181: 353-211: Metallbekeidungen: Aluminium, Stahl, Kupfer, Zink [ND: 50] | B181: 353 | C181: 211 | D181: Metallbekeidungen: Aluminium, Stahl, Kupfer, Zink | E181: 50
A182: 353-311: Holzbekleidungen: Holz, Holzwerkstoffe und Mehrschichtleichtbauplatten [ND: 50] | B182: 353 | C182: 311 | D182: Holzbekleidungen: Holz, Holzwerkstoffe und Mehrschichtleichtbauplatten | E182: 50
A183: 353-411: Sonderkonstruktionen inkl. Befestigung: Mineralfaserplatten, Kunststoffplatten, Glasplatten [ND: 50] | B183: 353 | C183: 411 | D183: Sonderkonstruktionen inkl. Befestigung: Mineralfaserplatten, Kunststoffplatten, Glasplatten | E183: 50
A184: 353-412: Sonderkonstruktionen inkl. Befestigung: Brandschutz-Unterdecken [ND: 40] | B184: 353 | C184: 412 | D184: Sonderkonstruktionen inkl. Befestigung: Brandschutz-Unterdecken | E184: 40
A185: 353-413: Sonderkonstruktionen inkl. Befestigung: Akustikdecken, Akustikelemente, Akustikschaum, Schallabsorber [ND: 40] | B185: 353 | C185: 413 | D185: Sonderkonstruktionen inkl. Befestigung: Akustikdecken, Akustikelemente, Akustikschaum, Schallabsorber | E185: 40
A186: 353-414: Sonderkonstruktionen inkl. Befestigung: Lichtdecken [ND: 25] | B186: 353 | C186: 414 | D186: Sonderkonstruktionen inkl. Befestigung: Lichtdecken | E186: 25
A187: 353-511: Tapeten: überstreichbar [ND: 10] | B187: 353 | C187: 511 | D187: Tapeten: überstreichbar | E187: 10
A188: 353-512: Tapeten: Kunststoff, Texil, Webstoff, Papier nicht überstreichbar [ND: 5] | B188: 353 | C188: 512 | D188: Tapeten: Kunststoff, Texil, Webstoff, Papier nicht überstreichbar | E188: 5
A189: 353-611: Unterkonstruktionen: Trockenbauprofile (Stahl, Holz) [ND: 50] | B189: 353 | C189: 611 | D189: Unterkonstruktionen: Trockenbauprofile (Stahl, Holz) | E189: 50
A190: 359-111: Geländer, Gitter, Roste, Leitern: Stahl, Aluminium, Holz, Holzwerkstoff, Gusseisen [ND: 50] | B190: 359 | C190: 111 | D190: Geländer, Gitter, Roste, Leitern: Stahl, Aluminium, Holz, Holzwerkstoff, Gusseisen | E190: 50
A191: 359-112: Gitter und Roste: Kunststoff [ND: 40] | B191: 359 | C191: 112 | D191: Gitter und Roste: Kunststoff | E191: 40
A192: 361-111: Tragkonstruktion: Schrägdach [ND: 50] | B192: 361 | C192: 111 | D192: Tragkonstruktion: Schrägdach | E192: 50
A193: 361-211: Tragkonstruktion: Flachdach [ND: 50] | B193: 361 | C193: 211 | D193: Tragkonstruktion: Flachdach | E193: 50
A194: 362-111: Dachflächenfenster (Rahmen): Aluminium, Kunststoff, Aluminium-Holz-Komposit [ND: 50] | B194: 362 | C194: 111 | D194: Dachflächenfenster (Rahmen): Aluminium, Kunststoff, Aluminium-Holz-Komposit | E194: 50
A195: =IF(AND(ISNUMBER(B195),ISNUMBER(E195)),CONCATENATE(B195,"-",C195,": ",D195," [ND: ",E195,"]"),"") -> 362-112: Dachflächenfenster (Rahmen): Aluminium-Kunststoff-Komposit [ND: 35] | B195: 362 | C195: 112 | D195: Dachflächenfenster (Rahmen): Aluminium-Kunststoff-Komposit | E195: 35
A196: 362-113: Dachflächenfenster (Rahmen): Laubholz, behandelt [ND: 40] | B196: 362 | C196: 113 | D196: Dachflächenfenster (Rahmen): Laubholz, behandelt | E196: 40
A197: 362-114: Dachflächenfenster (Rahmen): Nadelholz, behandelt [ND: 25] | B197: 362 | C197: 114 | D197: Dachflächenfenster (Rahmen): Nadelholz, behandelt | E197: 25
A198: 362-211: Lichtkuppeln [ND: 25] | B198: 362 | C198: 211 | D198: Lichtkuppeln | E198: 25
A199: 362-221: Lichtbänder [ND: 20] | B199: 362 | C199: 221 | D199: Lichtbänder | E199: 20
A200: 362-311: Dachausstiege und Luken: Stahl feuerverzinkt (stückverzinkt) [ND: 40] | B200: 362 | C200: 311 | D200: Dachausstiege und Luken: Stahl feuerverzinkt (stückverzinkt) | E200: 40
... 87 more rows

Sheet KT_DIN276 (hidden)
A1: =CONCATENATE(B1,": ",C1) -> 300: Bauwerk - Baukonstruktionen | B1: 300 | C1: Bauwerk - Baukonstruktionen
A2: 310: Baugrube | B2: 310 | C2: Baugrube
A3: 311: Baugrubenherstellung | B3: 311 | C3: Baugrubenherstellung
A4: 312: Baugrubenumschließung | B4: 312 | C4: Baugrubenumschließung
A5: 313: Wasserhaltung | B5: 313 | C5: Wasserhaltung
A6: 319: Baugrube, Sonstiges | B6: 319 | C6: Baugrube, Sonstiges
A7: 320: Gründung | B7: 320 | C7: Gründung
A8: 321: Baugrundverbesserung | B8: 321 | C8: Baugrundverbesserung
A9: 322: Flachgründungen | B9: 322 | C9: Flachgründungen
A10: 323: Tiefgründungen | B10: 323 | C10: Tiefgründungen
A11: 324: Unterböden und Bodenplatten | B11: 324 | C11: Unterböden und Bodenplatten
A12: 325: Bodenbeläge | B12: 325 | C12: Bodenbeläge
A13: 326: Bauwerksabdichtungen | B13: 326 | C13: Bauwerksabdichtungen
A14: 327: Dränagen | B14: 327 | C14: Dränagen
A15: 329: Gründungen, Sonstiges | B15: 329 | C15: Gründungen, Sonstiges
A16: 330: Außenwände | B16: 330 | C16: Außenwände
A17: 331: Tragende Außenwände | B17: 331 | C17: Tragende Außenwände
A18: 332: Nichttragende Außenwände | B18: 332 | C18: Nichttragende Außenwände
A19: 333: Außenstützen | B19: 333 | C19: Außenstützen
A20: 334: Außentüren und -fenster | B20: 334 | C20: Außentüren und -fenster
A21: 335: Außenwandbekleidungen, außen | B21: 335 | C21: Außenwandbekleidungen, außen
A22: 336: Außenwandbekleidungen, innen | B22: 336 | C22: Außenwandbekleidungen, innen
A23: 337: Elementierte Außenwände | B23: 337 | C23: Elementierte Außenwände
A24: 338: Sonnenschutz | B24: 338 | C24: Sonnenschutz
A25: 339: Außenwände, Sonstiges | B25: 339 | C25: Außenwände, Sonstiges
A26: 340: Innenwände | B26: 340 | C26: Innenwände
A27: 341: Tragende Innenwände | B27: 341 | C27: Tragende Innenwände
A28: 342: Nichttragende Innenwände | B28: 342 | C28: Nichttragende Innenwände
A29: 343: Innenstützen | B29: 343 | C29: Innenstützen
A30: 344: Innentüren und -fenster | B30: 344 | C30: Innentüren und -fenster
A31: 345: Innenwandbekleidungen | B31: 345 | C31: Innenwandbekleidungen
A32: 346: Elementierte Innenwände | B32: 346 | C32: Elementierte Innenwände
A33: =CONCATENATE(B33,": ",C33) -> 349: Innenwände, Sonstiges | B33: 349 | C33: Innenwände, Sonstiges
A34: 350: Decken | B34: 350 | C34: Decken
A35: 351: Deckenkonstruktionen | B35: 351 | C35: Deckenkonstruktionen
A36: 352: Deckenbeläge | B36: 352 | C36: Deckenbeläge
A37: 353: Deckenbekleidungen | B37: 353 | C37: Deckenbekleidungen
A38: 359: Decken, Sonstiges | B38: 359 | C38: Decken, Sonstiges
A39: 360: Dächer | B39: 360 | C39: Dächer
A40: 361: Dachkonstruktionen | B40: 361 | C40: Dachkonstruktionen
A41: 362: Dachfenster, Dachöffnungen | B41: 362 | C41: Dachfenster, Dachöffnungen
A42: 363: Dachbeläge | B42: 363 | C42: Dachbeläge
A43: 364: Dachbekleidungen | B43: 364 | C43: Dachbekleidungen
A44: 369: Dächer, Sonstiges | B44: 369 | C44: Dächer, Sonstiges
A45: 370: Baukonstruktive Einbauten | B45: 370 | C45: Baukonstruktive Einbauten
A46: 371: Allgemeine Einbauten | B46: 371 | C46: Allgemeine Einbauten
A47: 372: Besondere Einbauten | B47: 372 | C47: Besondere Einbauten
A48: 379: Baukonstruktive Einbauten, Sonstiges | B48: 379 | C48: Baukonstruktive Einbauten, Sonstiges
A49: 390: Sonstige Maßnahmen für Baukonstruktionen | B49: 390 | C49: Sonstige Maßnahmen für Baukonstruktionen
A50: 391: Baustelleneinrichtung | B50: 391 | C50: Baustelleneinrichtung
A51: 392: Gerüste | B51: 392 | C51: Gerüste
A52: 393: Sicherungsmaßnahmen | B52: 393 | C52: Sicherungsmaßnahmen
A53: 394: Abbruchmaßnahmen | B53: 394 | C53: Abbruchmaßnahmen
A54: 395: Instandsetzungen | B54: 395 | C54: Instandsetzungen
A55: 396: Materialentsorgung | B55: 396 | C55: Materialentsorgung
A56: 397: Zusätzliche Maßnahmen | B56: 397 | C56: Zusätzliche Maßnahmen
A57: 398: Provisorische Baukonstruktionen | B57: 398 | C57: Provisorische Baukonstruktionen
A58: 399: Sonstige Maßnahmen für Baukonstruktionen, Sonstiges | B58: 399 | C58: Sonstige Maßnahmen für Baukonstruktionen, Sonstiges
A59: 400: Bauwerk - Technische Anlagen | B59: 400 | C59: Bauwerk - Technische Anlagen
A60: 410: Abwasser-, Wasser-, Gasanlagen | B60: 410 | C60: Abwasser-, Wasser-, Gasanlagen
A61: 411: Abwasseranlagen | B61: 411 | C61: Abwasseranlagen
A62: 412: Wasseranlagen | B62: 412 | C62: Wasseranlagen
A63: 413: Gasanlagen | B63: 413 | C63: Gasanlagen
A64: 419: Abwasser-, Wasser-, Gasanlagen, Sonstiges | B64: 419 | C64: Abwasser-, Wasser-, Gasanlagen, Sonstiges
A65: =CONCATENATE(B65,": ",C65) -> 420: Wärmeversorgungsanlagen | B65: 420 | C65: Wärmeversorgungsanlagen
A66: 421: Wärmeerzeugungsanlagen | B66: 421 | C66: Wärmeerzeugungsanlagen
A67: 422: Wärmeverteilnetze | B67: 422 | C67: Wärmeverteilnetze
A68: 423: Raumheizflächen | B68: 423 | C68: Raumheizflächen
A69: 429: Wärmeversorgungsanlagen, Sonstiges | B69: 429 | C69: Wärmeversorgungsanlagen, Sonstiges
A70: 430: Lufttechnische Anlagen | B70: 430 | C70: Lufttechnische Anlagen
A71: 431: Lüftungsanlagen | B71: 431 | C71: Lüftungsanlagen
A72: 432: Teilklimaanlagen | B72: 432 | C72: Teilklimaanlagen
A73: 433: Klimaanlagen | B73: 433 | C73: Klimaanlagen
A74: 434: Kälteanlagen | B74: 434 | C74: Kälteanlagen
A75: 439: Lufttechnische Anlagen, Sonstiges | B75: 439 | C75: Lufttechnische Anlagen, Sonstiges
A76: 440: Starkstromanlagen | B76: 440 | C76: Starkstromanlagen
A77: 441: Hoch- und Mittelspannungsanlagen | B77: 441 | C77: Hoch- und Mittelspannungsanlagen
A78: 442: Eigenstromversorgungsanlagen | B78: 442 | C78: Eigenstromversorgungsanlagen
A79: 443: Niederspannungsschaltanlagen | B79: 443 | C79: Niederspannungsschaltanlagen
A80: 444: Niederspannungsinstallationsanlagen | B80: 444 | C80: Niederspannungsinstallationsanlagen
A81: 445: Beleuchtungsanlagen | B81: 445 | C81: Beleuchtungsanlagen
A82: 446: Blitzschutz- und Erdungsanlagen | B82: 446 | C82: Blitzschutz- und Erdungsanlagen
A83: 449: Starkstromanlagen, Sonstiges | B83: 449 | C83: Starkstromanlagen, Sonstiges
A84: 450: Fernmelde- und informationstechnische Anlagen | B84: 450 | C84: Fernmelde- und informationstechnische Anlagen
A85: 451: Telekommunikationsanlagen | B85: 451 | C85: Telekommunikationsanlagen
A86: 452: Such- und Signalanlagen | B86: 452 | C86: Such- und Signalanlagen
A87: 453: Zeitdienstanlagen | B87: 453 | C87: Zeitdienstanlagen
A88: 454: Elektroakustische Anlagen | B88: 454 | C88: Elektroakustische Anlagen
A89: 455: Fernseh- und Antennenanlagen | B89: 455 | C89: Fernseh- und Antennenanlagen
A90: 456: Gefahrenmelde- und Alarmanlagen | B90: 456 | C90: Gefahrenmelde- und Alarmanlagen
A91: 457: Übertragungsnetze | B91: 457 | C91: Übertragungsnetze
A92: 459: Fernmelde- und informationstechnische Anlagen, Sonst. | B92: 459 | C92: Fernmelde- und informationstechnische Anlagen, Sonst.
A93: 460: Förderanlagen | B93: 460 | C93: Förderanlagen
A94: 461: Aufzugsanlagen | B94: 461 | C94: Aufzugsanlagen
A95: 462: Fahrtreppen, Fahrsteige | B95: 462 | C95: Fahrtreppen, Fahrsteige
A96: 463: Befahranlagen | B96: 463 | C96: Befahranlagen
A97: =CONCATENATE(B97,": ",C97) -> 464: Transportanlagen | B97: 464 | C97: Transportanlagen
A98: 465: Krananlagen | B98: 465 | C98: Krananlagen
A99: 469: Förderanlagen, Sonstiges | B99: 469 | C99: Förderanlagen, Sonstiges
A100: 470: Nutzungsspezifische Anlagen | B100: 470 | C100: Nutzungsspezifische Anlagen
A101: 471: Küchentechnische Anlagen | B101: 471 | C101: Küchentechnische Anlagen
A102: 472: Wäscherei- und Reinigungsanlagen | B102: 472 | C102: Wäscherei- und Reinigungsanlagen
A103: 473: Medienversorgungsanlagen | B103: 473 | C103: Medienversorgungsanlagen
A104: 474: Medizin- und labortechnische Anlagen | B104: 474 | C104: Medizin- und labortechnische Anlagen
A105: 475: Feuerlöschanlagen | B105: 475 | C105: Feuerlöschanlagen
A106: 476: Badetechnische Anlagen | B106: 476 | C106: Badetechnische Anlagen
A107: 477: Prozesswärme-, kälte-, und luftanlagen | B107: 477 | C107: Prozesswärme-, kälte-, und luftanlagen
A108: 478: Entsorgungsanlagen | B108: 478 | C108: Entsorgungsanlagen
A109: 479: Nutzungsspezifische Anlagen, Sonstiges | B109: 479 | C109: Nutzungsspezifische Anlagen, Sonstiges
A110: 480: Gebäudeautomation | B110: 480 | C110: Gebäudeautomation
A111: 481: Automationssysteme | B111: 481 | C111: Automationssysteme
A112: 482: Schaltschränke | B112: 482 | C112: Schaltschränke
A113: 483: Management- und Bedieneinrichtungen | B113: 483 | C113: Management- und Bedieneinrichtungen
A114: 484: Raumautomationssysteme | B114: 484 | C114: Raumautomationssysteme
A115: 485: Übertragungsnetze | B115: 485 | C115: Übertragungsnetze
A116: 489: Gebäudeautomation, Sonstiges | B116: 489 | C116: Gebäudeautomation, Sonstiges
A117: 490: Sonstige Maßnahmen für technische Anlagen | B117: 490 | C117: Sonstige Maßnahmen für technische Anlagen
A118: 491: Baustelleneinrichtung | B118: 491 | C118: Baustelleneinrichtung
A119: 492: Gerüste | B119: 492 | C119: Gerüste
A120: 493: Sicherungsmaßnahmen | B120: 493 | C120: Sicherungsmaßnahmen
A121: 494: Abbruchmaßnahmen | B121: 494 | C121: Abbruchmaßnahmen
A122: 495: Instandsetzungen | B122: 495 | C122: Instandsetzungen
A123: 496: Materialentsorgung | B123: 496 | C123: Materialentsorgung
A124: 497: Zusätzliche Maßnahmen | B124: 497 | C124: Zusätzliche Maßnahmen
A125: 498: Provisorische technische Anlagen | B125: 498 | C125: Provisorische technische Anlagen
A126: 499: Sonstige Maßnahmen für technische Anlagen, Sonst. | B126: 499 | C126: Sonstige Maßnahmen für technische Anlagen, Sonst.
A127: 500: Außenanlagen | B127: 500 | C127: Außenanlagen
A128: 510: Geländeflächen | B128: 510 | C128: Geländeflächen
A129: =CONCATENATE(B129,": ",C129) -> 511: Oberbodenarbeiten | B129: 511 | C129: Oberbodenarbeiten
A130: 512: Bodenarbeiten | B130: 512 | C130: Bodenarbeiten
A131: 519: Geländeflächen, sonstiges | B131: 519 | C131: Geländeflächen, sonstiges
A132: 520: Befestigte Flächen | B132: 520 | C132: Befestigte Flächen
A133: 521: Wege | B133: 521 | C133: Wege
A134: 522: Straßen | B134: 522 | C134: Straßen
A135: 523: Plätze, Höfe | B135: 523 | C135: Plätze, Höfe
A136: 524: Stellplätze | B136: 524 | C136: Stellplätze
A137: 525: Sportplatzflächen | B137: 525 | C137: Sportplatzflächen
A138: 526: Spielplatzflächen | B138: 526 | C138: Spielplatzflächen
A139: 527: Gleisanlagen | B139: 527 | C139: Gleisanlagen
A140: 529: Befestigte Flächen, sonstiges | B140: 529 | C140: Befestigte Flächen, sonstiges
A141: 530: Baukonstruktionen in Außenanlagen | B141: 530 | C141: Baukonstruktionen in Außenanlagen
A142: 531: Einfriedungen | B142: 531 | C142: Einfriedungen
A143: 532: Schutzkonstruktionen | B143: 532 | C143: Schutzkonstruktionen
A144: 533: Mauern, Wände | B144: 533 | C144: Mauern, Wände
A145: 534: Rampen, Treppen, Tribünen | B145: 534 | C145: Rampen, Treppen, Tribünen
A146: 535: Überdachungen | B146: 535 | C146: Überdachungen
A147: 536: Brücken, Stege | B147: 536 | C147: Brücken, Stege
A148: 537: Kanal- und Schachtbauanlagen | B148: 537 | C148: Kanal- und Schachtbauanlagen
A149: 538: Wasserbauliche Anlagen | B149: 538 | C149: Wasserbauliche Anlagen
A150: 539: Baukonstruktionen in Außenanlagen, sonstiges | B150: 539 | C150: Baukonstruktionen in Außenanlagen, sonstiges
A151: 540: Technische Anlagen in Außenanlagen | B151: 540 | C151: Technische Anlagen in Außenanlagen
A152: 541: Abwasseranlagen | B152: 541 | C152: Abwasseranlagen
A153: 542: Wasseranlagen | B153: 542 | C153: Wasseranlagen
A154: 543: Gasanlagen | B154: 543 | C154: Gasanlagen
A155: 544: Wärmeversorgungsanlagen | B155: 544 | C155: Wärmeversorgungsanlagen
A156: 545: Lufttechnische Anlagen | B156: 545 | C156: Lufttechnische Anlagen
A157: 546: Starkstromanlagen | B157: 546 | C157: Starkstromanlagen
A158: 547: Fernmelde- und informationstechnische Anlagen | B158: 547 | C158: Fernmelde- und informationstechnische Anlagen
A159: 548: Nutzungsspezifische Anlagen | B159: 548 | C159: Nutzungsspezifische Anlagen
A160: 549: Technische Anlagen in Außenanlagen, sonstiges | B160: 549 | C160: Technische Anlagen in Außenanlagen, sonstiges
A161: =CONCATENATE(B161,": ",C161) -> 550: Einbauten in Außenanlagen | B161: 550 | C161: Einbauten in Außenanlagen
A162: 551: Allgemeine Einbauten | B162: 551 | C162: Allgemeine Einbauten
A163: 552: Besondere Einbauten | B163: 552 | C163: Besondere Einbauten
A164: 559: Einbauten in Außenanlagen, sonstiges | B164: 559 | C164: Einbauten in Außenanlagen, sonstiges
A165: 560: Wasserflächen | B165: 560 | C165: Wasserflächen
A166: 561: Abdichtungen | B166: 561 | C166: Abdichtungen
A167: 562: Bepflanzungen | B167: 562 | C167: Bepflanzungen
A168: 569: Wasserflächen, sonstiges | B168: 569 | C168: Wasserflächen, sonstiges
A169: 570: Pflanz- und Saatflächen | B169: 570 | C169: Pflanz- und Saatflächen
A170: 571: Oberbodenarbeiten | B170: 571 | C170: Oberbodenarbeiten
A171: 572: Vegetationstechnische Bodenbearbeitung | B171: 572 | C171: Vegetationstechnische Bodenbearbeitung
A172: 573: Sicherungsbauweisen | B172: 573 | C172: Sicherungsbauweisen
A173: 574: Pflanzen | B173: 574 | C173: Pflanzen
A174: 575: Rasen und Ansaaten | B174: 575 | C174: Rasen und Ansaaten
A175: 576: Begrünung unterbauter Flächen | B175: 576 | C175: Begrünung unterbauter Flächen
A176: 579: Pflanz- und Saatflächen, sonstiges | B176: 579 | C176: Pflanz- und Saatflächen, sonstiges
A177: 590: Sonstige Außenanlagen | B177: 590 | C177: Sonstige Außenanlagen
A178: 591: Baustelleneinrichtung | B178: 591 | C178: Baustelleneinrichtung
A179: 592: Gerüste | B179: 592 | C179: Gerüste
A180: 593: Sicherungsmaßnahmen | B180: 593 | C180: Sicherungsmaßnahmen
A181: 594: Abbruchmaßnahmen | B181: 594 | C181: Abbruchmaßnahmen
A182: 595: Instandsetzungen | B182: 595 | C182: Instandsetzungen
A183: 596: Materialentsorgung | B183: 596 | C183: Materialentsorgung
A184: 597: Zusätzliche Maßnahmen | B184: 597 | C184: Zusätzliche Maßnahmen
A185: 598: Provisorische Außenanlagen | B185: 598 | C185: Provisorische Außenanlagen
A186: 599: Sonstige Maßnahmen für Außenanlagen, sonstiges | B186: 599 | C186: Sonstige Maßnahmen für Außenanlagen, sonstiges

Sheet KT_regNutzungskosten (hidden)
B1: Anzeige Auswahlfeld | C1: Anzeige Auswahlfeld | D1: DIN 276 | E1: Ebene 2 | F1: Bezeichnung Kostengruppe oder Bauteil/Material | G1: Inspektion und Wartung | H1: Instandsetzung
A2: =CONCATENATE(D2,"-",E2,": ",F2," [IW: ",B2,", IN: ",C2,"]") -> 300-000: Baukonstruktion ohne Inspektion+Wartung [IW: 0, IN: 0] | B2: =G2 -> 0 | C2: 0 | D2: 300 | E2: 000 | F2: Baukonstruktion ohne Inspektion+Wartung | G2: 0 | H2: 0
A3: =CONCATENATE(D3,"-",E3,": ",F3," [IW: ",B3,", IN: ",C3,"]") -> 326-111: Bauwerksabdichtungen [IW: 0,001, IN: 0] | B3: 0.001 | C3: 0 | D3: 326 | E3: 111 | F3: Bauwerksabdichtungen | G3: 0.001 | H3: 0
A4: 327-111: Drainagen [IW: 0,001, IN: 0] | B4: 0.001 | C4: 0 | D4: 327 | E4: 111 | F4: Drainagen | G4: 0.001 | H4: 0
A5: 334-111: Außentüren und -fenster [IW: 0,001, IN: 0] | B5: 0.001 | C5: 0 | D5: 334 | E5: 111 | F5: Außentüren und -fenster | G5: 0.001 | H5: 0
A6: 338-111: Sonnenschutz [IW: 0,001, IN: 0] | B6: 0.001 | C6: 0 | D6: 338 | E6: 111 | F6: Sonnenschutz | G6: 0.001 | H6: 0
A7: =CONCATENATE(D7,"-",E7,": ",F7," [IW: ",B7,", IN: ",C7,"]") -> 344-111: Innentüren und -fenster [IW: 0,001, IN: 0] | B7: 0.001 | C7: 0 | D7: 344 | E7: 111 | F7: Innentüren und -fenster | G7: 0.001 | H7: 0
A8: 362-111: Dachfenster, Dachöffnungen [IW: 0,001, IN: 0] | B8: 0.001 | C8: 0 | D8: 362 | E8: 111 | F8: Dachfenster, Dachöffnungen | G8: 0.001 | H8: 0
A9: =CONCATENATE(D9,"-",E9,": ",F9," [IW: ",B9,", IN: ",C9,"]") -> 410-001: Abwasser-, Wasser-, Gasanlagen gesamt (Anlage3/ AMEV) [IW: 0,007, IN: 0,0055] | B9: =G9 -> 0.007 | C9: =H9 -> 0.0055 | D9: 410 | E9: 001 | F9: Abwasser-, Wasser-, Gasanlagen gesamt (Anlage3/ AMEV) | G9: 0.007 | H9: 0.0055
A10: 420-001: Wärmeversorgungsanlagen gesamt (Anlage 3/ AMEV) [IW: 0,009, IN: 0,005] | B10: 0.009 | C10: 0.005 | D10: 420 | E10: 001 | F10: Wärmeversorgungsanlagen gesamt (Anlage 3/ AMEV) | G10: 0.009 | H10: 0.005
A11: 421-001: Wärmeerzeugungsanlagen gesamt inkl TW (Anlage 3) [IW: 0,01, IN: 0,02] | B11: 0.01 | C11: 0.02 | D11: 421 | E11: 001 | F11: Wärmeerzeugungsanlagen gesamt inkl TW (Anlage 3) | G11: 0.01 | H11: 0.02
A12: =CONCATENATE(D12,"-",E12,": ",F12," [IW: ",B12,", IN: ",C12,"]") -> 422-111: Wärmeverteilnetze Heizung gesamt (Anlage3) [IW: 0, IN: 0,01] | B12: 0 | C12: 0.01 | D12: 422 | E12: 111 | F12: Wärmeverteilnetze Heizung gesamt (Anlage3) | G12: 0 | H12: 0.01
A13: =CONCATENATE(D13,"-",E13,": ",F13," [IW: ",B13,", IN: ",C13,"]") -> 422-112: Wärmeverteilnetze TW gesamt (Anlage 3) [IW: 0, IN: 0,02] | B13: 0 | C13: 0.02 | D13: 422 | E13: 112 | F13: Wärmeverteilnetze TW gesamt (Anlage 3) | G13: 0 | H13: 0.02
A14: 423-111: Raumheizflächen/ Nutzenübergabe Heizung gesamt (Anlage 3) [IW: 0, IN: 0,01] | B14: 0 | C14: 0.01 | D14: 423 | E14: 111 | F14: Raumheizflächen/ Nutzenübergabe Heizung gesamt (Anlage 3) | G14: 0 | H14: 0.01
A15: 423-112: Nutzenübergabe TW gesamt (Anlage 3) [IW: 0,01, IN: 0,01] | B15: 0.01 | C15: 0.01 | D15: 423 | E15: 112 | F15: Nutzenübergabe TW gesamt (Anlage 3) | G15: 0.01 | H15: 0.01
A16: 429-111: Wasseraufbereitungsanlagen (Anlage 3) [IW: 0,01, IN: 0,01] | B16: 0.01 | C16: 0.01 | D16: 429 | E16: 111 | F16: Wasseraufbereitungsanlagen (Anlage 3) | G16: 0.01 | H16: 0.01
A17: 430-001: Lufttechnische Anlagen gesamt (Anlage 3/ AMEV) [IW: 0,0205, IN: 0,024] | B17: 0.0205 | C17: 0.024 | D17: 430 | E17: 001 | F17: Lufttechnische Anlagen gesamt (Anlage 3/ AMEV) | G17: 0.0205 | H17: 0.024
A18: =CONCATENATE(D18,"-",E18,": ",F18," [IW: ",B18,", IN: ",C18,"]") -> 430-111: Nutzenübergabe allgemein (Anlage 3) [IW: 0,01, IN: 0,01] | B18: 0.01 | C18: 0.01 | D18: 430 | E18: 111 | F18: Nutzenübergabe allgemein (Anlage 3) | G18: 0.01 | H18: 0.01
A19: 430-112: Wärmerückgewinnung [IW: 0,1, IN: 0,02] | B19: 0.1 | C19: 0.02 | D19: 430 | E19: 112 | F19: Wärmerückgewinnung | G19: 0.1 | H19: 0.02
A20: 430-113: Luftkühler (Anlage 3) [IW: 0,04, IN: 0,02] | B20: 0.04 | C20: 0.02 | D20: 430 | E20: 113 | F20: Luftkühler (Anlage 3) | G20: 0.04 | H20: 0.02
A21: 430-114: Kühldecken (Anlage 3) [IW: 0,01, IN: 0,01] | B21: 0.01 | C21: 0.01 | D21: 430 | E21: 114 | F21: Kühldecken (Anlage 3) | G21: 0.01 | H21: 0.01
A22: =CONCATENATE(D22,"-",E22,": ",F22," [IW: ",B22,", IN: ",C22,"]") -> 430-115: Be-/ Entfeuchter (Anlage 3) [IW: 0,02, IN: 0,03] | B22: 0.02 | C22: 0.03 | D22: 430 | E22: 115 | F22: Be-/ Entfeuchter (Anlage 3) | G22: 0.02 | H22: 0.03
A23: 430-116: Verteilung (Anlage 3) [IW: 0, IN: 0,01] | B23: 0 | C23: 0.01 | D23: 430 | E23: 116 | F23: Verteilung (Anlage 3) | G23: 0 | H23: 0.01
A24: 430-117: Erzeugung Kälte (Anlage 3) [IW: 0,01, IN: 0,02] | B24: 0.01 | C24: 0.02 | D24: 430 | E24: 117 | F24: Erzeugung Kälte (Anlage 3) | G24: 0.01 | H24: 0.02
A25: 430-118: Erzeugung Wärme (Anlage 3) [IW: 0,01, IN: 0,02] | B25: 0.01 | C25: 0.02 | D25: 430 | E25: 118 | F25: Erzeugung Wärme (Anlage 3) | G25: 0.01 | H25: 0.02
A26: 440-001: Starkstromanlagen gesamt (Anlage 3/ AMEV) [IW: 0,0125, IN: 0,0065] | B26: 0.0125 | C26: 0.0065 | D26: 440 | E26: 001 | F26: Starkstromanlagen gesamt (Anlage 3/ AMEV) | G26: 0.0125 | H26: 0.0065
A27: =CONCATENATE(D27,"-",E27,": ",F27," [IW: ",B27,", IN: ",C27,"]") -> 450-001: Fernmeldetechnische Anlagen gesamt (Anlage 3/ AMEV) [IW: 0,007, IN: 0,0025] | B27: 0.007 | C27: 0.0025 | D27: 450 | E27: 001 | F27: Fernmeldetechnische Anlagen gesamt (Anlage 3/ AMEV) | G27: 0.007 | H27: 0.0025
A28: =CONCATENATE(D28,"-",E28,": ",F28," [IW: ",B28,", IN: ",C28,"]") -> 460-001: Aufzüge gesamt (Anlage 3/ AMEV) [IW: 0,0205, IN: 0,011] | B28: 0.0205 | C28: 0.011 | D28: 460 | E28: 001 | F28: Aufzüge gesamt (Anlage 3/ AMEV) | G28: 0.0205 | H28: 0.011
A29: 470-111: Abfallentsorgungsanlagen (Anlage 3/ AMEV) [IW: 0,016, IN: 0,014] | B29: 0.016 | C29: 0.014 | D29: 470 | E29: 111 | F29: Abfallentsorgungsanlagen (Anlage 3/ AMEV) | G29: 0.016 | H29: 0.014
A30: =CONCATENATE(D30,"-",E30,": ",F30," [IW: ",B30,", IN: ",C30,"]") -> 480-111: Gebäudeautomation (FAQ) [IW: 0,01, IN: 0,015] | B30: 0.01 | C30: 0.015 | D30: 480 | E30: 111 | F30: Gebäudeautomation (FAQ) | G30: 0.01 | H30: 0.015
A31: 490-111: Sonstige Maßnahmen für Technische Anlagen (FAQ) [IW: 0,005, IN: 0,005] | B31: 0.005 | C31: 0.005 | D31: 490 | E31: 111 | F31: Sonstige Maßnahmen für Technische Anlagen (FAQ) | G31: 0.005 | H31: 0.005

Sheet KT Energieträger (hidden)
A1: Nr. | B1: Energieträger | C1: Faktor Hs/Hi nach DIN 18599 | D1: Euro je kWh | G1: Heizöl | J1: Erdgas
A2: 1 | B2: Elektroenergie - Strom-Mix - Arbeit | C2: 1 | D2: 0.17 | G2: Heizwert | H2: 11.9 | I2: kWh/kg | J2: 10 | K2: kWh/m³
A3: 2 | B3: Elektroenergie - Strom-Mix - Wärme | C3: 1 | D3: 0.11 | G3: Dichte | H3: 0.84 | I3: kg/l
A4: 3 | B4: Gas - Erdgas | C4: 1.11 | D4: =J6 -> 0.062 | G4: Heizwert | H4: =H2*H3 -> 9.996 | I4: kWh/l
A5: 4 | B5: Holz - Pellets | C5: 1.08 | D5: =J10 -> 0.04090909091 | G5: Preis | H5: 0.85 | I5: €/l | J5: 0.62 | K5: €/m³
A6: 5 | B6: Fernwärme/ KWK - erneuerbar | C6: 1 | D6: 0.07 | G6: Preis | H6: =H5/H4 -> 0.08503401361 | I6: €/kWh | J6: =J5/J2 -> 0.062 | K6: €/kWh
A7: 6 | B7: Fernwärme/ KWK - fossil | C7: 1 | D7: 0.09 | G7: Fernwärme | J7: Pellets
A8: 7 | B8: Öl - Heizöl | C8: 1.06 | D8: =H6 -> 0.08503401361 | G8: fossil | H8: 0.09 | I8: €/kWh | J8: 4.4 | K8: kWh/kg
A9: 8 | B9: Braunkohle | C9: 1.07 | D9: =J14 -> 0.07092198582 | G9: erneuerbar | H9: 0.07 | I9: €/kWh | J9: 0.18 | K9: €/kg
A10: 9 | B10: Steinkohle | C10: 1.02 | D10: =J18 -> 0.07882882883 | J10: =J9/J8 -> 0.04090909091 | K10: €/kWh
J11: Braunkohle
J12: 7.05 | K12: kWh/kg
J13: 0.5 | K13: €/kg
J14: =J13/J12 -> 0.07092198582 | K14: €/kWh
J15: Steinkohle
J16: 8.88 | K16: kWh/kg
J17: 0.7 | K17: €/kg
J18: =J17/J16 -> 0.07882882883 | K18: €/kWh

Sheet Konfiguration
A1: Regelungsbereich | B1: Vorgabewert BNB | C1: Berechnungsgrundlage
A2: Allgemeine Berechnungsgrundlagen
A3: Betrachtungszeitraum in Jahren | B3: 50 | C3: 50
A4: Allg. Preissteigerung in % | B4: 0.02 | C4: 0.02
A5: Preissteigerung Energie in % | B5: 0.04 | C5: 0.04
A6: Kalkulationszins in % | B6: 0.055 | C6: 0.055
A7: Preisindizierung
A8: Basisjahr Preisindizierung | B8: 2010
A9: Preisstand Basisjahr in % | B9: 1
A10: Preisstand Projekt | C10: 2. Quartal 2014
A11: Preisindex Projekt (zu Basisjahr) in % | C11: 1.094 | E11: Baupreisindex siehe statistisches Bundesamt: https://www.destatis.de/DE/ZahlenFakten/Indikatoren/Konjunkturindikatoren/Preise/bpr110.html
A12: Faktor Preisindizierung | B12: =B9/C11 -> 0.9140767824
A13: Berechnungsgrundlagen Kosten der Wasserver- und entsorgung
A14: Kosten Frischwasser in € | B14: 2.01
A15: Kosten Niederschlagswasser in € | B15: 1.1
A16: Kosten Abwasser aus Brauchwasser in € | B16: 2.14
A17: Projektdaten
A18: Kategorie der Lebenszykluskosten nach Kriteriensteckbrief BNB_BN 2.1.1 v2011_1 | B18: 1
A19: Bruttogrundfläche (BGFabc)

Sheet Gültigkeiten (hidden)
A1: Ja/Nein
A2: Ja
A3: Nein
A5: Einheiten
A6: d
A7: h
A8: kg
A9: km
A10: KW
A11: KWh
A12: l
A13: l/h
A14: liter
A15: m
A16: m²
A17: m³
A18: MW
A19: MWh
A20: Pers
A21: pschl.
A22: Stk
A23: t
A24: t
A25: Wo
A28: Seiten
A29: 1
A30: 2
A34: LCC_Kategorie
A35: 1
A36: 2

Sheet Tabelle2 (hidden)
A2: 311 | B2: 311: Baugrubenherstellung | C2: Ja | D2: Nein | F2: 157578.9916 | G2: =LEFT(A2,2) & "0" -> 310 | H2: 550154.6218
A3: 312 | B3: 312: Baugrubenumschließung | C3: Ja | D3: Nein | F3: 159443.6975
A4: 313 | B4: 313: Wasserhaltung | C4: Ja | D4: Nein | F4: 195520.1681
A5: 319 | B5: 319: Baugrube, Sonstiges | C5: Ja | D5: Nein | F5: 37611.76471
A6: 321 | B6: 321: Baugrundverbesserung | C6: Ja | D6: Nein | F6: 44023.52941 | G6: =LEFT(A6,2) & "0" -> 320 | H6: 298700
A7: 324 | B7: 324: Unterböden und Bodenplatten | C7: Ja | D7: Nein | F7: 170235.2941
A8: 325 | B8: 325: Bodenbeläge | C8: Ja | D8: Nein | F8: 11926.05042
A9: 326 | B9: 326: Bauwerksabdichtungen | C9: Ja | D9: Nein | F9: 64239.4958
A10: 329 | B10: 329: Gründungen, Sonstiges | C10: Ja | D10: Nein | F10: 8275.630252
A11: 331 | B11: 331: Tragende Außenwände | C11: Ja | D11: Nein | F11: 304150.4202 | G11: 330 | H11: 2029994.958
A12: 334 | B12: 334: Außentüren und -fenster | C12: Ja | D12: Nein | F12: 714758.8235
A13: 335 | B13: 335: Außenwandbekleidungen, außen | C13: Ja | D13: Nein | F13: 871488.2353
A14: 336 | B14: 336: Außenwandbekleidungen, innen | C14: Ja | D14: Nein | F14: 32942.01681
A15: 338 | B15: 338: Sonnenschutz | C15: Ja | D15: Nein | F15: 106655.4622
A16: 341 | B16: 341: Tragende Innenwände | C16: Ja | D16: Nein | F16: 150701.6807 | G16: 340 | H16: 1067725.21
A17: 342 | B17: 342: Nichttragende Innenwände | C17: Ja | D17: Nein | F17: 264642.8571
A18: 343 | B18: 343: Innenstützen | C18: Ja | D18: Nein | F18: 25915.96639
A19: 344 | B19: 344: Innentüren und -fenster | C19: Ja | D19: Nein | F19: 396193.2773
A20: 345 | B20: 345: Innenwandbekleidungen | C20: Ja | D20: Nein | F20: 97473.10924
A21: 349 | B21: 349: Innenwände, Sonstiges | C21: Ja | D21: Nein | F21: 132798.3193
A22: 351 | B22: 351: Deckenkonstruktionen | C22: Ja | D22: Nein | F22: 502252.1008 | G22: 350 | H22: 1352342.017
A23: 352 | B23: 352: Deckenbeläge | C23: Ja | D23: Nein | F23: 646893.2773
A24: 353 | B24: 353: Deckenbekleidungen | C24: Ja | D24: Nein | F24: 174121.0084
A25: 359 | B25: 359: Decken, Sonstiges | C25: Ja | D25: Nein | F25: 29075.63025
A26: 361 | B26: 361: Dachkonstruktionen | C26: Ja | D26: Nein | F26: 153487.395 | G26: 360 | H26: 357843.6975
A27: 362 | B27: 362: Dachfenster, Dachöffnungen | C27: Ja | D27: Nein | F27: 3000
A28: 363 | B28: 363: Dachbeläge | C28: Ja | D28: Nein | F28: 137062.1849
A29: 364 | B29: 364: Dachbekleidungen | C29: Ja | D29: Nein | F29: 23550.42017
A30: 369 | B30: 369: Dächer, Sonstiges | C30: Ja | D30: Nein | F30: 40743.69748
A31: 371 | B31: 371: Allgemeine Einbauten | C31: Ja | D31: Nein | F31: 63865.54622 | G31: 370 | H31: 63865.54622
A32: 390 | B32: 390: Sonstige Maßnahmen für Baukonstruktionen | C32: Ja | D32: Nein | F32: 307923.5294 | G32: 390 | H32: 307923.5294
A33: 410 | B33: 410: Abwasser-, Wasser-, Gasanlagen | C33: Ja | D33: Nein | F33: 308900 | G33: 410 | H33: 308900
A34: 421 | B34: 421: Wärmeerzeugungsanlagen | C34: Ja | D34: Nein | F34: 43152.10084 | G34: 420 | H34: 287012.605
A35: 422 | B35: 422: Wärmeverteilnetze | C35: Ja | D35: Nein | F35: 129169.7479
A36: 423 | B36: 423: Raumheizflächen | C36: Ja | D36: Nein | F36: 94040.33613
A37: 429 | B37: 429: Wärmeversorgungsanlagen, Sonstiges | C37: Ja | D37: Nein | F37: 20650.42017
A38: 430 | B38: 430: Lufttechnische Anlagen | C38: Ja | D38: Nein | F38: 420790.916 | G38: 430 | H38: 420790.916
A39: 440 | B39: 440: Starkstromanlagen | C39: Ja | D39: Nein | F39: 727358.8235 | G39: 440 | H39: 727358.8235
A40: 450 | B40: 450: Fernmelde- und informationstechnische Anlagen | C40: Ja | D40: Nein | F40: 358240.9244 | G40: 450 | H40: 358240.9244
A41: 460 | B41: 460: Förderanlagen | C41: Ja | D41: Nein | F41: 100500 | G41: 460 | H41: 100500
A42: 479 | B42: 479: Nutzungsspezifische Anlagen, Sonstiges | C42: Ja | D42: Nein | F42: 34060 | G42: 470 | H42: 34060
A43: 480 | B43: 480: Gebäudeautomation | C43: Ja | D43: Nein | F43: 139825 | G43: 480 | H43: 139825
A44: 490 | B44: 490: Sonstige Maßnahmen für technische Anlagen | C44: Ja | D44: Nein | F44: 38114.28571 | G44: 490 | H44: 38114.28571
